Workbook

Sheet Title
C4: Badly Structured Model
C5: Does not Follow FAST
C6: Learn by Looking at
C7: what not to do

Sheet Intoduction
B3: Crimes | K3: comment | L3: FALSE
B5: Circular References
B6: 1. Contingency
B7: 2. Average Balance
B8: 3. Interest Income
B9: 4. Interest During Construction
B11: Summary
B12: Sources and Uses
B13: Real and Nominal IRR
B15: Assumptions

Sheet Summary
B2: Output Page
C4: Project Size | D4: =Inputs!B5 -> MW | E4: =Inputs!C5 -> 2.3 | G4: =Inputs!G5 -> Debt Service Coverage
G5: =Inputs!G6 -> Average DSCR | H5: =Inputs!H6 -> 0.008651351427
C6: =Inputs!A22 -> Total Project Cost | D6: =Inputs!B22 -> USD 000's | E6: =Inputs!D22 -> 99038.00935 | G6: =Inputs!G7 -> Minimum DSCR | H6: =Inputs!H7 -> -0.009384441224
C7: =Inputs!A26 -> Equity as Percent of Project Cost | D7: =Inputs!B26 -> % | E7: =Inputs!C26 -> 0.3 | G7: =Inputs!G8 -> Maximum DSCR | H7: =Inputs!H8 -> 0.05797597637
C8: =Inputs!A27 -> Debt as Percent of Project Cost | D8: =Inputs!B27 -> % | E8: =Inputs!C27 -> 0.7
G9: =Inputs!G11 -> Internal Rate of Return
G10: =Inputs!G12 -> Project IRR | H10: =Inputs!H12 -> -0.1056692323
C11: =Inputs!A33 -> Interest Rate Post Construction Period | D11: =Inputs!B33 -> % | E11: =Inputs!C33 -> 0.11 | G11: Equity IRR | H11: =Inputs!H13 -> 
C12: =Inputs!A34 -> Interest Rate on Deficit/Surplus Cash Balance | D12: =Inputs!B34 -> % | E12: =Inputs!C34 -> 0
C13: =Inputs!A73 -> Interest on Working Capital | D13: =Inputs!B73 -> % | E13: =Inputs!C73 -> 0.11 | G13: PPA in USD Cents/MWH
G14: =Inputs!G58 -> 1 | H14: =Inputs!J58 -> 5.65
C15: =Inputs!A36 -> Moratorium period | D15: =Inputs!B36 -> Months | E15: =Inputs!C36 -> 12 | G15: =Inputs!G59 -> 2 | H15: =Inputs!J59 -> 5.763
C16: =Inputs!A37 -> Repayment (No. of quarterly instalments) | D16: Quarters | E16: =Inputs!C37 -> 60 | G16: =Inputs!G60 -> 3 | H16: =Inputs!J60 -> 5.87826
G17: =Inputs!G61 -> 4 | H17: =Inputs!J61 -> 5.9958252
C18: =Inputs!A43 -> Utilisation Factor | D18: =Inputs!B43 -> % | E18: =Inputs!C43 -> 0.162 | G18: =Inputs!G62 -> 5 | H18: =Inputs!J62 -> 6.115741704
C19: =Inputs!A44 -> Degradation Factor | D19: =Inputs!B44 -> % | E19: =Inputs!C44 -> 0.005 | G19: =Inputs!G63 -> 6 | H19: =Inputs!J63 -> 6.238056538
C20: =Inputs!A45 -> Auxiliary Consumption | D20: =Inputs!B45 -> % | E20: =Inputs!C45 -> 0 | G20: =Inputs!G64 -> 7 | H20: =Inputs!J64 -> 6.362817669
C21: =Inputs!A46 -> AT&C Loss | D21: =Inputs!B46 -> % | E21: =Inputs!C46 -> 0 | G21: =Inputs!G65 -> 8 | H21: =Inputs!J65 -> 6.490074022
C22: =Inputs!A47 -> 1st full year generation available for sale | D22: =Inputs!B47 -> USD 000's Units | E22: =Inputs!C47 -> 19.047312 | G22: =Inputs!G66 -> 9 | H22: =Inputs!J66 -> 6.619875503
G23: =Inputs!G67 -> 10 | H23: =Inputs!J67 -> 6.752273013
C24: =Inputs!A51 -> O & M | D24: =Inputs!B51 -> USD | E24: =Inputs!C51 -> 13.8 | G24: =Inputs!G68 -> 11 | H24: =Inputs!J68 -> 6.887318473
C25: =Inputs!A52 -> Escalation on O & M Cost | D25: =Inputs!B52 -> % | E25: =Inputs!C52 -> 0.07 | G25: =Inputs!G69 -> 12 | H25: =Inputs!J69 -> 7.025064842
G26: =Inputs!G70 -> 13 | H26: =Inputs!J70 -> 7.165566139
C27: =Inputs!A57 -> Insurance Expense of Net Block | D27: =Inputs!B57 -> % | E27: =Inputs!C57 -> 0.0025 | G27: =Inputs!G71 -> 14 | H27: =Inputs!J71 -> 7.308877462
G28: =Inputs!G72 -> 15 | H28: =Inputs!J72 -> 7.455055011
C29: =Inputs!A62 -> Depreciation Rate as per the Income Tax Act As per Section 32 (80%) + 20% addition Depriciation for new plant and Machinery. | D29: =Inputs!B62 -> % | E29: =Inputs!C62 -> 1 | G29: =Inputs!G73 -> 16 | H29: =Inputs!J73 -> 7.604156112
C30: =Inputs!A65 -> Depreciation Rate as per the Companies Act | D30: =Inputs!B65 -> % | E30: =Inputs!C65 -> 0.0528 | G30: =Inputs!G74 -> 17 | H30: =Inputs!J74 -> 7.756239234
G31: =Inputs!G75 -> 18 | H31: =Inputs!J75 -> 7.911364018
G32: =Inputs!G76 -> 19 | H32: =Inputs!J76 -> 8.069591299
G33: =Inputs!G77 -> 20 | H33: =Inputs!J77 -> 8.230983125
C34: Other Business Profit Considered | E34: =IF('Income Tax'!C16>0,"Yes","No") -> No | G34: =Inputs!G78 -> 21 | H34: =Inputs!J78 -> 8.395602787
G35: =Inputs!G79 -> 22 | H35: =Inputs!J79 -> 8.563514843
C36: =Inputs!G46 -> Tax Structure | D36: =Inputs!H47 -> Normal | E36: =Inputs!I47 -> MAT | G36: =Inputs!G80 -> 23 | H36: =Inputs!J80 -> 8.73478514
D37: =Inputs!H51 -> 0.3399 | E37: =Inputs!I51 -> 0.2000775 | G37: =Inputs!G81 -> 24 | H37: =Inputs!J81 -> 8.909480843
G38: =Inputs!G82 -> 25 | H38: =Inputs!J82 -> 9.08767046

Sheet Inputs
A1: Georgia, USA 2.30 MW Project
A3: Assumptions
A5: Capacity of Project | B5: MW | C5: 2.3 | G5: Debt Service Coverage
A6: Project Starting Date | C6: 2017-03-01 | G6: Average DSCR | H6: =+Ratio!C19 -> 0.008651351427
A7: Project Completion Date | C7: 2017-08-31 | G7: Minimum DSCR | H7: =+Ratio!C20 -> -0.009384441224
A8: First Financial Year Starting Date | C8: =+DATE(YEAR(C9)-1,4,1) -> 2017-04-01 | G8: Maximum DSCR | H8: =+Ratio!C21 -> 0.05797597637
A9: First Financial Year End Date | C9: =+IF(MONTH(C7)>3,(DATE(YEAR(C7)+1,3,31)),DATE(YEAR(C7),3,31)) -> 2018-03-31
A10: No. of Days in First Year | C10: =+C9-C7+1 -> 213
G11: Internal Rate of Return
G12: Project IRR | H12: =Ratio!C34 -> -0.1056692323 | I12: 0.1212479672 | J12: =H12-I12 -> -0.2269171994
A13: Total Estimated Project Cost | C13: Per MW | D13: Total | G13: PPA in USD Cents/MWH | H13: =Ratio!C47 ->  | I13: 0.1630604745
A14: Land | B14: USD 000's | C14: 0 | D14: 0 | E14: =C14/$C$20 -> 0
A15: Material (Incl. tax) | B15: USD 000's | C15: 727453.9576 | D15: 727.4539576 | E15: =C15/$C$20 -> 0.8586538462
A16: Services (Incl. tax) | B16: USD 000's | C16: 77388.71889 | D16: 77.38871889 | E16: =C16/$C$20 -> 0.09134615385
A17: Other Expenses | B17: USD 000's | C17: 0 | D17: 0
A18: Sub Total | B18: USD 000's | C18: =SUM(C14:C17) -> 804842.6765 | D18: =SUM(D14:D17) -> 804.8426765
A19: Contingencies | B19: USD 000's | C19: =C20-C18 -> 42360.14087 | D19: =+C19*$C$5 -> 97428.32399 | E19: 0.05
A20: Total After Contingencies | B20: USD 000's | C20: =C18/(1-E19) -> 847202.8173 | D20: =SUM(D14:D19) -> 99038.00935
A21: Interest During Construction | B21: USD 000's | C21: =D21/C5 -> 0 | D21: =Phasing!M35 -> 0
A22: Total Project Cost | B22: USD 000's | C22: =C20+C21 -> 847202.8173 | D22: 99038.00935
G24: ='Cost Sheet'!A70 -> Levelised - USD/MWH
A25: Finance | G25: ='Cost Sheet'!A71 -> Depreciation (as per Books) | I25: ='Cost Sheet'!C71 -> 150.3753271
A26: Equity as Percent of Project Cost | B26: % | C26: 0.3 | G26: ='Cost Sheet'!A72 -> Interest on Term Loan | I26: ='Cost Sheet'!C72 -> 170.0595089
A27: Debt as Percent of Project Cost | B27: % | C27: =1-C26 -> 0.7 | G27: ='Cost Sheet'!A73 -> Interest on Working Capital | I27: ='Cost Sheet'!C73 -> 0.06556120216
G28: ='Cost Sheet'!A74 -> O & M Expenses | I28: ='Cost Sheet'!C74 -> 0.7029086704
A29: Equity | B29: USD | C29: =+D22*C26 -> 29711.4028 | G29: ='Cost Sheet'!A75 -> Insurance Expense | I29: ='Cost Sheet'!C75 -> 5.33484818
A30: Debt | B30: USD | C30: =+D22*C27 -> 69326.60654 | G30: ='Cost Sheet'!A76 -> Misc. Expense incl. Spares | I30: ='Cost Sheet'!C76 -> 0
G31: ='Cost Sheet'!A77 -> Total Expenses (A) | I31: ='Cost Sheet'!C77 -> 326.538154
A32: Interest Rate During Construction Period | B32: % | C32: 0
A33: Interest Rate Post Construction Period | B33: % | C33: 0.11 | G33: ='Cost Sheet'!A79 -> Interest on Cash Balance | I33: ='Cost Sheet'!C79 -> 0
A34: Interest Rate on Deficit/Surplus Cash Balance | B34: % | C34: 0 | G34: ='Cost Sheet'!A80 -> Revenue form GBI | I34: ='Cost Sheet'!C80 -> 0
G35: ='Cost Sheet'!A81 -> Revenue from CDM benefit | I35: ='Cost Sheet'!C81 -> 0
A36: Moratorium period | B36: Months | C36: 12 | G36: ='Cost Sheet'!A82 -> Total Other Income (B) | I36: ='Cost Sheet'!C82 -> 0
A37: Repayment (No. of quarterly instalments) | B37: Qtrs | C37: 60
A38: Repayment start date | C38: =+DATE(YEAR(C7),MONTH(C7)+C36,DAY(C7)) -> 2018-08-31 | G38: ='Cost Sheet'!A84 -> Income Tax (Actual) (C ) | I38: ='Cost Sheet'!C84 -> 0.03804258767
A39: Repayment end date | C39: =+DATE(YEAR(C38),MONTH(C38)+C37*3,DAY(C38)) -> 2033-08-31
G40: ='Cost Sheet'!A86 -> Total Net Expense (A-B+C) | I40: ='Cost Sheet'!C86 -> 326.5761966
G41: ='Cost Sheet'!A87 -> Tariff | I41: ='Cost Sheet'!C87 -> 6.364873433
A42: Generation | G42: ='Cost Sheet'!A88 -> Levelised Tariff Surplus / (Deficit) | I42: ='Cost Sheet'!C88 -> -320.2113232
A43: Utilisation Factor | B43: % | C43: 0.162
A44: Degradation Factor | B44: % | C44: 0.005
A45: Auxiliary Consumption | B45: % | C45: 0
A46: AT&C Loss | B46: % | C46: 0 | D46: Per MW | G46: Tax Structure
A47: 1st full year generation available for sale | B47: USD 000's Units | C47: =Revenue!C17 -> 19.047312 | D47: =C47/C5 -> 8.28144 | H47: Normal | I47: MAT | J47: DDT
G48: Basic Rate | H48: 0.3 | I48: 0.185 | J48: 0.15
G49: Surcharge | H49: 0.1 | I49: 0.05 | J49: 0.05
A50: O & M | G50: EC | H50: 0.03 | I50: 0.03 | J50: 0.03
A51: O & M | B51: USD | C51: =6*C5 -> 13.8 | D51: =C51/D22 -> 0.000139340442 | G51: Total Rate | H51: =H48*(1+H49)*(1+H50) -> 0.3399 | I51: 0.2000775 | J51: 0.162225
A52: Escalation on O & M Cost | B52: % | C52: 0.07
A53: Free O & M | B53: Year | C53: 0
A56: Insurance | G56: Tariff (USD/MWH)
A57: Insurance Expense of Net Block | B57: % | C57: 0.0025 | G57: Year | H57: REC | I57: PPA | J57: Total
A58: Misc. Expense Per MW (p.a.) incl. Spares | B58: USD | C58: 0 | G58: 1 | I58: 5.65 | J58: =H58+I58 -> 5.65 | L58: =Revenue!C5 -> 2018-03-31
G59: 2 | I59: =I58*1.02 -> 5.763 | J59: 5.763 | L59: =Revenue!D5 -> 2019-03-31
G60: 3 | I60: 5.87826 | J60: 5.87826 | L60: =Revenue!E5 -> 2020-03-31
A61: Depreciation | G61: 4 | I61: 5.9958252 | J61: 5.9958252 | L61: =Revenue!F5 -> 2021-03-31
A62: Depreciation Rate as per the Income Tax Act As per Section 32 (80%) + 20% addition Depriciation for new plant and Machinery. | B62: % | C62: 1 | D62: WDV | G62: 5 | I62: 6.115741704 | J62: 6.115741704 | L62: =Revenue!G5 -> 2022-03-31
A63: Depreciable Value as per the Income Tax Act | B63: % | C63: 1 | G63: 6 | I63: 6.238056538 | J63: 6.238056538 | L63: =Revenue!H5 -> 2023-03-31
G64: 7 | I64: 6.362817669 | J64: 6.362817669 | L64: =Revenue!I5 -> 2024-03-31
A65: Depreciation Rate as per the Companies Act | B65: % | C65: 0.0528 | D65: SLM | G65: 8 | I65: 6.490074022 | J65: 6.490074022 | L65: =Revenue!J5 -> 2025-03-31
A66: Depreciable Value as per the Companies Act | B66: % | C66: 0.95 | G66: 9 | I66: 6.619875503 | J66: 6.619875503 | L66: =Revenue!K5 -> 2026-03-31
G67: 10 | I67: 6.752273013 | J67: 6.752273013 | L67: =Revenue!L5 -> 2027-03-31
G68: 11 | I68: 6.887318473 | J68: 6.887318473 | L68: =Revenue!M5 -> 2028-03-31
A69: Working Capital Norms | G69: 12 | I69: 7.025064842 | J69: 7.025064842 | L69: =Revenue!N5 -> 2029-03-31
A70: O&M Expense | B70: Months | C70: 1 | G70: 13 | I70: 7.165566139 | J70: 7.165566139 | L70: =Revenue!O5 -> 2030-03-31
A71: Receivables | B71: Months | C71: 1 | G71: 14 | I71: 7.308877462 | J71: 7.308877462 | L71: =Revenue!P5 -> 2031-03-31
A72: Maintainance Spares | B72: % | C72: 0.01 | G72: 15 | I72: 7.455055011 | J72: 7.455055011 | L72: =Revenue!Q5 -> 2032-03-31
A73: Interest on Working Capital | B73: % | C73: =C33 -> 0.11 | G73: 16 | I73: 7.604156112 | J73: 7.604156112 | L73: =Revenue!R5 -> 2033-03-31
G74: 17 | I74: 7.756239234 | J74: 7.756239234 | L74: =Revenue!S5 -> 2034-03-31
G75: 18 | I75: 7.911364018 | J75: 7.911364018 | L75: =Revenue!T5 -> 2035-03-31
A76: Generation Based Incentive | G76: 19 | I76: 8.069591299 | J76: 8.069591299 | L76: =Revenue!U5 -> 2036-03-31
A77: Generation Based Incentive | B77: Rs. per unit | C77: 0 | D77: Not Considered | G77: 20 | I77: 8.230983125 | J77: 8.230983125 | L77: =Revenue!V5 -> 2037-03-31
G78: 21 | I78: 8.395602787 | J78: 8.395602787 | L78: =Revenue!W5 -> 2038-03-31
A79: Dividend to Equity Holders | G79: 22 | I79: 8.563514843 | J79: 8.563514843 | L79: =Revenue!X5 -> 2039-03-31
A80: Dividend Rate | B80: % | C80: 0 | G80: 23 | I80: 8.73478514 | J80: 8.73478514 | L80: =Revenue!Y5 -> 2040-03-31
G81: 24 | I81: 8.909480843 | J81: 8.909480843 | L81: =Revenue!Z5 -> 2041-03-31
G82: 25 | I82: 9.08767046 | J82: 9.08767046 | L82: =Revenue!AA5 -> 2042-03-31
A83: Tax Holiday under Section 80-IA | G83: 26 | I83: 9.269423869 | J83: 9.269423869
A84: - To be claimed in | B84: Years | C84: 10
A85: - Consecutive years in which to be claimed | B85: Years | C85: 15
A88: Discounting Factor
A89: Discounting Factor | B89: % | C89: 0.1596

Sheet Operating Costs
A2: Operating Expenses
A3: Total Project Cost | B3: USD | C3: =+Inputs!D22 -> 99038.00935
A4: Equity | B4: USD | C4: =Inputs!C29 -> 29711.4028 | D4: Check
A5: Debt | B5: USD | C5: =Inputs!C30 -> 69326.60654 | D5: =C3-C4-C5 -> 0
A7: No. of Year | C7: 1 | D7: 2 | E7: 3 | F7: 4 | G7: 5 | H7: 6 | I7: 7 | J7: 8 | K7: 9 | L7: 10 | M7: 11 | N7: 12 | O7: 13 | P7: 14 | Q7: 15 | R7: 16 | S7: 17 | T7: 18 | U7: 19 | V7: 20 | W7: 21 | X7: 22 | Y7: 23 | Z7: 24 | AA7: 25 | AB7: 26
A8: Year Start Date | C8: =+Inputs!C7 -> 2017-08-31 | D8: =+C9+1 -> 2018-04-01 | E8: 2019-04-01 | F8: 2020-04-01 | G8: 2021-04-01 | H8: 2022-04-01 | I8: 2023-04-01 | J8: 2024-04-01 | K8: 2025-04-01 | L8: 2026-04-01 | M8: 2027-04-01 | N8: 2028-04-01 | O8: 2029-04-01 | P8: 2030-04-01 | Q8: 2031-04-01 | R8: 2032-04-01 | S8: 2033-04-01 | T8: 2034-04-01 | U8: 2035-04-01 | V8: 2036-04-01 | W8: 2037-04-01 | X8: 2038-04-01 | Y8: 2039-04-01 | Z8: 2040-04-01 | AA8: 2041-04-01 | AB8: 2042-04-01
A9: Year End Date | C9: =+Inputs!C9 -> 2018-03-31 | D9: =+DATE(YEAR(C9)+1,MONTH(C9),DAY(C9)) -> 2019-03-31 | E9: 2020-03-31 | F9: 2021-03-31 | G9: 2022-03-31 | H9: 2023-03-31 | I9: 2024-03-31 | J9: 2025-03-31 | K9: 2026-03-31 | L9: 2027-03-31 | M9: 2028-03-31 | N9: 2029-03-31 | O9: 2030-03-31 | P9: 2031-03-31 | Q9: 2032-03-31 | R9: 2033-03-31 | S9: 2034-03-31 | T9: 2035-03-31 | U9: 2036-03-31 | V9: 2037-03-31 | W9: 2038-03-31 | X9: 2039-03-31 | Y9: 2040-03-31 | Z9: 2041-03-31 | AA9: 2042-03-31 | AB9: 2043-03-31
A10: No. of Days in F.Y | C10: =+C9-Inputs!C8+1 -> 365 | D10: =+D9-D8+1 -> 365 | E10: 366 | F10: 365 | G10: 365 | H10: 365 | I10: 366 | J10: 365 | K10: 365 | L10: 365 | M10: 366 | N10: 365 | O10: 365 | P10: 365 | Q10: 366 | R10: 365 | S10: 365 | T10: 365 | U10: 366 | V10: 365 | W10: 365 | X10: 365 | Y10: 366 | Z10: 365 | AA10: 365 | AB10: 365
A11: No. of Days in Operation | C11: =+C9-Inputs!$C$7+1 -> 213 | D11: =+D9-D8+1 -> 365 | E11: 366 | F11: 365 | G11: 365 | H11: 365 | I11: 366 | J11: 365 | K11: 365 | L11: 365 | M11: 366 | N11: 365 | O11: 365 | P11: 365 | Q11: 366 | R11: 365 | S11: 365 | T11: 365 | U11: 366 | V11: 365 | W11: 365 | X11: 365 | Y11: 366 | Z11: 365 | AA11: 365 | AB11: 365
A12: No. of Days for repayment in year | C12: =MAX((Inputs!C9-Inputs!C38+1),0) -> 0 | D12: =MAX(0,(IF(C12>0,(D9-D8+1),(D9-Inputs!$C$38+1)))) -> 213 | E12: =MAX(0,(IF(D12>0,(E9-E8+1),(E9-Inputs!$C$38+1)))) -> 366 | F12: =MAX(0,(IF(E12>0,(F9-F8+1),(F9-Inputs!$C$38+1)))) -> 365 | G12: =MAX(0,(IF(F12>0,(G9-G8+1),(G9-Inputs!$C$38+1)))) -> 365 | H12: =MAX(0,(IF(G12>0,(H9-H8+1),(H9-Inputs!$C$38+1)))) -> 365 | I12: =MAX(0,(IF(H12>0,(I9-I8+1),(I9-Inputs!$C$38+1)))) -> 366 | J12: =MAX(0,(IF(I12>0,(J9-J8+1),(J9-Inputs!$C$38+1)))) -> 365 | K12: =MAX(0,(IF(J12>0,(K9-K8+1),(K9-Inputs!$C$38+1)))) -> 365 | L12: =MAX(0,(IF(K12>0,(L9-L8+1),(L9-Inputs!$C$38+1)))) -> 365 | M12: =MAX(0,(IF(L12>0,(M9-M8+1),(M9-Inputs!$C$38+1)))) -> 366 | N12: =MAX(0,(IF(M12>0,(N9-N8+1),(N9-Inputs!$C$38+1)))) -> 365 | O12: =MAX(0,(IF(N12>0,(O9-O8+1),(O9-Inputs!$C$38+1)))) -> 365 | P12: =MAX(0,(IF(O12>0,(P9-P8+1),(P9-Inputs!$C$38+1)))) -> 365 | Q12: =MAX(0,(IF(P12>0,(Q9-Q8+1),(Q9-Inputs!$C$38+1)))) -> 366 | R12: =MAX(0,(IF(Q12>0,(R9-R8+1),(R9-Inputs!$C$38+1)))) -> 365 | S12: =MAX(0,(IF(R12>0,(S9-S8+1),(S9-Inputs!$C$38+1)))) -> 365 | T12: =MAX(0,(IF(S12>0,(T9-T8+1),(T9-Inputs!$C$38+1)))) -> 365 | U12: =MAX(0,(IF(T12>0,(U9-U8+1),(U9-Inputs!$C$38+1)))) -> 366 | V12: =MAX(0,(IF(U12>0,(V9-V8+1),(V9-Inputs!$C$38+1)))) -> 365 | W12: =MAX(0,(IF(V12>0,(W9-W8+1),(W9-Inputs!$C$38+1)))) -> 365 | X12: =MAX(0,(IF(W12>0,(X9-X8+1),(X9-Inputs!$C$38+1)))) -> 365 | Y12: =MAX(0,(IF(X12>0,(Y9-Y8+1),(Y9-Inputs!$C$38+1)))) -> 366 | Z12: =MAX(0,(IF(Y12>0,(Z9-Z8+1),(Z9-Inputs!$C$38+1)))) -> 365 | AA12: =MAX(0,(IF(Z12>0,(AA9-AA8+1),(AA9-Inputs!$C$38+1)))) -> 365 | AB12: =MAX(0,(IF(AA12>0,(AB9-AB8+1),(AB9-Inputs!$C$38+1)))) -> 365
A13: No of qtr instalments possible from COD | C13: =IF(C12<90, 0, IF(AND(C12>=90, C12<180), 1, IF(AND(C12>=180, C12<270), 2, IF(AND(C12>=270, C12<365), 3, 4)))) -> 0 | D13: 2 | E13: 4 | F13: 4 | G13: 4 | H13: 4 | I13: 4 | J13: 4 | K13: 4 | L13: 4 | M13: 4 | N13: 4 | O13: 4 | P13: 4 | Q13: 4 | R13: 4 | S13: 4 | T13: 4 | U13: 4 | V13: 4 | W13: 4 | X13: 4 | Y13: 4 | Z13: 4 | AA13: 4 | AB13: 4
A15: Repayment and Interest Calculation
A16: Debt Repayment Schedule
A17: Opening Balance | B17: USD | C17: =+C5 -> 69326.60654 | D17: =+C19 -> 69326.60654 | E17: 67015.71966 | F17: 62393.94589 | G17: 57772.17212 | H17: 53150.39835 | I17: 48528.62458 | J17: 43906.85081 | K17: 39285.07704 | L17: 34663.30327 | M17: 30041.5295 | N17: 25419.75573 | O17: 20797.98196 | P17: 16176.20819 | Q17: 11554.43442 | R17: 6932.660654 | S17: 2310.886885 | T17: 0 | U17: 0 | V17: 0 | W17: 0 | X17: 0 | Y17: 0 | Z17: 0 | AA17: 0 | AB17: 0
A18: Repayment | B18: USD | C18: =MIN(C13*Inputs!$C$30/Inputs!$C$37,C17) -> 0 | D18: =MIN(D13*Inputs!$C$30/Inputs!$C$37,D17) -> 2310.886885 | E18: =MIN(E13*Inputs!$C$30/Inputs!$C$37,E17) -> 4621.77377 | F18: =MIN(F13*Inputs!$C$30/Inputs!$C$37,F17) -> 4621.77377 | G18: =MIN(G13*Inputs!$C$30/Inputs!$C$37,G17) -> 4621.77377 | H18: =MIN(H13*Inputs!$C$30/Inputs!$C$37,H17) -> 4621.77377 | I18: =MIN(I13*Inputs!$C$30/Inputs!$C$37,I17) -> 4621.77377 | J18: =MIN(J13*Inputs!$C$30/Inputs!$C$37,J17) -> 4621.77377 | K18: =MIN(K13*Inputs!$C$30/Inputs!$C$37,K17) -> 4621.77377 | L18: =MIN(L13*Inputs!$C$30/Inputs!$C$37,L17) -> 4621.77377 | M18: =MIN(M13*Inputs!$C$30/Inputs!$C$37,M17) -> 4621.77377 | N18: =MIN(N13*Inputs!$C$30/Inputs!$C$37,N17) -> 4621.77377 | O18: =MIN(O13*Inputs!$C$30/Inputs!$C$37,O17) -> 4621.77377 | P18: =MIN(P13*Inputs!$C$30/Inputs!$C$37,P17) -> 4621.77377 | Q18: =MIN(Q13*Inputs!$C$30/Inputs!$C$37,Q17) -> 4621.77377 | R18: =MIN(R13*Inputs!$C$30/Inputs!$C$37,R17) -> 4621.77377 | S18: =MIN(S13*Inputs!$C$30/Inputs!$C$37,S17) -> 2310.886885 | T18: =MIN(T13*Inputs!$C$30/Inputs!$C$37,T17) -> 0 | U18: =MIN(U13*Inputs!$C$30/Inputs!$C$37,U17) -> 0 | V18: =MIN(V13*Inputs!$C$30/Inputs!$C$37,V17) -> 0 | W18: =MIN(W13*Inputs!$C$30/Inputs!$C$37,W17) -> 0 | X18: =MIN(X13*Inputs!$C$30/Inputs!$C$37,X17) -> 0 | Y18: =MIN(Y13*Inputs!$C$30/Inputs!$C$37,Y17) -> 0 | Z18: =MIN(Z13*Inputs!$C$30/Inputs!$C$37,Z17) -> 0 | AA18: =MIN(AA13*Inputs!$C$30/Inputs!$C$37,AA17) -> 0 | AB18: =MIN(AB13*Inputs!$C$30/Inputs!$C$37,AB17) -> 0
A19: Closing Balance | B19: USD | C19: =+C17-C18 -> 69326.60654 | D19: 67015.71966 | E19: 62393.94589 | F19: 57772.17212 | G19: 53150.39835 | H19: 48528.62458 | I19: 43906.85081 | J19: 39285.07704 | K19: 34663.30327 | L19: 30041.5295 | M19: 25419.75573 | N19: 20797.98196 | O19: 16176.20819 | P19: 11554.43442 | Q19: 6932.660654 | R19: 2310.886885 | S19: 0 | T19: 0 | U19: 0 | V19: 0 | W19: 0 | X19: 0 | Y19: 0 | Z19: 0 | AA19: 0 | AB19: 0
A20: Interest Expense | B20: USD | C20: =+(C17+C19)/2*Inputs!$C$33*C11/C10 -> 4450.198332 | D20: =D17*Inputs!$C$33*D11/D10 -> 7625.92672 | E20: =E17*Inputs!$C$33*E11/E10 -> 7371.729162 | F20: =F17*Inputs!$C$33*F11/F10 -> 6863.334048 | G20: =G17*Inputs!$C$33*G11/G10 -> 6354.938933 | H20: =H17*Inputs!$C$33*H11/H10 -> 5846.543818 | I20: =I17*Inputs!$C$33*I11/I10 -> 5338.148704 | J20: =J17*Inputs!$C$33*J11/J10 -> 4829.753589 | K20: =K17*Inputs!$C$33*K11/K10 -> 4321.358475 | L20: =L17*Inputs!$C$33*L11/L10 -> 3812.96336 | M20: =M17*Inputs!$C$33*M11/M10 -> 3304.568245 | N20: =N17*Inputs!$C$33*N11/N10 -> 2796.173131 | O20: =O17*Inputs!$C$33*O11/O10 -> 2287.778016 | P20: =P17*Inputs!$C$33*P11/P10 -> 1779.382901 | Q20: =Q17*Inputs!$C$33*Q11/Q10 -> 1270.987787 | R20: =R17*Inputs!$C$33*R11/R10 -> 762.592672 | S20: =S17*Inputs!$C$33*S11/S10 -> 254.1975573 | T20: =T17*Inputs!$C$33*T11/T10 -> 0 | U20: =U17*Inputs!$C$33*U11/U10 -> 0 | V20: =V17*Inputs!$C$33*V11/V10 -> 0 | W20: =W17*Inputs!$C$33*W11/W10 -> 0 | X20: =X17*Inputs!$C$33*X11/X10 -> 0 | Y20: =Y17*Inputs!$C$33*Y11/Y10 -> 0 | Z20: =Z17*Inputs!$C$33*Z11/Z10 -> 0 | AA20: =AA17*Inputs!$C$33*AA11/AA10 -> 0 | AB20: =AB17*Inputs!$C$33*AB11/AB10 -> 0
A22: Depreciation
A23: Book Depreciation | B23: =Inputs!D65 -> SLM | C23: =Inputs!C65 -> 0.0528
A24: Total Project Cost | B24: USD | C24: =Inputs!$D$22-Inputs!$D$14 -> 99038.00935 | D24: =Inputs!$D$22-Inputs!$D$14 -> 99038.00935 | E24: =Inputs!$D$22-Inputs!$D$14 -> 99038.00935 | F24: =Inputs!$D$22-Inputs!$D$14 -> 99038.00935 | G24: =Inputs!$D$22-Inputs!$D$14 -> 99038.00935 | H24: =Inputs!$D$22-Inputs!$D$14 -> 99038.00935 | I24: =Inputs!$D$22-Inputs!$D$14 -> 99038.00935 | J24: =Inputs!$D$22-Inputs!$D$14 -> 99038.00935 | K24: =Inputs!$D$22-Inputs!$D$14 -> 99038.00935 | L24: =Inputs!$D$22-Inputs!$D$14 -> 99038.00935 | M24: =Inputs!$D$22-Inputs!$D$14 -> 99038.00935 | N24: =Inputs!$D$22-Inputs!$D$14 -> 99038.00935 | O24: =Inputs!$D$22-Inputs!$D$14 -> 99038.00935 | P24: =Inputs!$D$22-Inputs!$D$14 -> 99038.00935 | Q24: =Inputs!$D$22-Inputs!$D$14 -> 99038.00935 | R24: =Inputs!$D$22-Inputs!$D$14 -> 99038.00935 | S24: =Inputs!$D$22-Inputs!$D$14 -> 99038.00935 | T24: =Inputs!$D$22-Inputs!$D$14 -> 99038.00935 | U24: =Inputs!$D$22-Inputs!$D$14 -> 99038.00935 | V24: =Inputs!$D$22-Inputs!$D$14 -> 99038.00935 | W24: =Inputs!$D$22-Inputs!$D$14 -> 99038.00935 | X24: =Inputs!$D$22-Inputs!$D$14 -> 99038.00935 | Y24: =Inputs!$D$22-Inputs!$D$14 -> 99038.00935 | Z24: =Inputs!$D$22-Inputs!$D$14 -> 99038.00935 | AA24: =Inputs!$D$22-Inputs!$D$14 -> 99038.00935 | AB24: =Inputs!$D$22-Inputs!$D$14 -> 99038.00935
A25: Gross Block (excl. Land & salvage value) | B25: USD | C25: =(Inputs!$D$22-Inputs!$D$14)*Inputs!$C$66 -> 94086.10888 | D25: =(Inputs!$D$22-Inputs!$D$14)*Inputs!$C$66 -> 94086.10888 | E25: =(Inputs!$D$22-Inputs!$D$14)*Inputs!$C$66 -> 94086.10888 | F25: =(Inputs!$D$22-Inputs!$D$14)*Inputs!$C$66 -> 94086.10888 | G25: =(Inputs!$D$22-Inputs!$D$14)*Inputs!$C$66 -> 94086.10888 | H25: =(Inputs!$D$22-Inputs!$D$14)*Inputs!$C$66 -> 94086.10888 | I25: =(Inputs!$D$22-Inputs!$D$14)*Inputs!$C$66 -> 94086.10888 | J25: =(Inputs!$D$22-Inputs!$D$14)*Inputs!$C$66 -> 94086.10888 | K25: =(Inputs!$D$22-Inputs!$D$14)*Inputs!$C$66 -> 94086.10888 | L25: =(Inputs!$D$22-Inputs!$D$14)*Inputs!$C$66 -> 94086.10888 | M25: =(Inputs!$D$22-Inputs!$D$14)*Inputs!$C$66 -> 94086.10888 | N25: =(Inputs!$D$22-Inputs!$D$14)*Inputs!$C$66 -> 94086.10888 | O25: =(Inputs!$D$22-Inputs!$D$14)*Inputs!$C$66 -> 94086.10888 | P25: =(Inputs!$D$22-Inputs!$D$14)*Inputs!$C$66 -> 94086.10888 | Q25: =(Inputs!$D$22-Inputs!$D$14)*Inputs!$C$66 -> 94086.10888 | R25: =(Inputs!$D$22-Inputs!$D$14)*Inputs!$C$66 -> 94086.10888 | S25: =(Inputs!$D$22-Inputs!$D$14)*Inputs!$C$66 -> 94086.10888 | T25: =(Inputs!$D$22-Inputs!$D$14)*Inputs!$C$66 -> 94086.10888 | U25: =(Inputs!$D$22-Inputs!$D$14)*Inputs!$C$66 -> 94086.10888 | V25: =(Inputs!$D$22-Inputs!$D$14)*Inputs!$C$66 -> 94086.10888 | W25: =(Inputs!$D$22-Inputs!$D$14)*Inputs!$C$66 -> 94086.10888 | X25: =(Inputs!$D$22-Inputs!$D$14)*Inputs!$C$66 -> 94086.10888 | Y25: =(Inputs!$D$22-Inputs!$D$14)*Inputs!$C$66 -> 94086.10888 | Z25: =(Inputs!$D$22-Inputs!$D$14)*Inputs!$C$66 -> 94086.10888 | AA25: =(Inputs!$D$22-Inputs!$D$14)*Inputs!$C$66 -> 94086.10888 | AB25: =(Inputs!$D$22-Inputs!$D$14)*Inputs!$C$66 -> 94086.10888
A26: Depreciation for the year | B26: USD | C26: =(C25*Inputs!$C$65*C11/C10) -> 2898.986342 | D26: =IF((C27+(D25*Inputs!$C$65*D11/D10))<D25,(D25*Inputs!$C$65*D11/D10),(D25-C27)) -> 4967.746549 | E26: =IF((D27+(E25*Inputs!$C$65*E11/E10))<E25,(E25*Inputs!$C$65*E11/E10),(E25-D27)) -> 4967.746549 | F26: =IF((E27+(F25*Inputs!$C$65*F11/F10))<F25,(F25*Inputs!$C$65*F11/F10),(F25-E27)) -> 4967.746549 | G26: =IF((F27+(G25*Inputs!$C$65*G11/G10))<G25,(G25*Inputs!$C$65*G11/G10),(G25-F27)) -> 4967.746549 | H26: =IF((G27+(H25*Inputs!$C$65*H11/H10))<H25,(H25*Inputs!$C$65*H11/H10),(H25-G27)) -> 4967.746549 | I26: =IF((H27+(I25*Inputs!$C$65*I11/I10))<I25,(I25*Inputs!$C$65*I11/I10),(I25-H27)) -> 4967.746549 | J26: =IF((I27+(J25*Inputs!$C$65*J11/J10))<J25,(J25*Inputs!$C$65*J11/J10),(J25-I27)) -> 4967.746549 | K26: =IF((J27+(K25*Inputs!$C$65*K11/K10))<K25,(K25*Inputs!$C$65*K11/K10),(K25-J27)) -> 4967.746549 | L26: =IF((K27+(L25*Inputs!$C$65*L11/L10))<L25,(L25*Inputs!$C$65*L11/L10),(L25-K27)) -> 4967.746549 | M26: =IF((L27+(M25*Inputs!$C$65*M11/M10))<M25,(M25*Inputs!$C$65*M11/M10),(M25-L27)) -> 4967.746549 | N26: =IF((M27+(N25*Inputs!$C$65*N11/N10))<N25,(N25*Inputs!$C$65*N11/N10),(N25-M27)) -> 4967.746549 | O26: =IF((N27+(O25*Inputs!$C$65*O11/O10))<O25,(O25*Inputs!$C$65*O11/O10),(O25-N27)) -> 4967.746549 | P26: =IF((O27+(P25*Inputs!$C$65*P11/P10))<P25,(P25*Inputs!$C$65*P11/P10),(P25-O27)) -> 4967.746549 | Q26: =IF((P27+(Q25*Inputs!$C$65*Q11/Q10))<Q25,(Q25*Inputs!$C$65*Q11/Q10),(Q25-P27)) -> 4967.746549 | R26: =IF((Q27+(R25*Inputs!$C$65*R11/R10))<R25,(R25*Inputs!$C$65*R11/R10),(R25-Q27)) -> 4967.746549 | S26: =IF((R27+(S25*Inputs!$C$65*S11/S10))<S25,(S25*Inputs!$C$65*S11/S10),(S25-R27)) -> 4967.746549 | T26: =IF((S27+(T25*Inputs!$C$65*T11/T10))<T25,(T25*Inputs!$C$65*T11/T10),(T25-S27)) -> 4967.746549 | U26: =IF((T27+(U25*Inputs!$C$65*U11/U10))<U25,(U25*Inputs!$C$65*U11/U10),(U25-T27)) -> 4967.746549 | V26: =IF((U27+(V25*Inputs!$C$65*V11/V10))<V25,(V25*Inputs!$C$65*V11/V10),(V25-U27)) -> 1767.684658 | W26: =IF((V27+(W25*Inputs!$C$65*W11/W10))<W25,(W25*Inputs!$C$65*W11/W10),(W25-V27)) -> 0 | X26: =IF((W27+(X25*Inputs!$C$65*X11/X10))<X25,(X25*Inputs!$C$65*X11/X10),(X25-W27)) -> 0 | Y26: =IF((X27+(Y25*Inputs!$C$65*Y11/Y10))<Y25,(Y25*Inputs!$C$65*Y11/Y10),(Y25-X27)) -> 0 | Z26: =IF((Y27+(Z25*Inputs!$C$65*Z11/Z10))<Z25,(Z25*Inputs!$C$65*Z11/Z10),(Z25-Y27)) -> 0 | AA26: =IF((Z27+(AA25*Inputs!$C$65*AA11/AA10))<AA25,(AA25*Inputs!$C$65*AA11/AA10),(AA25-Z27)) -> 0 | AB26: =IF((AA27+(AB25*Inputs!$C$65*AB11/AB10))<AB25,(AB25*Inputs!$C$65*AB11/AB10),(AB25-AA27)) -> 0
A27: Accumulated Depreciation | B27: USD | C27: =+C26 -> 2898.986342 | D27: =+D26+C27 -> 7866.732891 | E27: 12834.47944 | F27: 17802.22599 | G27: 22769.97254 | H27: 27737.71909 | I27: 32705.46564 | J27: 37673.21218 | K27: 42640.95873 | L27: 47608.70528 | M27: 52576.45183 | N27: 57544.19838 | O27: 62511.94493 | P27: 67479.69148 | Q27: 72447.43803 | R27: 77415.18457 | S27: 82382.93112 | T27: 87350.67767 | U27: 92318.42422 | V27: 94086.10888 | W27: 94086.10888 | X27: 94086.10888 | Y27: 94086.10888 | Z27: 94086.10888 | AA27: 94086.10888 | AB27: 94086.10888
A28: Net Block | B28: USD | C28: =+C24-C27 -> 96139.023 | D28: 91171.27646 | E28: 86203.52991 | F28: 81235.78336 | G28: 76268.03681 | H28: 71300.29026 | I28: 66332.54371 | J28: 61364.79716 | K28: 56397.05061 | L28: 51429.30407 | M28: 46461.55752 | N28: 41493.81097 | O28: 36526.06442 | P28: 31558.31787 | Q28: 26590.57132 | R28: 21622.82477 | S28: 16655.07822 | T28: 11687.33167 | U28: 6719.585126 | V28: 4951.900467 | W28: 4951.900467 | X28: 4951.900467 | Y28: 4951.900467 | Z28: 4951.900467 | AA28: 4951.900467 | AB28: 4951.900467
A30: Tax Depreciation | B30: =Inputs!D62 -> WDV | C30: =Inputs!C62 -> 1
A31: Opening Depreciation Base (excl. Land Cost) | B31: USD | C31: =Inputs!D22-Inputs!D14 -> 99038.00935 | D31: =+C33 -> 0 | E31: 0 | F31: 0 | G31: 0 | H31: 0 | I31: 0 | J31: 0 | K31: 0 | L31: 0 | M31: 0 | N31: 0 | O31: 0 | P31: 0 | Q31: 0 | R31: 0 | S31: 0 | T31: 0 | U31: 0 | V31: 0 | W31: 0 | X31: 0 | Y31: 0 | Z31: 0 | AA31: 0 | AB31: 0
A32: Depreciation for the year | B32: USD | C32: =IF(C11<180,((C31*Inputs!$C$62)*50%),(C31*Inputs!$C$62)) -> 99038.00935 | D32: =+D31*Inputs!$C$62 -> 0 | E32: =+E31*Inputs!$C$62 -> 0 | F32: =+F31*Inputs!$C$62 -> 0 | G32: =+G31*Inputs!$C$62 -> 0 | H32: =+H31*Inputs!$C$62 -> 0 | I32: =+I31*Inputs!$C$62 -> 0 | J32: =+J31*Inputs!$C$62 -> 0 | K32: =+K31*Inputs!$C$62 -> 0 | L32: =+L31*Inputs!$C$62 -> 0 | M32: =+M31*Inputs!$C$62 -> 0 | N32: =+N31*Inputs!$C$62 -> 0 | O32: =+O31*Inputs!$C$62 -> 0 | P32: =+P31*Inputs!$C$62 -> 0 | Q32: =+Q31*Inputs!$C$62 -> 0 | R32: =+R31*Inputs!$C$62 -> 0 | S32: =+S31*Inputs!$C$62 -> 0 | T32: =+T31*Inputs!$C$62 -> 0 | U32: =+U31*Inputs!$C$62 -> 0 | V32: =+V31*Inputs!$C$62 -> 0 | W32: =+W31*Inputs!$C$62 -> 0 | X32: =+X31*Inputs!$C$62 -> 0 | Y32: =+Y31*Inputs!$C$62 -> 0 | Z32: =+Z31*Inputs!$C$62 -> 0 | AA32: =+AA31*Inputs!$C$62 -> 0 | AB32: =+AB31*Inputs!$C$62 -> 0
A33: Closing Depreciation Base | B33: USD | C33: =+C31-C32 -> 0 | D33: 0 | E33: 0 | F33: 0 | G33: 0 | H33: 0 | I33: 0 | J33: 0 | K33: 0 | L33: 0 | M33: 0 | N33: 0 | O33: 0 | P33: 0 | Q33: 0 | R33: 0 | S33: 0 | T33: 0 | U33: 0 | V33: 0 | W33: 0 | X33: 0 | Y33: 0 | Z33: 0 | AA33: 0 | AB33: 0
A34: Cumulative Depreciation | B34: USD | C34: =+C32 -> 99038.00935 | D34: =+D32+C34 -> 99038.00935 | E34: 99038.00935 | F34: 99038.00935 | G34: 99038.00935 | H34: 99038.00935 | I34: 99038.00935 | J34: 99038.00935 | K34: 99038.00935 | L34: 99038.00935 | M34: 99038.00935 | N34: 99038.00935 | O34: 99038.00935 | P34: 99038.00935 | Q34: 99038.00935 | R34: 99038.00935 | S34: 99038.00935 | T34: 99038.00935 | U34: 99038.00935 | V34: 99038.00935 | W34: 99038.00935 | X34: 99038.00935 | Y34: 99038.00935 | Z34: 99038.00935 | AA34: 99038.00935 | AB34: 99038.00935
A36: O & M Expense
A37: O & M Base Cost | B37: USD | C37: =IF(C11<30,0,(IF(C7>Inputs!$C$53,(Inputs!$C$51*'Operating Costs'!C11/'Operating Costs'!C10),0))) -> 8.053150685 | D37: =IF(D11<30,0,(IF(D7>Inputs!$C$53,(Inputs!$C$51*'Operating Costs'!D11/'Operating Costs'!D10),0))) -> 13.8 | E37: =IF(E11<30,0,(IF(E7>Inputs!$C$53,(Inputs!$C$51*'Operating Costs'!E11/'Operating Costs'!E10),0))) -> 13.8 | F37: =IF(F11<30,0,(IF(F7>Inputs!$C$53,(Inputs!$C$51*'Operating Costs'!F11/'Operating Costs'!F10),0))) -> 13.8 | G37: =IF(G11<30,0,(IF(G7>Inputs!$C$53,(Inputs!$C$51*'Operating Costs'!G11/'Operating Costs'!G10),0))) -> 13.8 | H37: =IF(H11<30,0,(IF(H7>Inputs!$C$53,(Inputs!$C$51*'Operating Costs'!H11/'Operating Costs'!H10),0))) -> 13.8 | I37: =IF(I11<30,0,(IF(I7>Inputs!$C$53,(Inputs!$C$51*'Operating Costs'!I11/'Operating Costs'!I10),0))) -> 13.8 | J37: =IF(J11<30,0,(IF(J7>Inputs!$C$53,(Inputs!$C$51*'Operating Costs'!J11/'Operating Costs'!J10),0))) -> 13.8 | K37: =IF(K11<30,0,(IF(K7>Inputs!$C$53,(Inputs!$C$51*'Operating Costs'!K11/'Operating Costs'!K10),0))) -> 13.8 | L37: =IF(L11<30,0,(IF(L7>Inputs!$C$53,(Inputs!$C$51*'Operating Costs'!L11/'Operating Costs'!L10),0))) -> 13.8 | M37: =IF(M11<30,0,(IF(M7>Inputs!$C$53,(Inputs!$C$51*'Operating Costs'!M11/'Operating Costs'!M10),0))) -> 13.8 | N37: =IF(N11<30,0,(IF(N7>Inputs!$C$53,(Inputs!$C$51*'Operating Costs'!N11/'Operating Costs'!N10),0))) -> 13.8 | O37: =IF(O11<30,0,(IF(O7>Inputs!$C$53,(Inputs!$C$51*'Operating Costs'!O11/'Operating Costs'!O10),0))) -> 13.8 | P37: =IF(P11<30,0,(IF(P7>Inputs!$C$53,(Inputs!$C$51*'Operating Costs'!P11/'Operating Costs'!P10),0))) -> 13.8 | Q37: =IF(Q11<30,0,(IF(Q7>Inputs!$C$53,(Inputs!$C$51*'Operating Costs'!Q11/'Operating Costs'!Q10),0))) -> 13.8 | R37: =IF(R11<30,0,(IF(R7>Inputs!$C$53,(Inputs!$C$51*'Operating Costs'!R11/'Operating Costs'!R10),0))) -> 13.8 | S37: =IF(S11<30,0,(IF(S7>Inputs!$C$53,(Inputs!$C$51*'Operating Costs'!S11/'Operating Costs'!S10),0))) -> 13.8 | T37: =IF(T11<30,0,(IF(T7>Inputs!$C$53,(Inputs!$C$51*'Operating Costs'!T11/'Operating Costs'!T10),0))) -> 13.8 | U37: =IF(U11<30,0,(IF(U7>Inputs!$C$53,(Inputs!$C$51*'Operating Costs'!U11/'Operating Costs'!U10),0))) -> 13.8 | V37: =IF(V11<30,0,(IF(V7>Inputs!$C$53,(Inputs!$C$51*'Operating Costs'!V11/'Operating Costs'!V10),0))) -> 13.8 | W37: =IF(W11<30,0,(IF(W7>Inputs!$C$53,(Inputs!$C$51*'Operating Costs'!W11/'Operating Costs'!W10),0))) -> 13.8 | X37: =IF(X11<30,0,(IF(X7>Inputs!$C$53,(Inputs!$C$51*'Operating Costs'!X11/'Operating Costs'!X10),0))) -> 13.8 | Y37: =IF(Y11<30,0,(IF(Y7>Inputs!$C$53,(Inputs!$C$51*'Operating Costs'!Y11/'Operating Costs'!Y10),0))) -> 13.8 | Z37: =IF(Z11<30,0,(IF(Z7>Inputs!$C$53,(Inputs!$C$51*'Operating Costs'!Z11/'Operating Costs'!Z10),0))) -> 13.8 | AA37: =IF(AA11<30,0,(IF(AA7>Inputs!$C$53,(Inputs!$C$51*'Operating Costs'!AA11/'Operating Costs'!AA10),0))) -> 13.8 | AB37: =IF(AB11<30,0,(IF(AB7>Inputs!$C$53,(Inputs!$C$51*'Operating Costs'!AB11/'Operating Costs'!AB10),0))) -> 13.8
A38: O & M Escalated Cost | B38: USD | C38: =+C37 -> 8.053150685 | D38: =IF(C11<180,D37,(D37*((1+Inputs!$C$52)^(IF($C$37>0,(C7-Inputs!$C$53),(C7-1-Inputs!$C$53)))))) -> 14.766 | E38: =IF(D11<180,E37,(E37*((1+Inputs!$C$52)^(IF($C$37>0,(D7-Inputs!$C$53),(D7-1-Inputs!$C$53)))))) -> 15.79962 | F38: =IF(E11<180,F37,(F37*((1+Inputs!$C$52)^(IF($C$37>0,(E7-Inputs!$C$53),(E7-1-Inputs!$C$53)))))) -> 16.9055934 | G38: =IF(F11<180,G37,(G37*((1+Inputs!$C$52)^(IF($C$37>0,(F7-Inputs!$C$53),(F7-1-Inputs!$C$53)))))) -> 18.08898494 | H38: =IF(G11<180,H37,(H37*((1+Inputs!$C$52)^(IF($C$37>0,(G7-Inputs!$C$53),(G7-1-Inputs!$C$53)))))) -> 19.35521388 | I38: =IF(H11<180,I37,(I37*((1+Inputs!$C$52)^(IF($C$37>0,(H7-Inputs!$C$53),(H7-1-Inputs!$C$53)))))) -> 20.71007886 | J38: =IF(I11<180,J37,(J37*((1+Inputs!$C$52)^(IF($C$37>0,(I7-Inputs!$C$53),(I7-1-Inputs!$C$53)))))) -> 22.15978438 | K38: =IF(J11<180,K37,(K37*((1+Inputs!$C$52)^(IF($C$37>0,(J7-Inputs!$C$53),(J7-1-Inputs!$C$53)))))) -> 23.71096928 | L38: =IF(K11<180,L37,(L37*((1+Inputs!$C$52)^(IF($C$37>0,(K7-Inputs!$C$53),(K7-1-Inputs!$C$53)))))) -> 25.37073713 | M38: =IF(L11<180,M37,(M37*((1+Inputs!$C$52)^(IF($C$37>0,(L7-Inputs!$C$53),(L7-1-Inputs!$C$53)))))) -> 27.14668873 | N38: =IF(M11<180,N37,(N37*((1+Inputs!$C$52)^(IF($C$37>0,(M7-Inputs!$C$53),(M7-1-Inputs!$C$53)))))) -> 29.04695694 | O38: =IF(N11<180,O37,(O37*((1+Inputs!$C$52)^(IF($C$37>0,(N7-Inputs!$C$53),(N7-1-Inputs!$C$53)))))) -> 31.08024393 | P38: =IF(O11<180,P37,(P37*((1+Inputs!$C$52)^(IF($C$37>0,(O7-Inputs!$C$53),(O7-1-Inputs!$C$53)))))) -> 33.255861 | Q38: =IF(P11<180,Q37,(Q37*((1+Inputs!$C$52)^(IF($C$37>0,(P7-Inputs!$C$53),(P7-1-Inputs!$C$53)))))) -> 35.58377127 | R38: =IF(Q11<180,R37,(R37*((1+Inputs!$C$52)^(IF($C$37>0,(Q7-Inputs!$C$53),(Q7-1-Inputs!$C$53)))))) -> 38.07463526 | S38: =IF(R11<180,S37,(S37*((1+Inputs!$C$52)^(IF($C$37>0,(R7-Inputs!$C$53),(R7-1-Inputs!$C$53)))))) -> 40.73985973 | T38: =IF(S11<180,T37,(T37*((1+Inputs!$C$52)^(IF($C$37>0,(S7-Inputs!$C$53),(S7-1-Inputs!$C$53)))))) -> 43.59164991 | U38: =IF(T11<180,U37,(U37*((1+Inputs!$C$52)^(IF($C$37>0,(T7-Inputs!$C$53),(T7-1-Inputs!$C$53)))))) -> 46.64306541 | V38: =IF(U11<180,V37,(V37*((1+Inputs!$C$52)^(IF($C$37>0,(U7-Inputs!$C$53),(U7-1-Inputs!$C$53)))))) -> 49.90807998 | W38: =IF(V11<180,W37,(W37*((1+Inputs!$C$52)^(IF($C$37>0,(V7-Inputs!$C$53),(V7-1-Inputs!$C$53)))))) -> 53.40164558 | X38: =IF(W11<180,X37,(X37*((1+Inputs!$C$52)^(IF($C$37>0,(W7-Inputs!$C$53),(W7-1-Inputs!$C$53)))))) -> 57.13976077 | Y38: =IF(X11<180,Y37,(Y37*((1+Inputs!$C$52)^(IF($C$37>0,(X7-Inputs!$C$53),(X7-1-Inputs!$C$53)))))) -> 61.13954403 | Z38: =IF(Y11<180,Z37,(Z37*((1+Inputs!$C$52)^(IF($C$37>0,(Y7-Inputs!$C$53),(Y7-1-Inputs!$C$53)))))) -> 65.41931211 | AA38: =IF(Z11<180,AA37,(AA37*((1+Inputs!$C$52)^(IF($C$37>0,(Z7-Inputs!$C$53),(Z7-1-Inputs!$C$53)))))) -> 69.99866396 | AB38: =IF(AA11<180,AB37,(AB37*((1+Inputs!$C$52)^(IF($C$37>0,(AA7-Inputs!$C$53),(AA7-1-Inputs!$C$53)))))) -> 74.89857043
A40: Insurance Expense
A41: Insurance Expense | B41: USD | C41: ='PL, BS, CF'!C49*Inputs!$C$57*C11/C10 -> 140.2576158 | D41: ='PL, BS, CF'!D49*Inputs!$C$57*D11/D10 -> 227.9281911 | E41: ='PL, BS, CF'!E49*Inputs!$C$57*E11/E10 -> 215.5088248 | F41: ='PL, BS, CF'!F49*Inputs!$C$57*F11/F10 -> 203.0894584 | G41: ='PL, BS, CF'!G49*Inputs!$C$57*G11/G10 -> 190.670092 | H41: ='PL, BS, CF'!H49*Inputs!$C$57*H11/H10 -> 178.2507257 | I41: ='PL, BS, CF'!I49*Inputs!$C$57*I11/I10 -> 165.8313593 | J41: ='PL, BS, CF'!J49*Inputs!$C$57*J11/J10 -> 153.4119929 | K41: ='PL, BS, CF'!K49*Inputs!$C$57*K11/K10 -> 140.9926265 | L41: ='PL, BS, CF'!L49*Inputs!$C$57*L11/L10 -> 128.5732602 | M41: ='PL, BS, CF'!M49*Inputs!$C$57*M11/M10 -> 116.1538938 | N41: ='PL, BS, CF'!N49*Inputs!$C$57*N11/N10 -> 103.7345274 | O41: ='PL, BS, CF'!O49*Inputs!$C$57*O11/O10 -> 91.31516105 | P41: ='PL, BS, CF'!P49*Inputs!$C$57*P11/P10 -> 78.89579467 | Q41: ='PL, BS, CF'!Q49*Inputs!$C$57*Q11/Q10 -> 66.4764283 | R41: ='PL, BS, CF'!R49*Inputs!$C$57*R11/R10 -> 54.05706193 | S41: ='PL, BS, CF'!S49*Inputs!$C$57*S11/S10 -> 41.63769556 | T41: ='PL, BS, CF'!T49*Inputs!$C$57*T11/T10 -> 29.21832919 | U41: ='PL, BS, CF'!U49*Inputs!$C$57*U11/U10 -> 16.79896281 | V41: ='PL, BS, CF'!V49*Inputs!$C$57*V11/V10 -> 12.37975117 | W41: ='PL, BS, CF'!W49*Inputs!$C$57*W11/W10 -> 12.37975117 | X41: ='PL, BS, CF'!X49*Inputs!$C$57*X11/X10 -> 12.37975117 | Y41: ='PL, BS, CF'!Y49*Inputs!$C$57*Y11/Y10 -> 12.37975117 | Z41: ='PL, BS, CF'!Z49*Inputs!$C$57*Z11/Z10 -> 12.37975117 | AA41: ='PL, BS, CF'!AA49*Inputs!$C$57*AA11/AA10 -> 12.37975117 | AB41: ='PL, BS, CF'!AB49*Inputs!$C$57*AB11/AB10 -> 12.37975117
A43: Misc. Expense incl. Spares
A44: Misc. Expense incl. Spares | B44: USD | C44: =Inputs!$C$5*Inputs!$C$58*C11/C10 -> 0 | D44: =Inputs!$C$5*Inputs!$C$58*D11/D10 -> 0 | E44: =Inputs!$C$5*Inputs!$C$58*E11/E10 -> 0 | F44: =Inputs!$C$5*Inputs!$C$58*F11/F10 -> 0 | G44: =Inputs!$C$5*Inputs!$C$58*G11/G10 -> 0 | H44: =Inputs!$C$5*Inputs!$C$58*H11/H10 -> 0 | I44: =Inputs!$C$5*Inputs!$C$58*I11/I10 -> 0 | J44: =Inputs!$C$5*Inputs!$C$58*J11/J10 -> 0 | K44: =Inputs!$C$5*Inputs!$C$58*K11/K10 -> 0 | L44: =Inputs!$C$5*Inputs!$C$58*L11/L10 -> 0 | M44: =Inputs!$C$5*Inputs!$C$58*M11/M10 -> 0 | N44: =Inputs!$C$5*Inputs!$C$58*N11/N10 -> 0 | O44: =Inputs!$C$5*Inputs!$C$58*O11/O10 -> 0 | P44: =Inputs!$C$5*Inputs!$C$58*P11/P10 -> 0 | Q44: =Inputs!$C$5*Inputs!$C$58*Q11/Q10 -> 0 | R44: =Inputs!$C$5*Inputs!$C$58*R11/R10 -> 0 | S44: =Inputs!$C$5*Inputs!$C$58*S11/S10 -> 0 | T44: =Inputs!$C$5*Inputs!$C$58*T11/T10 -> 0 | U44: =Inputs!$C$5*Inputs!$C$58*U11/U10 -> 0 | V44: =Inputs!$C$5*Inputs!$C$58*V11/V10 -> 0 | W44: =Inputs!$C$5*Inputs!$C$58*W11/W10 -> 0 | X44: =Inputs!$C$5*Inputs!$C$58*X11/X10 -> 0 | Y44: =Inputs!$C$5*Inputs!$C$58*Y11/Y10 -> 0 | Z44: =Inputs!$C$5*Inputs!$C$58*Z11/Z10 -> 0 | AA44: =Inputs!$C$5*Inputs!$C$58*AA11/AA10 -> 0 | AB44: =Inputs!$C$5*Inputs!$C$58*AB11/AB10 -> 0

Sheet Revenue
A2: Revenue
A3: No. of Year | C3: =+'Operating Costs'!C7 -> 1 | D3: =+'Operating Costs'!D7 -> 2 | E3: =+'Operating Costs'!E7 -> 3 | F3: =+'Operating Costs'!F7 -> 4 | G3: =+'Operating Costs'!G7 -> 5 | H3: =+'Operating Costs'!H7 -> 6 | I3: =+'Operating Costs'!I7 -> 7 | J3: =+'Operating Costs'!J7 -> 8 | K3: =+'Operating Costs'!K7 -> 9 | L3: =+'Operating Costs'!L7 -> 10 | M3: =+'Operating Costs'!M7 -> 11 | N3: =+'Operating Costs'!N7 -> 12 | O3: =+'Operating Costs'!O7 -> 13 | P3: =+'Operating Costs'!P7 -> 14 | Q3: =+'Operating Costs'!Q7 -> 15 | R3: =+'Operating Costs'!R7 -> 16 | S3: =+'Operating Costs'!S7 -> 17 | T3: =+'Operating Costs'!T7 -> 18 | U3: =+'Operating Costs'!U7 -> 19 | V3: =+'Operating Costs'!V7 -> 20 | W3: =+'Operating Costs'!W7 -> 21 | X3: =+'Operating Costs'!X7 -> 22 | Y3: =+'Operating Costs'!Y7 -> 23 | Z3: =+'Operating Costs'!Z7 -> 24 | AA3: =+'Operating Costs'!AA7 -> 25 | AB3: =+'Operating Costs'!AB7 -> 26
A4: Year Start Date | C4: =+'Operating Costs'!C8 -> 2017-08-31 | D4: =+'Operating Costs'!D8 -> 2018-04-01 | E4: =+'Operating Costs'!E8 -> 2019-04-01 | F4: =+'Operating Costs'!F8 -> 2020-04-01 | G4: =+'Operating Costs'!G8 -> 2021-04-01 | H4: =+'Operating Costs'!H8 -> 2022-04-01 | I4: =+'Operating Costs'!I8 -> 2023-04-01 | J4: =+'Operating Costs'!J8 -> 2024-04-01 | K4: =+'Operating Costs'!K8 -> 2025-04-01 | L4: =+'Operating Costs'!L8 -> 2026-04-01 | M4: =+'Operating Costs'!M8 -> 2027-04-01 | N4: =+'Operating Costs'!N8 -> 2028-04-01 | O4: =+'Operating Costs'!O8 -> 2029-04-01 | P4: =+'Operating Costs'!P8 -> 2030-04-01 | Q4: =+'Operating Costs'!Q8 -> 2031-04-01 | R4: =+'Operating Costs'!R8 -> 2032-04-01 | S4: =+'Operating Costs'!S8 -> 2033-04-01 | T4: =+'Operating Costs'!T8 -> 2034-04-01 | U4: =+'Operating Costs'!U8 -> 2035-04-01 | V4: =+'Operating Costs'!V8 -> 2036-04-01 | W4: =+'Operating Costs'!W8 -> 2037-04-01 | X4: =+'Operating Costs'!X8 -> 2038-04-01 | Y4: =+'Operating Costs'!Y8 -> 2039-04-01 | Z4: =+'Operating Costs'!Z8 -> 2040-04-01 | AA4: =+'Operating Costs'!AA8 -> 2041-04-01 | AB4: =+'Operating Costs'!AB8 -> 2042-04-01
A5: Year End Date | C5: =+'Operating Costs'!C9 -> 2018-03-31 | D5: =+'Operating Costs'!D9 -> 2019-03-31 | E5: =+'Operating Costs'!E9 -> 2020-03-31 | F5: =+'Operating Costs'!F9 -> 2021-03-31 | G5: =+'Operating Costs'!G9 -> 2022-03-31 | H5: =+'Operating Costs'!H9 -> 2023-03-31 | I5: =+'Operating Costs'!I9 -> 2024-03-31 | J5: =+'Operating Costs'!J9 -> 2025-03-31 | K5: =+'Operating Costs'!K9 -> 2026-03-31 | L5: =+'Operating Costs'!L9 -> 2027-03-31 | M5: =+'Operating Costs'!M9 -> 2028-03-31 | N5: =+'Operating Costs'!N9 -> 2029-03-31 | O5: =+'Operating Costs'!O9 -> 2030-03-31 | P5: =+'Operating Costs'!P9 -> 2031-03-31 | Q5: =+'Operating Costs'!Q9 -> 2032-03-31 | R5: =+'Operating Costs'!R9 -> 2033-03-31 | S5: =+'Operating Costs'!S9 -> 2034-03-31 | T5: =+'Operating Costs'!T9 -> 2035-03-31 | U5: =+'Operating Costs'!U9 -> 2036-03-31 | V5: =+'Operating Costs'!V9 -> 2037-03-31 | W5: =+'Operating Costs'!W9 -> 2038-03-31 | X5: =+'Operating Costs'!X9 -> 2039-03-31 | Y5: =+'Operating Costs'!Y9 -> 2040-03-31 | Z5: =+'Operating Costs'!Z9 -> 2041-03-31 | AA5: =+'Operating Costs'!AA9 -> 2042-03-31 | AB5: =+'Operating Costs'!AB9 -> 2043-03-31
A6: No. of Days in F.Y | C6: =+'Operating Costs'!C10 -> 365 | D6: =+'Operating Costs'!D10 -> 365 | E6: =+'Operating Costs'!E10 -> 366 | F6: =+'Operating Costs'!F10 -> 365 | G6: =+'Operating Costs'!G10 -> 365 | H6: =+'Operating Costs'!H10 -> 365 | I6: =+'Operating Costs'!I10 -> 366 | J6: =+'Operating Costs'!J10 -> 365 | K6: =+'Operating Costs'!K10 -> 365 | L6: =+'Operating Costs'!L10 -> 365 | M6: =+'Operating Costs'!M10 -> 366 | N6: =+'Operating Costs'!N10 -> 365 | O6: =+'Operating Costs'!O10 -> 365 | P6: =+'Operating Costs'!P10 -> 365 | Q6: =+'Operating Costs'!Q10 -> 366 | R6: =+'Operating Costs'!R10 -> 365 | S6: =+'Operating Costs'!S10 -> 365 | T6: =+'Operating Costs'!T10 -> 365 | U6: =+'Operating Costs'!U10 -> 366 | V6: =+'Operating Costs'!V10 -> 365 | W6: =+'Operating Costs'!W10 -> 365 | X6: =+'Operating Costs'!X10 -> 365 | Y6: =+'Operating Costs'!Y10 -> 366 | Z6: =+'Operating Costs'!Z10 -> 365 | AA6: =+'Operating Costs'!AA10 -> 365 | AB6: =+'Operating Costs'!AB10 -> 365
A7: No. of Days in Operation | C7: =+'Operating Costs'!C11 -> 213 | D7: =+'Operating Costs'!D11 -> 365 | E7: =+'Operating Costs'!E11 -> 366 | F7: =+'Operating Costs'!F11 -> 365 | G7: =+'Operating Costs'!G11 -> 365 | H7: =+'Operating Costs'!H11 -> 365 | I7: =+'Operating Costs'!I11 -> 366 | J7: =+'Operating Costs'!J11 -> 365 | K7: =+'Operating Costs'!K11 -> 365 | L7: =+'Operating Costs'!L11 -> 365 | M7: =+'Operating Costs'!M11 -> 366 | N7: =+'Operating Costs'!N11 -> 365 | O7: =+'Operating Costs'!O11 -> 365 | P7: =+'Operating Costs'!P11 -> 365 | Q7: =+'Operating Costs'!Q11 -> 366 | R7: =+'Operating Costs'!R11 -> 365 | S7: =+'Operating Costs'!S11 -> 365 | T7: =+'Operating Costs'!T11 -> 365 | U7: =+'Operating Costs'!U11 -> 366 | V7: =+'Operating Costs'!V11 -> 365 | W7: =+'Operating Costs'!W11 -> 365 | X7: =+'Operating Costs'!X11 -> 365 | Y7: =+'Operating Costs'!Y11 -> 366 | Z7: =+'Operating Costs'!Z11 -> 365 | AA7: =+'Operating Costs'!AA11 -> 365 | AB7: =+'Operating Costs'!AB11 -> 365
A9: PLF | B9: % | C9: =+Inputs!$C$43 -> 0.162 | D9: =+Inputs!$C$43 -> 0.162 | E9: =+Inputs!$C$43 -> 0.162 | F9: =+Inputs!$C$43 -> 0.162 | G9: =+Inputs!$C$43 -> 0.162 | H9: =+Inputs!$C$43 -> 0.162 | I9: =+Inputs!$C$43 -> 0.162 | J9: =+Inputs!$C$43 -> 0.162 | K9: =+Inputs!$C$43 -> 0.162 | L9: =+Inputs!$C$43 -> 0.162 | M9: =+Inputs!$C$43 -> 0.162 | N9: =+Inputs!$C$43 -> 0.162 | O9: =+Inputs!$C$43 -> 0.162 | P9: =+Inputs!$C$43 -> 0.162 | Q9: =+Inputs!$C$43 -> 0.162 | R9: =+Inputs!$C$43 -> 0.162 | S9: =+Inputs!$C$43 -> 0.162 | T9: =+Inputs!$C$43 -> 0.162 | U9: =+Inputs!$C$43 -> 0.162 | V9: =+Inputs!$C$43 -> 0.162 | W9: =+Inputs!$C$43 -> 0.162 | X9: =+Inputs!$C$43 -> 0.162 | Y9: =+Inputs!$C$43 -> 0.162 | Z9: =+Inputs!$C$43 -> 0.162 | AA9: =+Inputs!$C$43 -> 0.162 | AB9: =+Inputs!$C$43 -> 0.162
A10: Degradation Factor | B10: % | C10: 1 | D10: =IF(C7>180,(C10*(1-Inputs!$C$44)),100%) -> 0.995 | E10: =+D10*(1-Inputs!$C$44) -> 0.990025 | F10: =+E10*(1-Inputs!$C$44) -> 0.985074875 | G10: =+F10*(1-Inputs!$C$44) -> 0.9801495006 | H10: =+G10*(1-Inputs!$C$44) -> 0.9752487531 | I10: =+H10*(1-Inputs!$C$44) -> 0.9703725094 | J10: =+I10*(1-Inputs!$C$44) -> 0.9655206468 | K10: =+J10*(1-Inputs!$C$44) -> 0.9606930436 | L10: =+K10*(1-Inputs!$C$44) -> 0.9558895784 | M10: =+L10*(1-Inputs!$C$44) -> 0.9511101305 | N10: =+M10*(1-Inputs!$C$44) -> 0.9463545798 | O10: =+N10*(1-Inputs!$C$44) -> 0.9416228069 | P10: =+O10*(1-Inputs!$C$44) -> 0.9369146929 | Q10: =+P10*(1-Inputs!$C$44) -> 0.9322301194 | R10: =+Q10*(1-Inputs!$C$44) -> 0.9275689688 | S10: =+R10*(1-Inputs!$C$44) -> 0.922931124 | T10: =+S10*(1-Inputs!$C$44) -> 0.9183164684 | U10: =+T10*(1-Inputs!$C$44) -> 0.913724886 | V10: =+U10*(1-Inputs!$C$44) -> 0.9091562616 | W10: =+V10*(1-Inputs!$C$44) -> 0.9046104803 | X10: =+W10*(1-Inputs!$C$44) -> 0.9000874279 | Y10: =+X10*(1-Inputs!$C$44) -> 0.8955869907 | Z10: =+Y10*(1-Inputs!$C$44) -> 0.8911090558 | AA10: =+Z10*(1-Inputs!$C$44) -> 0.8866535105 | AB10: =+AA10*(1-Inputs!$C$44) -> 0.8822202429
A13: Gross generation | B13: MWH | C13: =(1000*24*C6*Inputs!$C$5*C9*C10*C7/C6)/100000 -> 19.047312 | D13: =(1000*24*D6*Inputs!$C$5*D9*D10*D7/D6)/100000 -> 32.4765612 | E13: =(1000*24*E6*Inputs!$C$5*E9*E10*E7/E6)/100000 -> 32.40271039 | F13: =(1000*24*F6*Inputs!$C$5*F9*F10*F7/F6)/100000 -> 32.1526075 | G13: =(1000*24*G6*Inputs!$C$5*G9*G10*G7/G6)/100000 -> 31.99184446 | H13: =(1000*24*H6*Inputs!$C$5*H9*H10*H7/H6)/100000 -> 31.83188524 | I13: =(1000*24*I6*Inputs!$C$5*I9*I10*I7/I6)/100000 -> 31.75950041 | J13: =(1000*24*J6*Inputs!$C$5*J9*J10*J7/J6)/100000 -> 31.51436219 | K13: =(1000*24*K6*Inputs!$C$5*K9*K10*K7/K6)/100000 -> 31.35679038 | L13: =(1000*24*L6*Inputs!$C$5*L9*L10*L7/L6)/100000 -> 31.20000642 | M13: =(1000*24*M6*Inputs!$C$5*M9*M10*M7/M6)/100000 -> 31.12905846 | N13: =(1000*24*N6*Inputs!$C$5*N9*N10*N7/N6)/100000 -> 30.88878636 | O13: =(1000*24*O6*Inputs!$C$5*O9*O10*O7/O6)/100000 -> 30.73434243 | P13: =(1000*24*P6*Inputs!$C$5*P9*P10*P7/P6)/100000 -> 30.58067072 | Q13: =(1000*24*Q6*Inputs!$C$5*Q9*Q10*Q7/Q6)/100000 -> 30.51113111 | R13: =(1000*24*R6*Inputs!$C$5*R9*R10*R7/R6)/100000 -> 30.27562853 | S13: =(1000*24*S6*Inputs!$C$5*S9*S10*S7/S6)/100000 -> 30.12425038 | T13: =(1000*24*T6*Inputs!$C$5*T9*T10*T7/T6)/100000 -> 29.97362913 | U13: =(1000*24*U6*Inputs!$C$5*U9*U10*U7/U6)/100000 -> 29.90546992 | V13: =(1000*24*V6*Inputs!$C$5*V9*V10*V7/V6)/100000 -> 29.67464218 | W13: =(1000*24*W6*Inputs!$C$5*W9*W10*W7/W6)/100000 -> 29.52626897 | X13: =(1000*24*X6*Inputs!$C$5*X9*X10*X7/X6)/100000 -> 29.37863762 | Y13: =(1000*24*Y6*Inputs!$C$5*Y9*Y10*Y7/Y6)/100000 -> 29.31183141 | Z13: =(1000*24*Z6*Inputs!$C$5*Z9*Z10*Z7/Z6)/100000 -> 29.08558571 | AA13: =(1000*24*AA6*Inputs!$C$5*AA9*AA10*AA7/AA6)/100000 -> 28.94015779 | AB13: =(1000*24*AB6*Inputs!$C$5*AB9*AB10*AB7/AB6)/100000 -> 28.795457
A14: Auxiliary Consumption | B14: MWH | C14: =+C13*Inputs!$C$45 -> 0 | D14: =+D13*Inputs!$C$45 -> 0 | E14: =+E13*Inputs!$C$45 -> 0 | F14: =+F13*Inputs!$C$45 -> 0 | G14: =+G13*Inputs!$C$45 -> 0 | H14: =+H13*Inputs!$C$45 -> 0 | I14: =+I13*Inputs!$C$45 -> 0 | J14: =+J13*Inputs!$C$45 -> 0 | K14: =+K13*Inputs!$C$45 -> 0 | L14: =+L13*Inputs!$C$45 -> 0 | M14: =+M13*Inputs!$C$45 -> 0 | N14: =+N13*Inputs!$C$45 -> 0 | O14: =+O13*Inputs!$C$45 -> 0 | P14: =+P13*Inputs!$C$45 -> 0 | Q14: =+Q13*Inputs!$C$45 -> 0 | R14: =+R13*Inputs!$C$45 -> 0 | S14: =+S13*Inputs!$C$45 -> 0 | T14: =+T13*Inputs!$C$45 -> 0 | U14: =+U13*Inputs!$C$45 -> 0 | V14: =+V13*Inputs!$C$45 -> 0 | W14: =+W13*Inputs!$C$45 -> 0 | X14: =+X13*Inputs!$C$45 -> 0 | Y14: =+Y13*Inputs!$C$45 -> 0 | Z14: =+Z13*Inputs!$C$45 -> 0 | AA14: =+AA13*Inputs!$C$45 -> 0 | AB14: =+AB13*Inputs!$C$45 -> 0
A15: Net Generation | B15: MWH | C15: =+C13-C14 -> 19.047312 | D15: 32.4765612 | E15: 32.40271039 | F15: 32.1526075 | G15: 31.99184446 | H15: 31.83188524 | I15: 31.75950041 | J15: 31.51436219 | K15: 31.35679038 | L15: 31.20000642 | M15: 31.12905846 | N15: 30.88878636 | O15: 30.73434243 | P15: 30.58067072 | Q15: 30.51113111 | R15: 30.27562853 | S15: 30.12425038 | T15: 29.97362913 | U15: 29.90546992 | V15: 29.67464218 | W15: 29.52626897 | X15: 29.37863762 | Y15: 29.31183141 | Z15: 29.08558571 | AA15: 28.94015779 | AB15: 28.795457
A16: T & D Loss | B16: MWH | C16: =+C15*Inputs!$C$46 -> 0 | D16: =+D15*Inputs!$C$46 -> 0 | E16: =+E15*Inputs!$C$46 -> 0 | F16: =+F15*Inputs!$C$46 -> 0 | G16: =+G15*Inputs!$C$46 -> 0 | H16: =+H15*Inputs!$C$46 -> 0 | I16: =+I15*Inputs!$C$46 -> 0 | J16: =+J15*Inputs!$C$46 -> 0 | K16: =+K15*Inputs!$C$46 -> 0 | L16: =+L15*Inputs!$C$46 -> 0 | M16: =+M15*Inputs!$C$46 -> 0 | N16: =+N15*Inputs!$C$46 -> 0 | O16: =+O15*Inputs!$C$46 -> 0 | P16: =+P15*Inputs!$C$46 -> 0 | Q16: =+Q15*Inputs!$C$46 -> 0 | R16: =+R15*Inputs!$C$46 -> 0 | S16: =+S15*Inputs!$C$46 -> 0 | T16: =+T15*Inputs!$C$46 -> 0 | U16: =+U15*Inputs!$C$46 -> 0 | V16: =+V15*Inputs!$C$46 -> 0 | W16: =+W15*Inputs!$C$46 -> 0 | X16: =+X15*Inputs!$C$46 -> 0 | Y16: =+Y15*Inputs!$C$46 -> 0 | Z16: =+Z15*Inputs!$C$46 -> 0 | AA16: =+AA15*Inputs!$C$46 -> 0 | AB16: =+AB15*Inputs!$C$46 -> 0
A17: Generation Available for Sale | B17: MWH | C17: =+C15-C16 -> 19.047312 | D17: 32.4765612 | E17: 32.40271039 | F17: 32.1526075 | G17: 31.99184446 | H17: 31.83188524 | I17: 31.75950041 | J17: 31.51436219 | K17: 31.35679038 | L17: 31.20000642 | M17: 31.12905846 | N17: 30.88878636 | O17: 30.73434243 | P17: 30.58067072 | Q17: 30.51113111 | R17: 30.27562853 | S17: 30.12425038 | T17: 29.97362913 | U17: 29.90546992 | V17: 29.67464218 | W17: 29.52626897 | X17: 29.37863762 | Y17: 29.31183141 | Z17: 29.08558571 | AA17: 28.94015779 | AB17: 28.795457
A19: Tariff | B19: USD Cents/MWH | C19: =Inputs!J58 -> 5.65 | D19: =Inputs!J59 -> 5.763 | E19: =Inputs!J60 -> 5.87826 | F19: =Inputs!J61 -> 5.9958252 | G19: =Inputs!J62 -> 6.115741704 | H19: =Inputs!J63 -> 6.238056538 | I19: =Inputs!J64 -> 6.362817669 | J19: =Inputs!J65 -> 6.490074022 | K19: =Inputs!J66 -> 6.619875503 | L19: =Inputs!J67 -> 6.752273013 | M19: =Inputs!J68 -> 6.887318473 | N19: =Inputs!J69 -> 7.025064842 | O19: =Inputs!J70 -> 7.165566139 | P19: =Inputs!J71 -> 7.308877462 | Q19: =Inputs!J72 -> 7.455055011 | R19: =Inputs!J73 -> 7.604156112 | S19: =Inputs!J74 -> 7.756239234 | T19: =Inputs!J75 -> 7.911364018 | U19: =Inputs!J76 -> 8.069591299 | V19: =Inputs!J77 -> 8.230983125 | W19: =Inputs!J78 -> 8.395602787 | X19: =Inputs!J79 -> 8.563514843 | Y19: =Inputs!J80 -> 8.73478514 | Z19: =Inputs!J81 -> 8.909480843 | AA19: =Inputs!J82 -> 9.08767046 | AB19: =Inputs!J83 -> 9.269423869
A21: Net Revenue | B21: USD | C21: =+C17*C19 -> 107.6173128 | D21: 187.1624222 | E21: 190.4715564 | F21: 192.7814143 | G21: 195.6538574 | H21: 198.5690999 | I21: 202.0799103 | J21: 204.5305434 | K21: 207.5780485 | L21: 210.6709614 | M21: 214.3957394 | N21: 216.9957271 | O21: 220.2289634 | P21: 223.510375 | Q21: 227.4621609 | R21: 230.2206057 | S21: 233.6508927 | T21: 237.132291 | U21: 241.3249199 | V21: 244.251479 | W21: 247.8908261 | X21: 251.5843994 | Y21: 256.0325494 | Z21: 259.1374687 | AA21: 262.998617 | AB21: 266.9172964

Sheet Income Tax
A2: Income Taxes
A3: =+'Operating Costs'!A7 -> No. of Year | C3: =+'Operating Costs'!C7 -> 1 | D3: =+'Operating Costs'!D7 -> 2 | E3: =+'Operating Costs'!E7 -> 3 | F3: =+'Operating Costs'!F7 -> 4 | G3: =+'Operating Costs'!G7 -> 5 | H3: =+'Operating Costs'!H7 -> 6 | I3: =+'Operating Costs'!I7 -> 7 | J3: =+'Operating Costs'!J7 -> 8 | K3: =+'Operating Costs'!K7 -> 9 | L3: =+'Operating Costs'!L7 -> 10 | M3: =+'Operating Costs'!M7 -> 11 | N3: =+'Operating Costs'!N7 -> 12 | O3: =+'Operating Costs'!O7 -> 13 | P3: =+'Operating Costs'!P7 -> 14 | Q3: =+'Operating Costs'!Q7 -> 15 | R3: =+'Operating Costs'!R7 -> 16 | S3: =+'Operating Costs'!S7 -> 17 | T3: =+'Operating Costs'!T7 -> 18 | U3: =+'Operating Costs'!U7 -> 19 | V3: =+'Operating Costs'!V7 -> 20 | W3: =+'Operating Costs'!W7 -> 21 | X3: =+'Operating Costs'!X7 -> 22 | Y3: =+'Operating Costs'!Y7 -> 23 | Z3: =+'Operating Costs'!Z7 -> 24 | AA3: =+'Operating Costs'!AA7 -> 25 | AB3: =+'Operating Costs'!AB7 -> 26
A4: =+'Operating Costs'!A8 -> Year Start Date | C4: =+'Operating Costs'!C8 -> 2017-08-31 | D4: =+'Operating Costs'!D8 -> 2018-04-01 | E4: =+'Operating Costs'!E8 -> 2019-04-01 | F4: =+'Operating Costs'!F8 -> 2020-04-01 | G4: =+'Operating Costs'!G8 -> 2021-04-01 | H4: =+'Operating Costs'!H8 -> 2022-04-01 | I4: =+'Operating Costs'!I8 -> 2023-04-01 | J4: =+'Operating Costs'!J8 -> 2024-04-01 | K4: =+'Operating Costs'!K8 -> 2025-04-01 | L4: =+'Operating Costs'!L8 -> 2026-04-01 | M4: =+'Operating Costs'!M8 -> 2027-04-01 | N4: =+'Operating Costs'!N8 -> 2028-04-01 | O4: =+'Operating Costs'!O8 -> 2029-04-01 | P4: =+'Operating Costs'!P8 -> 2030-04-01 | Q4: =+'Operating Costs'!Q8 -> 2031-04-01 | R4: =+'Operating Costs'!R8 -> 2032-04-01 | S4: =+'Operating Costs'!S8 -> 2033-04-01 | T4: =+'Operating Costs'!T8 -> 2034-04-01 | U4: =+'Operating Costs'!U8 -> 2035-04-01 | V4: =+'Operating Costs'!V8 -> 2036-04-01 | W4: =+'Operating Costs'!W8 -> 2037-04-01 | X4: =+'Operating Costs'!X8 -> 2038-04-01 | Y4: =+'Operating Costs'!Y8 -> 2039-04-01 | Z4: =+'Operating Costs'!Z8 -> 2040-04-01 | AA4: =+'Operating Costs'!AA8 -> 2041-04-01 | AB4: =+'Operating Costs'!AB8 -> 2042-04-01
A5: =+'Operating Costs'!A9 -> Year End Date | C5: =+'Operating Costs'!C9 -> 2018-03-31 | D5: =+'Operating Costs'!D9 -> 2019-03-31 | E5: =+'Operating Costs'!E9 -> 2020-03-31 | F5: =+'Operating Costs'!F9 -> 2021-03-31 | G5: =+'Operating Costs'!G9 -> 2022-03-31 | H5: =+'Operating Costs'!H9 -> 2023-03-31 | I5: =+'Operating Costs'!I9 -> 2024-03-31 | J5: =+'Operating Costs'!J9 -> 2025-03-31 | K5: =+'Operating Costs'!K9 -> 2026-03-31 | L5: =+'Operating Costs'!L9 -> 2027-03-31 | M5: =+'Operating Costs'!M9 -> 2028-03-31 | N5: =+'Operating Costs'!N9 -> 2029-03-31 | O5: =+'Operating Costs'!O9 -> 2030-03-31 | P5: =+'Operating Costs'!P9 -> 2031-03-31 | Q5: =+'Operating Costs'!Q9 -> 2032-03-31 | R5: =+'Operating Costs'!R9 -> 2033-03-31 | S5: =+'Operating Costs'!S9 -> 2034-03-31 | T5: =+'Operating Costs'!T9 -> 2035-03-31 | U5: =+'Operating Costs'!U9 -> 2036-03-31 | V5: =+'Operating Costs'!V9 -> 2037-03-31 | W5: =+'Operating Costs'!W9 -> 2038-03-31 | X5: =+'Operating Costs'!X9 -> 2039-03-31 | Y5: =+'Operating Costs'!Y9 -> 2040-03-31 | Z5: =+'Operating Costs'!Z9 -> 2041-03-31 | AA5: =+'Operating Costs'!AA9 -> 2042-03-31 | AB5: =+'Operating Costs'!AB9 -> 2043-03-31
A7: PBT | B7: USD | C7: ='PL, BS, CF'!C25 -> -7390.947299 | D7: ='PL, BS, CF'!D25 -> -12651.07229 | E7: ='PL, BS, CF'!E25 -> -12382.2208 | F7: ='PL, BS, CF'!F25 -> -11860.23496 | G7: ='PL, BS, CF'!G25 -> -11337.76991 | H7: ='PL, BS, CF'!H25 -> -10815.34614 | I7: ='PL, BS, CF'!I25 -> -10292.4218 | J7: ='PL, BS, CF'!J25 -> -9770.643742 | K7: ='PL, BS, CF'!K25 -> -9248.376802 | L7: ='PL, BS, CF'!L25 -> -8726.174568 | M7: ='PL, BS, CF'!M25 -> -8203.463637 | N7: ='PL, BS, CF'!N25 -> -7681.99278 | O7: ='PL, BS, CF'!O25 -> -7160.028862 | P7: ='PL, BS, CF'!P25 -> -6638.161003 | Q7: ='PL, BS, CF'!Q25 -> -6115.782771 | R7: ='PL, BS, CF'!R25 -> -5594.751567 | S7: ='PL, BS, CF'!S25 -> -5073.230831 | T7: ='PL, BS, CF'!T25 -> -4806.045491 | U7: ='PL, BS, CF'!U25 -> -4792.554671 | V7: ='PL, BS, CF'!V25 -> -1588.472372 | W7: ='PL, BS, CF'!W25 -> 179.2888398 | X7: ='PL, BS, CF'!X25 -> 179.1720622 | Y7: ='PL, BS, CF'!Y25 -> 179.5385899 | Z7: ='PL, BS, CF'!Z25 -> 178.2913404 | AA7: ='PL, BS, CF'!AA25 -> 177.4907283 | AB7: ='PL, BS, CF'!AB25 -> 176.4232743
A8: Estimated other Business Book Profit (Tobe Set Off) | B8: USD | C8: =C16 -> 0 | D8: 0 | E8: 0 | F8: 0 | G8: 0 | H8: 0 | I8: 0 | J8: 0 | K8: 0 | L8: 0 | M8: 0 | N8: 0 | O8: 0 | P8: 0 | Q8: 0 | R8: 0 | S8: 0 | T8: 0 | U8: 0 | V8: 0 | W8: 0 | X8: 0 | Y8: 0 | Z8: 0 | AA8: 0 | AB8: 0
A11: Add Book depreciation | B11: USD | C11: ='Operating Costs'!C26 -> 2898.986342 | D11: ='Operating Costs'!D26 -> 4967.746549 | E11: ='Operating Costs'!E26 -> 4967.746549 | F11: ='Operating Costs'!F26 -> 4967.746549 | G11: ='Operating Costs'!G26 -> 4967.746549 | H11: ='Operating Costs'!H26 -> 4967.746549 | I11: ='Operating Costs'!I26 -> 4967.746549 | J11: ='Operating Costs'!J26 -> 4967.746549 | K11: ='Operating Costs'!K26 -> 4967.746549 | L11: ='Operating Costs'!L26 -> 4967.746549 | M11: ='Operating Costs'!M26 -> 4967.746549 | N11: ='Operating Costs'!N26 -> 4967.746549 | O11: ='Operating Costs'!O26 -> 4967.746549 | P11: ='Operating Costs'!P26 -> 4967.746549 | Q11: ='Operating Costs'!Q26 -> 4967.746549 | R11: ='Operating Costs'!R26 -> 4967.746549 | S11: ='Operating Costs'!S26 -> 4967.746549 | T11: ='Operating Costs'!T26 -> 4967.746549 | U11: ='Operating Costs'!U26 -> 4967.746549 | V11: ='Operating Costs'!V26 -> 1767.684658 | W11: ='Operating Costs'!W26 -> 0 | X11: ='Operating Costs'!X26 -> 0 | Y11: ='Operating Costs'!Y26 -> 0 | Z11: ='Operating Costs'!Z26 -> 0 | AA11: ='Operating Costs'!AA26 -> 0 | AB11: ='Operating Costs'!AB26 -> 0
A12: Less tax depreciation | B12: USD | C12: ='Operating Costs'!C32 -> 99038.00935 | D12: ='Operating Costs'!D32 -> 0 | E12: ='Operating Costs'!E32 -> 0 | F12: ='Operating Costs'!F32 -> 0 | G12: ='Operating Costs'!G32 -> 0 | H12: ='Operating Costs'!H32 -> 0 | I12: ='Operating Costs'!I32 -> 0 | J12: ='Operating Costs'!J32 -> 0 | K12: ='Operating Costs'!K32 -> 0 | L12: ='Operating Costs'!L32 -> 0 | M12: ='Operating Costs'!M32 -> 0 | N12: ='Operating Costs'!N32 -> 0 | O12: ='Operating Costs'!O32 -> 0 | P12: ='Operating Costs'!P32 -> 0 | Q12: ='Operating Costs'!Q32 -> 0 | R12: ='Operating Costs'!R32 -> 0 | S12: ='Operating Costs'!S32 -> 0 | T12: ='Operating Costs'!T32 -> 0 | U12: ='Operating Costs'!U32 -> 0 | V12: ='Operating Costs'!V32 -> 0 | W12: ='Operating Costs'!W32 -> 0 | X12: ='Operating Costs'!X32 -> 0 | Y12: ='Operating Costs'!Y32 -> 0 | Z12: ='Operating Costs'!Z32 -> 0 | AA12: ='Operating Costs'!AA32 -> 0 | AB12: ='Operating Costs'!AB32 -> 0
A13: Taxable Income for the year | B13: USD | C13: =+C7+C11-C12 -> -103529.9703 | D13: -7683.325742 | E13: -7414.474249 | F13: -6892.488412 | G13: -6370.02336 | H13: -5847.599588 | I13: -5324.675254 | J13: -4802.897194 | K13: -4280.630253 | L13: -3758.428019 | M13: -3235.717089 | N13: -2714.246231 | O13: -2192.282313 | P13: -1670.414454 | Q13: -1148.036222 | R13: -627.0050186 | S13: -105.4842823 | T13: 161.7010583 | U13: 175.1918777 | V13: 179.2122864 | W13: 179.2888398 | X13: 179.1720622 | Y13: 179.5385899 | Z13: 178.2913404 | AA13: 177.4907283 | AB13: 176.4232743
A15: Loss carried forward / Profit in other business | B15: USD | C15: =+MIN(0,B18) -> 0 | D15: -103529.9703 | E15: -111213.296 | F15: -118627.7703 | G15: -125520.2587 | H15: -131890.2821 | I15: -137737.8817 | J15: -143062.5569 | K15: -147865.4541 | L15: -152146.0844 | M15: -155904.5124 | N15: -159140.2295 | O15: -161854.4757 | P15: -164046.758 | Q15: -165717.1725 | R15: -166865.2087 | S15: -167492.2137 | T15: -167597.698 | U15: -167435.9969 | V15: -167260.805 | W15: -167081.5928 | X15: -166902.3039 | Y15: -166723.1319 | Z15: -166543.5933 | AA15: -166365.3019 | AB15: -166187.8112
A16: Estimated Taxable Income from other Business | B16: USD | C16: 0 | D16: 0 | E16: 0 | F16: 0 | G16: 0 | H16: 0 | I16: 0
A17: Add: profit for the year | B17: USD | C17: =+C13 -> -103529.9703 | D17: -7683.325742 | E17: -7414.474249 | F17: -6892.488412 | G17: -6370.02336 | H17: -5847.599588 | I17: -5324.675254 | J17: -4802.897194 | K17: -4280.630253 | L17: -3758.428019 | M17: -3235.717089 | N17: -2714.246231 | O17: -2192.282313 | P17: -1670.414454 | Q17: -1148.036222 | R17: -627.0050186 | S17: -105.4842823 | T17: 161.7010583 | U17: 175.1918777 | V17: 179.2122864 | W17: 179.2888398 | X17: 179.1720622 | Y17: 179.5385899 | Z17: 178.2913404 | AA17: 177.4907283 | AB17: 176.4232743
A18: Taxable Income for the year | B18: USD | C18: =+C15+C16+C17 -> -103529.9703 | D18: -111213.296 | E18: -118627.7703 | F18: -125520.2587 | G18: -131890.2821 | H18: -137737.8817 | I18: -143062.5569 | J18: -147865.4541 | K18: -152146.0844 | L18: -155904.5124 | M18: -159140.2295 | N18: -161854.4757 | O18: -164046.758 | P18: -165717.1725 | Q18: -166865.2087 | R18: -167492.2137 | S18: -167597.698 | T18: -167435.9969 | U18: -167260.805 | V18: -167081.5928 | W18: -166902.3039 | X18: -166723.1319 | Y18: -166543.5933 | Z18: -166365.3019 | AA18: -166187.8112 | AB18: -166011.3879
A20: MAT | B20: USD | C20: =+MAX(0,C7*Inputs!$I$51) -> 0 | D20: =+MAX(0,D7*Inputs!$I$51) -> 0 | E20: =+MAX(0,E7*Inputs!$I$51) -> 0 | F20: =+MAX(0,F7*Inputs!$I$51) -> 0 | G20: =+MAX(0,G7*Inputs!$I$51) -> 0 | H20: =+MAX(0,H7*Inputs!$I$51) -> 0 | I20: =+MAX(0,I7*Inputs!$I$51) -> 0 | J20: =+MAX(0,J7*Inputs!$I$51) -> 0 | K20: =+MAX(0,K7*Inputs!$I$51) -> 0 | L20: =+MAX(0,L7*Inputs!$I$51) -> 0 | M20: =+MAX(0,M7*Inputs!$I$51) -> 0 | N20: =+MAX(0,N7*Inputs!$I$51) -> 0 | O20: =+MAX(0,O7*Inputs!$I$51) -> 0 | P20: =+MAX(0,P7*Inputs!$I$51) -> 0 | Q20: =+MAX(0,Q7*Inputs!$I$51) -> 0 | R20: =+MAX(0,R7*Inputs!$I$51) -> 0 | S20: =+MAX(0,S7*Inputs!$I$51) -> 0 | T20: =+MAX(0,T7*Inputs!$I$51) -> 0 | U20: =+MAX(0,U7*Inputs!$I$51) -> 0 | V20: =+MAX(0,V7*Inputs!$I$51) -> 0 | W20: =+MAX(0,W7*Inputs!$I$51) -> 35.87166285 | X20: =+MAX(0,X7*Inputs!$I$51) -> 35.84829828 | Y20: =+MAX(0,Y7*Inputs!$I$51) -> 35.92163221 | Z20: =+MAX(0,Z7*Inputs!$I$51) -> 35.67208565 | AA20: =+MAX(0,AA7*Inputs!$I$51) -> 35.51190119 | AB20: =+MAX(0,AB7*Inputs!$I$51) -> 35.29832766
A21: Normal Tax before considering 80 IA | B21: USD | C21: =+MAX(0,C18*Inputs!$H$51) -> 0 | D21: =+MAX(0,D18*Inputs!$H$51) -> 0 | E21: =+MAX(0,E18*Inputs!$H$51) -> 0 | F21: =+MAX(0,F18*Inputs!$H$51) -> 0 | G21: =+MAX(0,G18*Inputs!$H$51) -> 0 | H21: =+MAX(0,H18*Inputs!$H$51) -> 0 | I21: =+MAX(0,I18*Inputs!$H$51) -> 0 | J21: =+MAX(0,J18*Inputs!$H$51) -> 0 | K21: =+MAX(0,K18*Inputs!$H$51) -> 0 | L21: =+MAX(0,L18*Inputs!$H$51) -> 0 | M21: =+MAX(0,M18*Inputs!$H$51) -> 0 | N21: =+MAX(0,N18*Inputs!$H$51) -> 0 | O21: =+MAX(0,O18*Inputs!$H$51) -> 0 | P21: =+MAX(0,P18*Inputs!$H$51) -> 0 | Q21: =+MAX(0,Q18*Inputs!$H$51) -> 0 | R21: =+MAX(0,R18*Inputs!$H$51) -> 0 | S21: =+MAX(0,S18*Inputs!$H$51) -> 0 | T21: =+MAX(0,T18*Inputs!$H$51) -> 0 | U21: =+MAX(0,U18*Inputs!$H$51) -> 0 | V21: =+MAX(0,V18*Inputs!$H$51) -> 0 | W21: =+MAX(0,W18*Inputs!$H$51) -> 0 | X21: =+MAX(0,X18*Inputs!$H$51) -> 0 | Y21: =+MAX(0,Y18*Inputs!$H$51) -> 0 | Z21: =+MAX(0,Z18*Inputs!$H$51) -> 0 | AA21: =+MAX(0,AA18*Inputs!$H$51) -> 0 | AB21: =+MAX(0,AB18*Inputs!$H$51) -> 0
A23: 80 IA used in these years | C23: 0 | D23: 0 | E23: 0 | F23: 0 | G23: 0 | H23: 1 | I23: 1 | J23: 1 | K23: 1 | L23: 1 | M23: 1 | N23: 1 | O23: 1 | P23: 1 | Q23: 1 | R23: 0 | S23: 0 | T23: 0 | U23: 0 | V23: 0 | W23: 0 | X23: 0 | Y23: 0 | Z23: 0 | AA23: 0 | AB23: 0
A24: Corporate tax after considering 80 IA | C24: =+IF(C23>0,0,C21) -> 0 | D24: 0 | E24: 0 | F24: 0 | G24: 0 | H24: 0 | I24: 0 | J24: 0 | K24: 0 | L24: 0 | M24: 0 | N24: 0 | O24: 0 | P24: 0 | Q24: 0 | R24: 0 | S24: 0 | T24: 0 | U24: 0 | V24: 0 | W24: 0 | X24: 0 | Y24: 0 | Z24: 0 | AA24: 0 | AB24: 0
A26: Tax payable before considering MAT Credit | B26: USD | C26: =+MAX(C20,C24) -> 0 | D26: 0 | E26: 0 | F26: 0 | G26: 0 | H26: 0 | I26: 0 | J26: 0 | K26: 0 | L26: 0 | M26: 0 | N26: 0 | O26: 0 | P26: 0 | Q26: 0 | R26: 0 | S26: 0 | T26: 0 | U26: 0 | V26: 0 | W26: 35.87166285 | X26: 35.84829828 | Y26: 35.92163221 | Z26: 35.67208565 | AA26: 35.51190119 | AB26: 35.29832766
A27: MAT Credit For the Year | B27: USD | C27: =MAX(0,(C20-C24)) -> 0 | D27: 0 | E27: 0 | F27: 0 | G27: 0 | H27: 0 | I27: 0 | J27: 0 | K27: 0 | L27: 0 | M27: 0 | N27: 0 | O27: 0 | P27: 0 | Q27: 0 | R27: 0 | S27: 0 | T27: 0 | U27: 0 | V27: 0 | W27: 35.87166285 | X27: 35.84829828 | Y27: 35.92163221 | Z27: 35.67208565 | AA27: 35.51190119 | AB27: 35.29832766
A28: Opening Balance MAT Credit | B28: USD | C28: =MAX(C27,0) -> 0 | D28: =MAX(0,C30+D27) -> 0 | E28: 0 | F28: 0 | G28: 0 | H28: 0 | I28: 0 | J28: 0 | K28: 0 | L28: 0 | M28: 0 | N28: =MAX(0,M30+N27-C27) -> 0 | O28: 0 | P28: 0 | Q28: 0 | R28: 0 | S28: 0 | T28: 0 | U28: 0 | V28: 0 | W28: 35.87166285 | X28: 71.71996113 | Y28: 107.6415933 | Z28: 143.313679 | AA28: 178.8255802 | AB28: 214.1239078
A29: Mat Credit Utilised During Year | B29: USD | C29: =IF(C26>C20,(IF(C21>C20,MAX(MIN(C28,(C21-C20)),0),0)),0) -> 0 | D29: 0 | E29: 0 | F29: 0 | G29: 0 | H29: 0 | I29: 0 | J29: 0 | K29: 0 | L29: 0 | M29: 0 | N29: 0 | O29: 0 | P29: 0 | Q29: 0 | R29: 0 | S29: 0 | T29: 0 | U29: 0 | V29: 0 | W29: 0 | X29: 0 | Y29: 0 | Z29: 0 | AA29: 0 | AB29: 0
A30: Closing Balance of MAT Credit | B30: USD | C30: =MAX(C28-C29,0) -> 0 | D30: 0 | E30: 0 | F30: 0 | G30: 0 | H30: 0 | I30: 0 | J30: 0 | K30: 0 | L30: 0 | M30: 0 | N30: 0 | O30: 0 | P30: 0 | Q30: 0 | R30: 0 | S30: 0 | T30: 0 | U30: 0 | V30: 0 | W30: 35.87166285 | X30: 71.71996113 | Y30: 107.6415933 | Z30: 143.313679 | AA30: 178.8255802 | AB30: 214.1239078
A32: Tax payable after considering MAT Credit | B32: USD | C32: =+C26-C29 -> 0 | D32: 0 | E32: 0 | F32: 0 | G32: 0 | H32: 0 | I32: 0 | J32: 0 | K32: 0 | L32: 0 | M32: 0 | N32: 0 | O32: 0 | P32: 0 | Q32: 0 | R32: 0 | S32: 0 | T32: 0 | U32: 0 | V32: 0 | W32: 35.87166285 | X32: 35.84829828 | Y32: 35.92163221 | Z32: 35.67208565 | AA32: 35.51190119 | AB32: 35.29832766
A34: Applicable Tax Rate | B34: % | C34: =IF(C32=0,0,(IF(C24>C20,Inputs!$H$51,Inputs!$I$51))) -> 0 | D34: =IF(D32=0,0,(IF(D24>D20,Inputs!$H$51,Inputs!$I$51))) -> 0 | E34: =IF(E32=0,0,(IF(E24>E20,Inputs!$H$51,Inputs!$I$51))) -> 0 | F34: =IF(F32=0,0,(IF(F24>F20,Inputs!$H$51,Inputs!$I$51))) -> 0 | G34: =IF(G32=0,0,(IF(G24>G20,Inputs!$H$51,Inputs!$I$51))) -> 0 | H34: =IF(H32=0,0,(IF(H24>H20,Inputs!$H$51,Inputs!$I$51))) -> 0 | I34: =IF(I32=0,0,(IF(I24>I20,Inputs!$H$51,Inputs!$I$51))) -> 0 | J34: =IF(J32=0,0,(IF(J24>J20,Inputs!$H$51,Inputs!$I$51))) -> 0 | K34: =IF(K32=0,0,(IF(K24>K20,Inputs!$H$51,Inputs!$I$51))) -> 0 | L34: =IF(L32=0,0,(IF(L24>L20,Inputs!$H$51,Inputs!$I$51))) -> 0 | M34: =IF(M32=0,0,(IF(M24>M20,Inputs!$H$51,Inputs!$I$51))) -> 0 | N34: =IF(N32=0,0,(IF(N24>N20,Inputs!$H$51,Inputs!$I$51))) -> 0 | O34: =IF(O32=0,0,(IF(O24>O20,Inputs!$H$51,Inputs!$I$51))) -> 0 | P34: =IF(P32=0,0,(IF(P24>P20,Inputs!$H$51,Inputs!$I$51))) -> 0 | Q34: =IF(Q32=0,0,(IF(Q24>Q20,Inputs!$H$51,Inputs!$I$51))) -> 0 | R34: =IF(R32=0,0,(IF(R24>R20,Inputs!$H$51,Inputs!$I$51))) -> 0 | S34: =IF(S32=0,0,(IF(S24>S20,Inputs!$H$51,Inputs!$I$51))) -> 0 | T34: =IF(T32=0,0,(IF(T24>T20,Inputs!$H$51,Inputs!$I$51))) -> 0 | U34: =IF(U32=0,0,(IF(U24>U20,Inputs!$H$51,Inputs!$I$51))) -> 0 | V34: =IF(V32=0,0,(IF(V24>V20,Inputs!$H$51,Inputs!$I$51))) -> 0 | W34: =IF(W32=0,0,(IF(W24>W20,Inputs!$H$51,Inputs!$I$51))) -> 0.2000775 | X34: =IF(X32=0,0,(IF(X24>X20,Inputs!$H$51,Inputs!$I$51))) -> 0.2000775 | Y34: =IF(Y32=0,0,(IF(Y24>Y20,Inputs!$H$51,Inputs!$I$51))) -> 0.2000775 | Z34: =IF(Z32=0,0,(IF(Z24>Z20,Inputs!$H$51,Inputs!$I$51))) -> 0.2000775 | AA34: =IF(AA32=0,0,(IF(AA24>AA20,Inputs!$H$51,Inputs!$I$51))) -> 0.2000775 | AB34: =IF(AB32=0,0,(IF(AB24>AB20,Inputs!$H$51,Inputs!$I$51))) -> 0.2000775

Sheet Working Cap.
A2: Working Capital
A3: No. of Year | C3: =+'Operating Costs'!C7 -> 1 | D3: =+'Operating Costs'!D7 -> 2 | E3: =+'Operating Costs'!E7 -> 3 | F3: =+'Operating Costs'!F7 -> 4 | G3: =+'Operating Costs'!G7 -> 5 | H3: =+'Operating Costs'!H7 -> 6 | I3: =+'Operating Costs'!I7 -> 7 | J3: =+'Operating Costs'!J7 -> 8 | K3: =+'Operating Costs'!K7 -> 9 | L3: =+'Operating Costs'!L7 -> 10 | M3: =+'Operating Costs'!M7 -> 11 | N3: =+'Operating Costs'!N7 -> 12 | O3: =+'Operating Costs'!O7 -> 13 | P3: =+'Operating Costs'!P7 -> 14 | Q3: =+'Operating Costs'!Q7 -> 15 | R3: =+'Operating Costs'!R7 -> 16 | S3: =+'Operating Costs'!S7 -> 17 | T3: =+'Operating Costs'!T7 -> 18 | U3: =+'Operating Costs'!U7 -> 19 | V3: =+'Operating Costs'!V7 -> 20 | W3: =+'Operating Costs'!W7 -> 21 | X3: =+'Operating Costs'!X7 -> 22 | Y3: =+'Operating Costs'!Y7 -> 23 | Z3: =+'Operating Costs'!Z7 -> 24 | AA3: =+'Operating Costs'!AA7 -> 25 | AB3: =+'Operating Costs'!AB7 -> 26
A4: Year Start Date | C4: =+'Operating Costs'!C8 -> 2017-08-31 | D4: =+'Operating Costs'!D8 -> 2018-04-01 | E4: =+'Operating Costs'!E8 -> 2019-04-01 | F4: =+'Operating Costs'!F8 -> 2020-04-01 | G4: =+'Operating Costs'!G8 -> 2021-04-01 | H4: =+'Operating Costs'!H8 -> 2022-04-01 | I4: =+'Operating Costs'!I8 -> 2023-04-01 | J4: =+'Operating Costs'!J8 -> 2024-04-01 | K4: =+'Operating Costs'!K8 -> 2025-04-01 | L4: =+'Operating Costs'!L8 -> 2026-04-01 | M4: =+'Operating Costs'!M8 -> 2027-04-01 | N4: =+'Operating Costs'!N8 -> 2028-04-01 | O4: =+'Operating Costs'!O8 -> 2029-04-01 | P4: =+'Operating Costs'!P8 -> 2030-04-01 | Q4: =+'Operating Costs'!Q8 -> 2031-04-01 | R4: =+'Operating Costs'!R8 -> 2032-04-01 | S4: =+'Operating Costs'!S8 -> 2033-04-01 | T4: =+'Operating Costs'!T8 -> 2034-04-01 | U4: =+'Operating Costs'!U8 -> 2035-04-01 | V4: =+'Operating Costs'!V8 -> 2036-04-01 | W4: =+'Operating Costs'!W8 -> 2037-04-01 | X4: =+'Operating Costs'!X8 -> 2038-04-01 | Y4: =+'Operating Costs'!Y8 -> 2039-04-01 | Z4: =+'Operating Costs'!Z8 -> 2040-04-01 | AA4: =+'Operating Costs'!AA8 -> 2041-04-01 | AB4: =+'Operating Costs'!AB8 -> 2042-04-01
A5: Year End Date | C5: =+'Operating Costs'!C9 -> 2018-03-31 | D5: =+'Operating Costs'!D9 -> 2019-03-31 | E5: =+'Operating Costs'!E9 -> 2020-03-31 | F5: =+'Operating Costs'!F9 -> 2021-03-31 | G5: =+'Operating Costs'!G9 -> 2022-03-31 | H5: =+'Operating Costs'!H9 -> 2023-03-31 | I5: =+'Operating Costs'!I9 -> 2024-03-31 | J5: =+'Operating Costs'!J9 -> 2025-03-31 | K5: =+'Operating Costs'!K9 -> 2026-03-31 | L5: =+'Operating Costs'!L9 -> 2027-03-31 | M5: =+'Operating Costs'!M9 -> 2028-03-31 | N5: =+'Operating Costs'!N9 -> 2029-03-31 | O5: =+'Operating Costs'!O9 -> 2030-03-31 | P5: =+'Operating Costs'!P9 -> 2031-03-31 | Q5: =+'Operating Costs'!Q9 -> 2032-03-31 | R5: =+'Operating Costs'!R9 -> 2033-03-31 | S5: =+'Operating Costs'!S9 -> 2034-03-31 | T5: =+'Operating Costs'!T9 -> 2035-03-31 | U5: =+'Operating Costs'!U9 -> 2036-03-31 | V5: =+'Operating Costs'!V9 -> 2037-03-31 | W5: =+'Operating Costs'!W9 -> 2038-03-31 | X5: =+'Operating Costs'!X9 -> 2039-03-31 | Y5: =+'Operating Costs'!Y9 -> 2040-03-31 | Z5: =+'Operating Costs'!Z9 -> 2041-03-31 | AA5: =+'Operating Costs'!AA9 -> 2042-03-31 | AB5: =+'Operating Costs'!AB9 -> 2043-03-31
A7: O&M Expense | B7: USD | C7: =+'Operating Costs'!C38*Inputs!$C$70/12 -> 0.6710958904 | D7: =+'Operating Costs'!D38*Inputs!$C$70/12 -> 1.2305 | E7: =+'Operating Costs'!E38*Inputs!$C$70/12 -> 1.316635 | F7: =+'Operating Costs'!F38*Inputs!$C$70/12 -> 1.40879945 | G7: =+'Operating Costs'!G38*Inputs!$C$70/12 -> 1.507415412 | H7: =+'Operating Costs'!H38*Inputs!$C$70/12 -> 1.61293449 | I7: =+'Operating Costs'!I38*Inputs!$C$70/12 -> 1.725839905 | J7: =+'Operating Costs'!J38*Inputs!$C$70/12 -> 1.846648698 | K7: =+'Operating Costs'!K38*Inputs!$C$70/12 -> 1.975914107 | L7: =+'Operating Costs'!L38*Inputs!$C$70/12 -> 2.114228094 | M7: =+'Operating Costs'!M38*Inputs!$C$70/12 -> 2.262224061 | N7: =+'Operating Costs'!N38*Inputs!$C$70/12 -> 2.420579745 | O7: =+'Operating Costs'!O38*Inputs!$C$70/12 -> 2.590020327 | P7: =+'Operating Costs'!P38*Inputs!$C$70/12 -> 2.77132175 | Q7: =+'Operating Costs'!Q38*Inputs!$C$70/12 -> 2.965314273 | R7: =+'Operating Costs'!R38*Inputs!$C$70/12 -> 3.172886272 | S7: =+'Operating Costs'!S38*Inputs!$C$70/12 -> 3.394988311 | T7: =+'Operating Costs'!T38*Inputs!$C$70/12 -> 3.632637493 | U7: =+'Operating Costs'!U38*Inputs!$C$70/12 -> 3.886922117 | V7: =+'Operating Costs'!V38*Inputs!$C$70/12 -> 4.159006665 | W7: =+'Operating Costs'!W38*Inputs!$C$70/12 -> 4.450137132 | X7: =+'Operating Costs'!X38*Inputs!$C$70/12 -> 4.761646731 | Y7: =+'Operating Costs'!Y38*Inputs!$C$70/12 -> 5.094962002 | Z7: =+'Operating Costs'!Z38*Inputs!$C$70/12 -> 5.451609342 | AA7: =+'Operating Costs'!AA38*Inputs!$C$70/12 -> 5.833221996 | AB7: =+'Operating Costs'!AB38*Inputs!$C$70/12 -> 6.241547536
A8: Receivables | B8: USD | C8: =+Revenue!C21*Inputs!$C$71/12 -> 8.9681094 | D8: =+Revenue!D21*Inputs!$C$71/12 -> 15.59686852 | E8: =+Revenue!E21*Inputs!$C$71/12 -> 15.8726297 | F8: =+Revenue!F21*Inputs!$C$71/12 -> 16.06511786 | G8: =+Revenue!G21*Inputs!$C$71/12 -> 16.30448811 | H8: =+Revenue!H21*Inputs!$C$71/12 -> 16.54742499 | I8: =+Revenue!I21*Inputs!$C$71/12 -> 16.83999253 | J8: =+Revenue!J21*Inputs!$C$71/12 -> 17.04421195 | K8: =+Revenue!K21*Inputs!$C$71/12 -> 17.2981707 | L8: =+Revenue!L21*Inputs!$C$71/12 -> 17.55591345 | M8: =+Revenue!M21*Inputs!$C$71/12 -> 17.86631162 | N8: =+Revenue!N21*Inputs!$C$71/12 -> 18.08297726 | O8: =+Revenue!O21*Inputs!$C$71/12 -> 18.35241362 | P8: =+Revenue!P21*Inputs!$C$71/12 -> 18.62586458 | Q8: =+Revenue!Q21*Inputs!$C$71/12 -> 18.95518007 | R8: =+Revenue!R21*Inputs!$C$71/12 -> 19.18505047 | S8: =+Revenue!S21*Inputs!$C$71/12 -> 19.47090773 | T8: =+Revenue!T21*Inputs!$C$71/12 -> 19.76102425 | U8: =+Revenue!U21*Inputs!$C$71/12 -> 20.11040999 | V8: =+Revenue!V21*Inputs!$C$71/12 -> 20.35428992 | W8: =+Revenue!W21*Inputs!$C$71/12 -> 20.65756884 | X8: =+Revenue!X21*Inputs!$C$71/12 -> 20.96536661 | Y8: =+Revenue!Y21*Inputs!$C$71/12 -> 21.33604578 | Z8: =+Revenue!Z21*Inputs!$C$71/12 -> 21.59478906 | AA8: =+Revenue!AA21*Inputs!$C$71/12 -> 21.91655142 | AB8: =+Revenue!AB21*Inputs!$C$71/12 -> 22.24310803
A9: Main. Spares | B9: USD | C9: =+'Operating Costs'!C38*Inputs!$C$72 -> 0.08053150685 | D9: =+'Operating Costs'!D38*Inputs!$C$72 -> 0.14766 | E9: =+'Operating Costs'!E38*Inputs!$C$72 -> 0.1579962 | F9: =+'Operating Costs'!F38*Inputs!$C$72 -> 0.169055934 | G9: =+'Operating Costs'!G38*Inputs!$C$72 -> 0.1808898494 | H9: =+'Operating Costs'!H38*Inputs!$C$72 -> 0.1935521388 | I9: =+'Operating Costs'!I38*Inputs!$C$72 -> 0.2071007886 | J9: =+'Operating Costs'!J38*Inputs!$C$72 -> 0.2215978438 | K9: =+'Operating Costs'!K38*Inputs!$C$72 -> 0.2371096928 | L9: =+'Operating Costs'!L38*Inputs!$C$72 -> 0.2537073713 | M9: =+'Operating Costs'!M38*Inputs!$C$72 -> 0.2714668873 | N9: =+'Operating Costs'!N38*Inputs!$C$72 -> 0.2904695694 | O9: =+'Operating Costs'!O38*Inputs!$C$72 -> 0.3108024393 | P9: =+'Operating Costs'!P38*Inputs!$C$72 -> 0.33255861 | Q9: =+'Operating Costs'!Q38*Inputs!$C$72 -> 0.3558377127 | R9: =+'Operating Costs'!R38*Inputs!$C$72 -> 0.3807463526 | S9: =+'Operating Costs'!S38*Inputs!$C$72 -> 0.4073985973 | T9: =+'Operating Costs'!T38*Inputs!$C$72 -> 0.4359164991 | U9: =+'Operating Costs'!U38*Inputs!$C$72 -> 0.4664306541 | V9: =+'Operating Costs'!V38*Inputs!$C$72 -> 0.4990807998 | W9: =+'Operating Costs'!W38*Inputs!$C$72 -> 0.5340164558 | X9: =+'Operating Costs'!X38*Inputs!$C$72 -> 0.5713976077 | Y9: =+'Operating Costs'!Y38*Inputs!$C$72 -> 0.6113954403 | Z9: =+'Operating Costs'!Z38*Inputs!$C$72 -> 0.6541931211 | AA9: =+'Operating Costs'!AA38*Inputs!$C$72 -> 0.6999866396 | AB9: =+'Operating Costs'!AB38*Inputs!$C$72 -> 0.7489857043
A10: Total Working Capital Required | B10: USD | C10: =SUM(C7:C9) -> 9.719736797 | D10: 16.97502852 | E10: 17.3472609 | F10: 17.64297324 | G10: 17.99279338 | H10: 18.35391162 | I10: 18.77293322 | J10: 19.11245849 | K10: 19.5111945 | L10: 19.92384891 | M10: 20.40000257 | N10: 20.79402657 | O10: 21.25323638 | P10: 21.72974494 | Q10: 22.27633206 | R10: 22.7386831 | S10: 23.27329463 | T10: 23.82957824 | U10: 24.46376276 | V10: 25.01237738 | W10: 25.64172243 | X10: 26.29841095 | Y10: 27.04240323 | Z10: 27.70059152 | AA10: 28.44976005 | AB10: 29.23364127
A12: Interest on Working Capital | B12: USD | C12: =+C10*Inputs!$C$73 -> 1.069171048 | D12: =+D10*Inputs!$C$73 -> 1.867253137 | E12: =+E10*Inputs!$C$73 -> 1.908198699 | F12: =+F10*Inputs!$C$73 -> 1.940727057 | G12: =+G10*Inputs!$C$73 -> 1.979207271 | H12: =+H10*Inputs!$C$73 -> 2.018930278 | I12: =+I10*Inputs!$C$73 -> 2.065022654 | J12: =+J10*Inputs!$C$73 -> 2.102370434 | K12: =+K10*Inputs!$C$73 -> 2.146231395 | L12: =+L10*Inputs!$C$73 -> 2.19162338 | M12: =+M10*Inputs!$C$73 -> 2.244000282 | N12: =+N10*Inputs!$C$73 -> 2.287342923 | O12: =+O10*Inputs!$C$73 -> 2.337856002 | P12: =+P10*Inputs!$C$73 -> 2.390271944 | Q12: =+Q10*Inputs!$C$73 -> 2.450396526 | R12: =+R10*Inputs!$C$73 -> 2.501255141 | S12: =+S10*Inputs!$C$73 -> 2.56006241 | T12: =+T10*Inputs!$C$73 -> 2.621253607 | U12: =+U10*Inputs!$C$73 -> 2.691013903 | V12: =+V10*Inputs!$C$73 -> 2.751361512 | W12: =+W10*Inputs!$C$73 -> 2.820589467 | X12: =+X10*Inputs!$C$73 -> 2.892825205 | Y12: =+Y10*Inputs!$C$73 -> 2.974664355 | Z12: =+Z10*Inputs!$C$73 -> 3.047065068 | AA12: =+AA10*Inputs!$C$73 -> 3.129473606 | AB12: =+AB10*Inputs!$C$73 -> 3.21570054

Sheet PL, BS, CF
A2: No. of Year | C2: =+'Operating Costs'!C7 -> 1 | D2: =+'Operating Costs'!D7 -> 2 | E2: =+'Operating Costs'!E7 -> 3 | F2: =+'Operating Costs'!F7 -> 4 | G2: =+'Operating Costs'!G7 -> 5 | H2: =+'Operating Costs'!H7 -> 6 | I2: =+'Operating Costs'!I7 -> 7 | J2: =+'Operating Costs'!J7 -> 8 | K2: =+'Operating Costs'!K7 -> 9 | L2: =+'Operating Costs'!L7 -> 10 | M2: =+'Operating Costs'!M7 -> 11 | N2: =+'Operating Costs'!N7 -> 12 | O2: =+'Operating Costs'!O7 -> 13 | P2: =+'Operating Costs'!P7 -> 14 | Q2: =+'Operating Costs'!Q7 -> 15 | R2: =+'Operating Costs'!R7 -> 16 | S2: =+'Operating Costs'!S7 -> 17 | T2: =+'Operating Costs'!T7 -> 18 | U2: =+'Operating Costs'!U7 -> 19 | V2: =+'Operating Costs'!V7 -> 20 | W2: =+'Operating Costs'!W7 -> 21 | X2: =+'Operating Costs'!X7 -> 22 | Y2: =+'Operating Costs'!Y7 -> 23 | Z2: =+'Operating Costs'!Z7 -> 24 | AA2: =+'Operating Costs'!AA7 -> 25 | AB2: =+'Operating Costs'!AB7 -> 26
A3: Year Start Date | C3: =+'Operating Costs'!C8 -> 2017-08-31 | D3: =+'Operating Costs'!D8 -> 2018-04-01 | E3: =+'Operating Costs'!E8 -> 2019-04-01 | F3: =+'Operating Costs'!F8 -> 2020-04-01 | G3: =+'Operating Costs'!G8 -> 2021-04-01 | H3: =+'Operating Costs'!H8 -> 2022-04-01 | I3: =+'Operating Costs'!I8 -> 2023-04-01 | J3: =+'Operating Costs'!J8 -> 2024-04-01 | K3: =+'Operating Costs'!K8 -> 2025-04-01 | L3: =+'Operating Costs'!L8 -> 2026-04-01 | M3: =+'Operating Costs'!M8 -> 2027-04-01 | N3: =+'Operating Costs'!N8 -> 2028-04-01 | O3: =+'Operating Costs'!O8 -> 2029-04-01 | P3: =+'Operating Costs'!P8 -> 2030-04-01 | Q3: =+'Operating Costs'!Q8 -> 2031-04-01 | R3: =+'Operating Costs'!R8 -> 2032-04-01 | S3: =+'Operating Costs'!S8 -> 2033-04-01 | T3: =+'Operating Costs'!T8 -> 2034-04-01 | U3: =+'Operating Costs'!U8 -> 2035-04-01 | V3: =+'Operating Costs'!V8 -> 2036-04-01 | W3: =+'Operating Costs'!W8 -> 2037-04-01 | X3: =+'Operating Costs'!X8 -> 2038-04-01 | Y3: =+'Operating Costs'!Y8 -> 2039-04-01 | Z3: =+'Operating Costs'!Z8 -> 2040-04-01 | AA3: =+'Operating Costs'!AA8 -> 2041-04-01 | AB3: =+'Operating Costs'!AB8 -> 2042-04-01
A4: Year End Date | C4: =+'Operating Costs'!C9 -> 2018-03-31 | D4: =+'Operating Costs'!D9 -> 2019-03-31 | E4: =+'Operating Costs'!E9 -> 2020-03-31 | F4: =+'Operating Costs'!F9 -> 2021-03-31 | G4: =+'Operating Costs'!G9 -> 2022-03-31 | H4: =+'Operating Costs'!H9 -> 2023-03-31 | I4: =+'Operating Costs'!I9 -> 2024-03-31 | J4: =+'Operating Costs'!J9 -> 2025-03-31 | K4: =+'Operating Costs'!K9 -> 2026-03-31 | L4: =+'Operating Costs'!L9 -> 2027-03-31 | M4: =+'Operating Costs'!M9 -> 2028-03-31 | N4: =+'Operating Costs'!N9 -> 2029-03-31 | O4: =+'Operating Costs'!O9 -> 2030-03-31 | P4: =+'Operating Costs'!P9 -> 2031-03-31 | Q4: =+'Operating Costs'!Q9 -> 2032-03-31 | R4: =+'Operating Costs'!R9 -> 2033-03-31 | S4: =+'Operating Costs'!S9 -> 2034-03-31 | T4: =+'Operating Costs'!T9 -> 2035-03-31 | U4: =+'Operating Costs'!U9 -> 2036-03-31 | V4: =+'Operating Costs'!V9 -> 2037-03-31 | W4: =+'Operating Costs'!W9 -> 2038-03-31 | X4: =+'Operating Costs'!X9 -> 2039-03-31 | Y4: =+'Operating Costs'!Y9 -> 2040-03-31 | Z4: =+'Operating Costs'!Z9 -> 2041-03-31 | AA4: =+'Operating Costs'!AA9 -> 2042-03-31 | AB4: =+'Operating Costs'!AB9 -> 2043-03-31
A6: Profit and Loss A/c
A7: Net Revenue | B7: USD | C7: =Revenue!C21 -> 107.6173128 | D7: =Revenue!D21 -> 187.1624222 | E7: =Revenue!E21 -> 190.4715564 | F7: =Revenue!F21 -> 192.7814143 | G7: =Revenue!G21 -> 195.6538574 | H7: =Revenue!H21 -> 198.5690999 | I7: =Revenue!I21 -> 202.0799103 | J7: =Revenue!J21 -> 204.5305434 | K7: =Revenue!K21 -> 207.5780485 | L7: =Revenue!L21 -> 210.6709614 | M7: =Revenue!M21 -> 214.3957394 | N7: =Revenue!N21 -> 216.9957271 | O7: =Revenue!O21 -> 220.2289634 | P7: =Revenue!P21 -> 223.510375 | Q7: =Revenue!Q21 -> 227.4621609 | R7: =Revenue!R21 -> 230.2206057 | S7: =Revenue!S21 -> 233.6508927 | T7: =Revenue!T21 -> 237.132291 | U7: =Revenue!U21 -> 241.3249199 | V7: =Revenue!V21 -> 244.251479 | W7: =Revenue!W21 -> 247.8908261 | X7: =Revenue!X21 -> 251.5843994 | Y7: =Revenue!Y21 -> 256.0325494 | Z7: =Revenue!Z21 -> 259.1374687 | AA7: =Revenue!AA21 -> 262.998617 | AB7: =Revenue!AB21 -> 266.9172964
A8: Interest on Deficit / Surplus Cash Balance | B8: USD | C8: 0 | D8: 0 | E8: 0 | F8: 0 | G8: 0 | H8: 0 | I8: 0 | J8: 0 | K8: 0 | L8: 0 | M8: 0 | N8: 0 | O8: 0 | P8: 0 | Q8: 0 | R8: 0 | S8: 0 | T8: 0 | U8: 0 | V8: 0 | W8: 0 | X8: 0 | Y8: 0 | Z8: 0 | AA8: 0 | AB8: 0
A9: Other Income - GBI | B9: USD | C9: =Inputs!$C$77*Revenue!C17 -> 0 | D9: =Inputs!$C$77*Revenue!D17 -> 0 | E9: =Inputs!$C$77*Revenue!E17 -> 0 | F9: =Inputs!$C$77*Revenue!F17 -> 0 | G9: =Inputs!$C$77*Revenue!G17 -> 0 | H9: =Inputs!$C$77*Revenue!H17 -> 0 | I9: =Inputs!$C$77*Revenue!I17 -> 0 | J9: =Inputs!$C$77*Revenue!J17 -> 0 | K9: =Inputs!$C$77*Revenue!K17 -> 0 | L9: =Inputs!$C$77*Revenue!L17 -> 0 | M9: =Inputs!$C$77*Revenue!M17 -> 0 | N9: =Inputs!$C$77*Revenue!N17 -> 0 | O9: =Inputs!$C$77*Revenue!O17 -> 0 | P9: =Inputs!$C$77*Revenue!P17 -> 0 | Q9: =Inputs!$C$77*Revenue!Q17 -> 0 | R9: =Inputs!$C$77*Revenue!R17 -> 0 | S9: =Inputs!$C$77*Revenue!S17 -> 0 | T9: =Inputs!$C$77*Revenue!T17 -> 0 | U9: =Inputs!$C$77*Revenue!U17 -> 0 | V9: =Inputs!$C$77*Revenue!V17 -> 0 | W9: =Inputs!$C$77*Revenue!W17 -> 0 | X9: =Inputs!$C$77*Revenue!X17 -> 0 | Y9: =Inputs!$C$77*Revenue!Y17 -> 0 | Z9: =Inputs!$C$77*Revenue!Z17 -> 0 | AA9: =Inputs!$C$77*Revenue!AA17 -> 0 | AB9: =Inputs!$C$77*Revenue!AB17 -> 0
A10: Other Income - CDM Benefit | B10: USD | C10: =IF(C2>Inputs!$C$120,0,(Revenue!C17*Inputs!$C$117*Inputs!$C$116/1000*Inputs!$C$119)) -> 0 | D10: =IF(D2>Inputs!$C$120,0,(Revenue!D17*Inputs!$C$117*Inputs!$C$116/1000*Inputs!$C$119)) -> 0 | E10: =IF(E2>Inputs!$C$120,0,(Revenue!E17*Inputs!$C$117*Inputs!$C$116/1000*Inputs!$C$119)) -> 0 | F10: =IF(F2>Inputs!$C$120,0,(Revenue!F17*Inputs!$C$117*Inputs!$C$116/1000*Inputs!$C$119)) -> 0 | G10: =IF(G2>Inputs!$C$120,0,(Revenue!G17*Inputs!$C$117*Inputs!$C$116/1000*Inputs!$C$119)) -> 0 | H10: =IF(H2>Inputs!$C$120,0,(Revenue!H17*Inputs!$C$117*Inputs!$C$116/1000*Inputs!$C$119)) -> 0 | I10: =IF(I2>Inputs!$C$120,0,(Revenue!I17*Inputs!$C$117*Inputs!$C$116/1000*Inputs!$C$119)) -> 0 | J10: =IF(J2>Inputs!$C$120,0,(Revenue!J17*Inputs!$C$117*Inputs!$C$116/1000*Inputs!$C$119)) -> 0 | K10: =IF(K2>Inputs!$C$120,0,(Revenue!K17*Inputs!$C$117*Inputs!$C$116/1000*Inputs!$C$119)) -> 0 | L10: =IF(L2>Inputs!$C$120,0,(Revenue!L17*Inputs!$C$117*Inputs!$C$116/1000*Inputs!$C$119)) -> 0 | M10: =IF(M2>Inputs!$C$120,0,(Revenue!M17*Inputs!$C$117*Inputs!$C$116/1000*Inputs!$C$119)) -> 0 | N10: =IF(N2>Inputs!$C$120,0,(Revenue!N17*Inputs!$C$117*Inputs!$C$116/1000*Inputs!$C$119)) -> 0 | O10: =IF(O2>Inputs!$C$120,0,(Revenue!O17*Inputs!$C$117*Inputs!$C$116/1000*Inputs!$C$119)) -> 0 | P10: =IF(P2>Inputs!$C$120,0,(Revenue!P17*Inputs!$C$117*Inputs!$C$116/1000*Inputs!$C$119)) -> 0 | Q10: =IF(Q2>Inputs!$C$120,0,(Revenue!Q17*Inputs!$C$117*Inputs!$C$116/1000*Inputs!$C$119)) -> 0 | R10: =IF(R2>Inputs!$C$120,0,(Revenue!R17*Inputs!$C$117*Inputs!$C$116/1000*Inputs!$C$119)) -> 0 | S10: =IF(S2>Inputs!$C$120,0,(Revenue!S17*Inputs!$C$117*Inputs!$C$116/1000*Inputs!$C$119)) -> 0 | T10: =IF(T2>Inputs!$C$120,0,(Revenue!T17*Inputs!$C$117*Inputs!$C$116/1000*Inputs!$C$119)) -> 0 | U10: =IF(U2>Inputs!$C$120,0,(Revenue!U17*Inputs!$C$117*Inputs!$C$116/1000*Inputs!$C$119)) -> 0 | V10: =IF(V2>Inputs!$C$120,0,(Revenue!V17*Inputs!$C$117*Inputs!$C$116/1000*Inputs!$C$119)) -> 0 | W10: =IF(W2>Inputs!$C$120,0,(Revenue!W17*Inputs!$C$117*Inputs!$C$116/1000*Inputs!$C$119)) -> 0 | X10: =IF(X2>Inputs!$C$120,0,(Revenue!X17*Inputs!$C$117*Inputs!$C$116/1000*Inputs!$C$119)) -> 0 | Y10: =IF(Y2>Inputs!$C$120,0,(Revenue!Y17*Inputs!$C$117*Inputs!$C$116/1000*Inputs!$C$119)) -> 0 | Z10: =IF(Z2>Inputs!$C$120,0,(Revenue!Z17*Inputs!$C$117*Inputs!$C$116/1000*Inputs!$C$119)) -> 0 | AA10: =IF(AA2>Inputs!$C$120,0,(Revenue!AA17*Inputs!$C$117*Inputs!$C$116/1000*Inputs!$C$119)) -> 0 | AB10: =IF(AB2>Inputs!$C$120,0,(Revenue!AB17*Inputs!$C$117*Inputs!$C$116/1000*Inputs!$C$119)) -> 0
A11: Sub Total | B11: USD | C11: =SUM(C7:C10) -> 107.6173128 | D11: 187.1624222 | E11: 190.4715564 | F11: 192.7814143 | G11: 195.6538574 | H11: 198.5690999 | I11: 202.0799103 | J11: 204.5305434 | K11: 207.5780485 | L11: 210.6709614 | M11: 214.3957394 | N11: 216.9957271 | O11: 220.2289634 | P11: 223.510375 | Q11: 227.4621609 | R11: 230.2206057 | S11: 233.6508927 | T11: 237.132291 | U11: 241.3249199 | V11: 244.251479 | W11: 247.8908261 | X11: 251.5843994 | Y11: 256.0325494 | Z11: 259.1374687 | AA11: 262.998617 | AB11: 266.9172964
A13: Less: Operating Expenses
A14: O & M Expense | B14: USD | C14: ='Operating Costs'!C38 -> 8.053150685 | D14: ='Operating Costs'!D38 -> 14.766 | E14: ='Operating Costs'!E38 -> 15.79962 | F14: ='Operating Costs'!F38 -> 16.9055934 | G14: ='Operating Costs'!G38 -> 18.08898494 | H14: ='Operating Costs'!H38 -> 19.35521388 | I14: ='Operating Costs'!I38 -> 20.71007886 | J14: ='Operating Costs'!J38 -> 22.15978438 | K14: ='Operating Costs'!K38 -> 23.71096928 | L14: ='Operating Costs'!L38 -> 25.37073713 | M14: ='Operating Costs'!M38 -> 27.14668873 | N14: ='Operating Costs'!N38 -> 29.04695694 | O14: ='Operating Costs'!O38 -> 31.08024393 | P14: ='Operating Costs'!P38 -> 33.255861 | Q14: ='Operating Costs'!Q38 -> 35.58377127 | R14: ='Operating Costs'!R38 -> 38.07463526 | S14: ='Operating Costs'!S38 -> 40.73985973 | T14: ='Operating Costs'!T38 -> 43.59164991 | U14: ='Operating Costs'!U38 -> 46.64306541 | V14: ='Operating Costs'!V38 -> 49.90807998 | W14: ='Operating Costs'!W38 -> 53.40164558 | X14: ='Operating Costs'!X38 -> 57.13976077 | Y14: ='Operating Costs'!Y38 -> 61.13954403 | Z14: ='Operating Costs'!Z38 -> 65.41931211 | AA14: ='Operating Costs'!AA38 -> 69.99866396 | AB14: ='Operating Costs'!AB38 -> 74.89857043
A15: Insurance Expense | B15: USD | C15: ='Operating Costs'!C41 -> 140.2576158 | D15: ='Operating Costs'!D41 -> 227.9281911 | E15: ='Operating Costs'!E41 -> 215.5088248 | F15: ='Operating Costs'!F41 -> 203.0894584 | G15: ='Operating Costs'!G41 -> 190.670092 | H15: ='Operating Costs'!H41 -> 178.2507257 | I15: ='Operating Costs'!I41 -> 165.8313593 | J15: ='Operating Costs'!J41 -> 153.4119929 | K15: ='Operating Costs'!K41 -> 140.9926265 | L15: ='Operating Costs'!L41 -> 128.5732602 | M15: ='Operating Costs'!M41 -> 116.1538938 | N15: ='Operating Costs'!N41 -> 103.7345274 | O15: ='Operating Costs'!O41 -> 91.31516105 | P15: ='Operating Costs'!P41 -> 78.89579467 | Q15: ='Operating Costs'!Q41 -> 66.4764283 | R15: ='Operating Costs'!R41 -> 54.05706193 | S15: ='Operating Costs'!S41 -> 41.63769556 | T15: ='Operating Costs'!T41 -> 29.21832919 | U15: ='Operating Costs'!U41 -> 16.79896281 | V15: ='Operating Costs'!V41 -> 12.37975117 | W15: ='Operating Costs'!W41 -> 12.37975117 | X15: ='Operating Costs'!X41 -> 12.37975117 | Y15: ='Operating Costs'!Y41 -> 12.37975117 | Z15: ='Operating Costs'!Z41 -> 12.37975117 | AA15: ='Operating Costs'!AA41 -> 12.37975117 | AB15: ='Operating Costs'!AB41 -> 12.37975117
A16: Misc. Expense incl. Spares | B16: USD | C16: ='Operating Costs'!C44 -> 0 | D16: ='Operating Costs'!D44 -> 0 | E16: ='Operating Costs'!E44 -> 0 | F16: ='Operating Costs'!F44 -> 0 | G16: ='Operating Costs'!G44 -> 0 | H16: ='Operating Costs'!H44 -> 0 | I16: ='Operating Costs'!I44 -> 0 | J16: ='Operating Costs'!J44 -> 0 | K16: ='Operating Costs'!K44 -> 0 | L16: ='Operating Costs'!L44 -> 0 | M16: ='Operating Costs'!M44 -> 0 | N16: ='Operating Costs'!N44 -> 0 | O16: ='Operating Costs'!O44 -> 0 | P16: ='Operating Costs'!P44 -> 0 | Q16: ='Operating Costs'!Q44 -> 0 | R16: ='Operating Costs'!R44 -> 0 | S16: ='Operating Costs'!S44 -> 0 | T16: ='Operating Costs'!T44 -> 0 | U16: ='Operating Costs'!U44 -> 0 | V16: ='Operating Costs'!V44 -> 0 | W16: ='Operating Costs'!W44 -> 0 | X16: ='Operating Costs'!X44 -> 0 | Y16: ='Operating Costs'!Y44 -> 0 | Z16: ='Operating Costs'!Z44 -> 0 | AA16: ='Operating Costs'!AA44 -> 0 | AB16: ='Operating Costs'!AB44 -> 0
A17: Sub Total | B17: USD | C17: =SUM(C14:C16) -> 148.3107664 | D17: 242.6941911 | E17: 231.3084448 | F17: 219.9950518 | G17: 208.759077 | H17: 197.6059395 | I17: 186.5414381 | J17: 175.5717773 | K17: 164.7035958 | L17: 153.9439973 | M17: 143.3005825 | N17: 132.7814844 | O17: 122.395405 | P17: 112.1516557 | Q17: 102.0601996 | R17: 92.13169719 | S17: 82.37755529 | T17: 72.8099791 | U17: 63.44202822 | V17: 62.28783115 | W17: 65.78139675 | X17: 69.51951194 | Y17: 73.5192952 | Z17: 77.79906328 | AA17: 82.37841513 | AB17: 87.2783216
A19: PBIDT | B19: USD | C19: =+C7-C17+C10+C9+C8 -> -40.69345364 | D19: -55.53176894 | E19: -40.83688839 | F19: -27.21363749 | G19: -13.10521958 | H19: 0.9631603193 | I19: 15.53847221 | J19: 28.95876607 | K19: 42.87445264 | L19: 56.72696408 | M19: 71.09515689 | N19: 84.21424272 | O19: 97.83355844 | P19: 111.3587193 | Q19: 125.4019613 | R19: 138.0889085 | S19: 151.2733374 | T19: 164.3223119 | U19: 177.8828916 | V19: 181.9636479 | W19: 182.1094293 | X19: 182.0648874 | Y19: 182.5132542 | Z19: 181.3384054 | AA19: 180.6202019 | AB19: 179.6389748
A21: Interest on Loan | B21: USD | C21: ='Operating Costs'!C20 -> 4450.198332 | D21: ='Operating Costs'!D20 -> 7625.92672 | E21: ='Operating Costs'!E20 -> 7371.729162 | F21: ='Operating Costs'!F20 -> 6863.334048 | G21: ='Operating Costs'!G20 -> 6354.938933 | H21: ='Operating Costs'!H20 -> 5846.543818 | I21: ='Operating Costs'!I20 -> 5338.148704 | J21: ='Operating Costs'!J20 -> 4829.753589 | K21: ='Operating Costs'!K20 -> 4321.358475 | L21: ='Operating Costs'!L20 -> 3812.96336 | M21: ='Operating Costs'!M20 -> 3304.568245 | N21: ='Operating Costs'!N20 -> 2796.173131 | O21: ='Operating Costs'!O20 -> 2287.778016 | P21: ='Operating Costs'!P20 -> 1779.382901 | Q21: ='Operating Costs'!Q20 -> 1270.987787 | R21: ='Operating Costs'!R20 -> 762.592672 | S21: ='Operating Costs'!S20 -> 254.1975573 | T21: ='Operating Costs'!T20 -> 0 | U21: ='Operating Costs'!U20 -> 0 | V21: ='Operating Costs'!V20 -> 0 | W21: ='Operating Costs'!W20 -> 0 | X21: ='Operating Costs'!X20 -> 0 | Y21: ='Operating Costs'!Y20 -> 0 | Z21: ='Operating Costs'!Z20 -> 0 | AA21: ='Operating Costs'!AA20 -> 0 | AB21: ='Operating Costs'!AB20 -> 0
A22: Interest on Working Capital | B22: USD | C22: =+'Working Cap.'!C12 -> 1.069171048 | D22: =+'Working Cap.'!D12 -> 1.867253137 | E22: =+'Working Cap.'!E12 -> 1.908198699 | F22: =+'Working Cap.'!F12 -> 1.940727057 | G22: =+'Working Cap.'!G12 -> 1.979207271 | H22: =+'Working Cap.'!H12 -> 2.018930278 | I22: =+'Working Cap.'!I12 -> 2.065022654 | J22: =+'Working Cap.'!J12 -> 2.102370434 | K22: =+'Working Cap.'!K12 -> 2.146231395 | L22: =+'Working Cap.'!L12 -> 2.19162338 | M22: =+'Working Cap.'!M12 -> 2.244000282 | N22: =+'Working Cap.'!N12 -> 2.287342923 | O22: =+'Working Cap.'!O12 -> 2.337856002 | P22: =+'Working Cap.'!P12 -> 2.390271944 | Q22: =+'Working Cap.'!Q12 -> 2.450396526 | R22: =+'Working Cap.'!R12 -> 2.501255141 | S22: =+'Working Cap.'!S12 -> 2.56006241 | T22: =+'Working Cap.'!T12 -> 2.621253607 | U22: =+'Working Cap.'!U12 -> 2.691013903 | V22: =+'Working Cap.'!V12 -> 2.751361512 | W22: =+'Working Cap.'!W12 -> 2.820589467 | X22: =+'Working Cap.'!X12 -> 2.892825205 | Y22: =+'Working Cap.'!Y12 -> 2.974664355 | Z22: =+'Working Cap.'!Z12 -> 3.047065068 | AA22: =+'Working Cap.'!AA12 -> 3.129473606 | AB22: =+'Working Cap.'!AB12 -> 3.21570054
A23: Depreciation | B23: USD | C23: ='Operating Costs'!C26 -> 2898.986342 | D23: ='Operating Costs'!D26 -> 4967.746549 | E23: ='Operating Costs'!E26 -> 4967.746549 | F23: ='Operating Costs'!F26 -> 4967.746549 | G23: ='Operating Costs'!G26 -> 4967.746549 | H23: ='Operating Costs'!H26 -> 4967.746549 | I23: ='Operating Costs'!I26 -> 4967.746549 | J23: ='Operating Costs'!J26 -> 4967.746549 | K23: ='Operating Costs'!K26 -> 4967.746549 | L23: ='Operating Costs'!L26 -> 4967.746549 | M23: ='Operating Costs'!M26 -> 4967.746549 | N23: ='Operating Costs'!N26 -> 4967.746549 | O23: ='Operating Costs'!O26 -> 4967.746549 | P23: ='Operating Costs'!P26 -> 4967.746549 | Q23: ='Operating Costs'!Q26 -> 4967.746549 | R23: ='Operating Costs'!R26 -> 4967.746549 | S23: ='Operating Costs'!S26 -> 4967.746549 | T23: ='Operating Costs'!T26 -> 4967.746549 | U23: ='Operating Costs'!U26 -> 4967.746549 | V23: ='Operating Costs'!V26 -> 1767.684658 | W23: ='Operating Costs'!W26 -> 0 | X23: ='Operating Costs'!X26 -> 0 | Y23: ='Operating Costs'!Y26 -> 0 | Z23: ='Operating Costs'!Z26 -> 0 | AA23: ='Operating Costs'!AA26 -> 0 | AB23: ='Operating Costs'!AB26 -> 0
A25: PBT | B25: USD | C25: =+C19-C21-C23-C22 -> -7390.947299 | D25: -12651.07229 | E25: -12382.2208 | F25: -11860.23496 | G25: -11337.76991 | H25: -10815.34614 | I25: -10292.4218 | J25: -9770.643742 | K25: -9248.376802 | L25: -8726.174568 | M25: -8203.463637 | N25: -7681.99278 | O25: -7160.028862 | P25: -6638.161003 | Q25: -6115.782771 | R25: -5594.751567 | S25: -5073.230831 | T25: -4806.045491 | U25: -4792.554671 | V25: -1588.472372 | W25: 179.2888398 | X25: 179.1720622 | Y25: 179.5385899 | Z25: 178.2913404 | AA25: 177.4907283 | AB25: 176.4232743
A27: Tax | B27: USD | C27: ='Income Tax'!C32 -> 0 | D27: ='Income Tax'!D32 -> 0 | E27: ='Income Tax'!E32 -> 0 | F27: ='Income Tax'!F32 -> 0 | G27: ='Income Tax'!G32 -> 0 | H27: ='Income Tax'!H32 -> 0 | I27: ='Income Tax'!I32 -> 0 | J27: ='Income Tax'!J32 -> 0 | K27: ='Income Tax'!K32 -> 0 | L27: ='Income Tax'!L32 -> 0 | M27: ='Income Tax'!M32 -> 0 | N27: ='Income Tax'!N32 -> 0 | O27: ='Income Tax'!O32 -> 0 | P27: ='Income Tax'!P32 -> 0 | Q27: ='Income Tax'!Q32 -> 0 | R27: ='Income Tax'!R32 -> 0 | S27: ='Income Tax'!S32 -> 0 | T27: ='Income Tax'!T32 -> 0 | U27: ='Income Tax'!U32 -> 0 | V27: ='Income Tax'!V32 -> 0 | W27: ='Income Tax'!W32 -> 35.87166285 | X27: ='Income Tax'!X32 -> 35.84829828 | Y27: ='Income Tax'!Y32 -> 35.92163221 | Z27: ='Income Tax'!Z32 -> 35.67208565 | AA27: ='Income Tax'!AA32 -> 35.51190119 | AB27: ='Income Tax'!AB32 -> 35.29832766
A29: PAT | B29: USD | C29: =+C25-C27 -> -7390.947299 | D29: -12651.07229 | E29: -12382.2208 | F29: -11860.23496 | G29: -11337.76991 | H29: -10815.34614 | I29: -10292.4218 | J29: -9770.643742 | K29: -9248.376802 | L29: -8726.174568 | M29: -8203.463637 | N29: -7681.99278 | O29: -7160.028862 | P29: -6638.161003 | Q29: -6115.782771 | R29: -5594.751567 | S29: -5073.230831 | T29: -4806.045491 | U29: -4792.554671 | V29: -1588.472372 | W29: 143.417177 | X29: 143.3237639 | Y29: 143.6169576 | Z29: 142.6192547 | AA29: 141.9788271 | AB29: 141.1249466
A31: Dividend & Dividend Dist. Tax | B31: USD | C31: =(Inputs!$C$29*Inputs!$C$80)+(Inputs!$C$29*Inputs!$C$80*Inputs!$J$51) -> 0 | D31: =(Inputs!$C$29*Inputs!$C$80)+(Inputs!$C$29*Inputs!$C$80*Inputs!$J$51) -> 0 | E31: =(Inputs!$C$29*Inputs!$C$80)+(Inputs!$C$29*Inputs!$C$80*Inputs!$J$51) -> 0 | F31: =(Inputs!$C$29*Inputs!$C$80)+(Inputs!$C$29*Inputs!$C$80*Inputs!$J$51) -> 0 | G31: =(Inputs!$C$29*Inputs!$C$80)+(Inputs!$C$29*Inputs!$C$80*Inputs!$J$51) -> 0 | H31: =(Inputs!$C$29*Inputs!$C$80)+(Inputs!$C$29*Inputs!$C$80*Inputs!$J$51) -> 0 | I31: =(Inputs!$C$29*Inputs!$C$80)+(Inputs!$C$29*Inputs!$C$80*Inputs!$J$51) -> 0 | J31: =(Inputs!$C$29*Inputs!$C$80)+(Inputs!$C$29*Inputs!$C$80*Inputs!$J$51) -> 0 | K31: =(Inputs!$C$29*Inputs!$C$80)+(Inputs!$C$29*Inputs!$C$80*Inputs!$J$51) -> 0 | L31: =(Inputs!$C$29*Inputs!$C$80)+(Inputs!$C$29*Inputs!$C$80*Inputs!$J$51) -> 0 | M31: =(Inputs!$C$29*Inputs!$C$80)+(Inputs!$C$29*Inputs!$C$80*Inputs!$J$51) -> 0 | N31: =(Inputs!$C$29*Inputs!$C$80)+(Inputs!$C$29*Inputs!$C$80*Inputs!$J$51) -> 0 | O31: =(Inputs!$C$29*Inputs!$C$80)+(Inputs!$C$29*Inputs!$C$80*Inputs!$J$51) -> 0 | P31: =(Inputs!$C$29*Inputs!$C$80)+(Inputs!$C$29*Inputs!$C$80*Inputs!$J$51) -> 0 | Q31: =(Inputs!$C$29*Inputs!$C$80)+(Inputs!$C$29*Inputs!$C$80*Inputs!$J$51) -> 0 | R31: =(Inputs!$C$29*Inputs!$C$80)+(Inputs!$C$29*Inputs!$C$80*Inputs!$J$51) -> 0 | S31: =(Inputs!$C$29*Inputs!$C$80)+(Inputs!$C$29*Inputs!$C$80*Inputs!$J$51) -> 0 | T31: =(Inputs!$C$29*Inputs!$C$80)+(Inputs!$C$29*Inputs!$C$80*Inputs!$J$51) -> 0 | U31: =(Inputs!$C$29*Inputs!$C$80)+(Inputs!$C$29*Inputs!$C$80*Inputs!$J$51) -> 0 | V31: =(Inputs!$C$29*Inputs!$C$80)+(Inputs!$C$29*Inputs!$C$80*Inputs!$J$51) -> 0 | W31: =(Inputs!$C$29*Inputs!$C$80)+(Inputs!$C$29*Inputs!$C$80*Inputs!$J$51) -> 0 | X31: =(Inputs!$C$29*Inputs!$C$80)+(Inputs!$C$29*Inputs!$C$80*Inputs!$J$51) -> 0 | Y31: =(Inputs!$C$29*Inputs!$C$80)+(Inputs!$C$29*Inputs!$C$80*Inputs!$J$51) -> 0 | Z31: =(Inputs!$C$29*Inputs!$C$80)+(Inputs!$C$29*Inputs!$C$80*Inputs!$J$51) -> 0 | AA31: =(Inputs!$C$29*Inputs!$C$80)+(Inputs!$C$29*Inputs!$C$80*Inputs!$J$51) -> 0 | AB31: =(Inputs!$C$29*Inputs!$C$80)+(Inputs!$C$29*Inputs!$C$80*Inputs!$J$51) -> 0
A32: Undistributed Profit Trs. to Reserve | B32: USD | C32: =+C29-C31 -> -7390.947299 | D32: -12651.07229 | E32: -12382.2208 | F32: -11860.23496 | G32: -11337.76991 | H32: -10815.34614 | I32: -10292.4218 | J32: -9770.643742 | K32: -9248.376802 | L32: -8726.174568 | M32: -8203.463637 | N32: -7681.99278 | O32: -7160.028862 | P32: -6638.161003 | Q32: -6115.782771 | R32: -5594.751567 | S32: -5073.230831 | T32: -4806.045491 | U32: -4792.554671 | V32: -1588.472372 | W32: 143.417177 | X32: 143.3237639 | Y32: 143.6169576 | Z32: 142.6192547 | AA32: 141.9788271 | AB32: 141.1249466
A33: Accu. Undistributed Profit Trs. to Reserve | B33: USD | C33: =+C32+C34 -> -7390.947299 | D33: =+D32+C33+D34 -> -20042.01959 | E33: =+E32+D33 -> -32424.24039 | F33: -44284.47535 | G33: -55622.24526 | H33: -66437.5914 | I33: -76730.0132 | J33: -86500.65694 | K33: -95749.03374 | L33: -104475.2083 | M33: -112678.6719 | N33: -120360.6647 | O33: -127520.6936 | P33: -134158.8546 | Q33: -140274.6374 | R33: -145869.3889 | S33: -150942.6198 | T33: -155748.6653 | U33: -160541.2199 | V33: -162129.6923 | W33: -161986.2751 | X33: -161842.9514 | Y33: -161699.3344 | Z33: -161556.7151 | AA33: -161414.7363 | AB33: -161273.6114
A34: Tax saving due to 1st year Depr. | B34: USD | C34: =+C60 -> 0 | D34: 0
A37: Balance Sheet
A38: Source of Fund
A39: Equity Share Capital | B39: USD | C39: =+Inputs!$C$29 -> 29711.4028 | D39: =+Inputs!$C$29 -> 29711.4028 | E39: =+Inputs!$C$29 -> 29711.4028 | F39: =+Inputs!$C$29 -> 29711.4028 | G39: =+Inputs!$C$29 -> 29711.4028 | H39: =+Inputs!$C$29 -> 29711.4028 | I39: =+Inputs!$C$29 -> 29711.4028 | J39: =+Inputs!$C$29 -> 29711.4028 | K39: =+Inputs!$C$29 -> 29711.4028 | L39: =+Inputs!$C$29 -> 29711.4028 | M39: =+Inputs!$C$29 -> 29711.4028 | N39: =+Inputs!$C$29 -> 29711.4028 | O39: =+Inputs!$C$29 -> 29711.4028 | P39: =+Inputs!$C$29 -> 29711.4028 | Q39: =+Inputs!$C$29 -> 29711.4028 | R39: =+Inputs!$C$29 -> 29711.4028 | S39: =+Inputs!$C$29 -> 29711.4028 | T39: =+Inputs!$C$29 -> 29711.4028 | U39: =+Inputs!$C$29 -> 29711.4028 | V39: =+Inputs!$C$29 -> 29711.4028 | W39: =+Inputs!$C$29 -> 29711.4028 | X39: =+Inputs!$C$29 -> 29711.4028 | Y39: =+Inputs!$C$29 -> 29711.4028 | Z39: =+Inputs!$C$29 -> 29711.4028 | AA39: =+Inputs!$C$29 -> 29711.4028 | AB39: =+Inputs!$C$29 -> 29711.4028
A40: Reserves & Surplus | B40: USD | C40: =+C33 -> -7390.947299 | D40: -20042.01959 | E40: -32424.24039 | F40: -44284.47535 | G40: -55622.24526 | H40: -66437.5914 | I40: -76730.0132 | J40: -86500.65694 | K40: -95749.03374 | L40: -104475.2083 | M40: -112678.6719 | N40: -120360.6647 | O40: -127520.6936 | P40: -134158.8546 | Q40: -140274.6374 | R40: -145869.3889 | S40: -150942.6198 | T40: -155748.6653 | U40: -160541.2199 | V40: -162129.6923 | W40: -161986.2751 | X40: -161842.9514 | Y40: -161699.3344 | Z40: -161556.7151 | AA40: -161414.7363 | AB40: -161273.6114
A41: Capital Reserve (VGF) | B41: USD | C41: =C61 -> 0 | D41: =C41+D61 -> 0 | E41: 0 | F41: 0 | G41: 0 | H41: 0 | I41: 0 | J41: 0 | K41: 0 | L41: 0 | M41: 0 | N41: 0 | O41: 0 | P41: 0 | Q41: 0 | R41: 0 | S41: 0 | T41: 0 | U41: 0 | V41: 0 | W41: 0 | X41: 0 | Y41: 0 | Z41: 0 | AA41: 0 | AB41: 0
A42: Debt | B42: USD | C42: ='Operating Costs'!C19 -> 69326.60654 | D42: ='Operating Costs'!D19 -> 67015.71966 | E42: ='Operating Costs'!E19 -> 62393.94589 | F42: ='Operating Costs'!F19 -> 57772.17212 | G42: ='Operating Costs'!G19 -> 53150.39835 | H42: ='Operating Costs'!H19 -> 48528.62458 | I42: ='Operating Costs'!I19 -> 43906.85081 | J42: ='Operating Costs'!J19 -> 39285.07704 | K42: ='Operating Costs'!K19 -> 34663.30327 | L42: ='Operating Costs'!L19 -> 30041.5295 | M42: ='Operating Costs'!M19 -> 25419.75573 | N42: ='Operating Costs'!N19 -> 20797.98196 | O42: ='Operating Costs'!O19 -> 16176.20819 | P42: ='Operating Costs'!P19 -> 11554.43442 | Q42: ='Operating Costs'!Q19 -> 6932.660654 | R42: ='Operating Costs'!R19 -> 2310.886885 | S42: ='Operating Costs'!S19 -> 0 | T42: ='Operating Costs'!T19 -> 0 | U42: ='Operating Costs'!U19 -> 0 | V42: ='Operating Costs'!V19 -> 0 | W42: ='Operating Costs'!W19 -> 0 | X42: ='Operating Costs'!X19 -> 0 | Y42: ='Operating Costs'!Y19 -> 0 | Z42: ='Operating Costs'!Z19 -> 0 | AA42: ='Operating Costs'!AA19 -> 0 | AB42: ='Operating Costs'!AB19 -> 0
A43: Working Capital Loan | B43: USD | C43: ='Working Cap.'!C10 -> 9.719736797 | D43: ='Working Cap.'!D10 -> 16.97502852 | E43: ='Working Cap.'!E10 -> 17.3472609 | F43: ='Working Cap.'!F10 -> 17.64297324 | G43: ='Working Cap.'!G10 -> 17.99279338 | H43: ='Working Cap.'!H10 -> 18.35391162 | I43: ='Working Cap.'!I10 -> 18.77293322 | J43: ='Working Cap.'!J10 -> 19.11245849 | K43: ='Working Cap.'!K10 -> 19.5111945 | L43: ='Working Cap.'!L10 -> 19.92384891 | M43: ='Working Cap.'!M10 -> 20.40000257 | N43: ='Working Cap.'!N10 -> 20.79402657 | O43: ='Working Cap.'!O10 -> 21.25323638 | P43: ='Working Cap.'!P10 -> 21.72974494 | Q43: ='Working Cap.'!Q10 -> 22.27633206 | R43: ='Working Cap.'!R10 -> 22.7386831 | S43: ='Working Cap.'!S10 -> 23.27329463 | T43: ='Working Cap.'!T10 -> 23.82957824 | U43: ='Working Cap.'!U10 -> 24.46376276 | V43: ='Working Cap.'!V10 -> 25.01237738 | W43: ='Working Cap.'!W10 -> 25.64172243 | X43: ='Working Cap.'!X10 -> 26.29841095 | Y43: ='Working Cap.'!Y10 -> 27.04240323 | Z43: ='Working Cap.'!Z10 -> 27.70059152 | AA43: ='Working Cap.'!AA10 -> 28.44976005 | AB43: ='Working Cap.'!AB10 -> 29.23364127
A44: Total Liabilities | B44: USD | C44: =SUM(C39:C43) -> 91656.78178 | D44: 76702.0779 | E44: 59698.45557 | F44: 43216.74255 | G44: 27257.54869 | H44: 11820.7899 | I44: -3092.986651 | J44: -17485.06464 | K44: -31354.81647 | L44: -44702.35216 | M44: -57527.11341 | N44: -69830.48593 | O44: -81611.82936 | P44: -92871.28762 | Q44: -103608.2976 | R44: -113824.3606 | S44: -121207.9437 | T44: -126013.4329 | U44: -130805.3534 | V44: -132393.2771 | W44: -132249.2306 | X44: -132105.2501 | Y44: -131960.8892 | Z44: -131817.6117 | AA44: -131674.8838 | AB44: -131532.9749
A46: Utilisation of Fund
A47: Gross Block | B47: USD | C47: =Inputs!$D$22 -> 99038.00935 | D47: =Inputs!$D$22 -> 99038.00935 | E47: =Inputs!$D$22 -> 99038.00935 | F47: =Inputs!$D$22 -> 99038.00935 | G47: =Inputs!$D$22 -> 99038.00935 | H47: =Inputs!$D$22 -> 99038.00935 | I47: =Inputs!$D$22 -> 99038.00935 | J47: =Inputs!$D$22 -> 99038.00935 | K47: =Inputs!$D$22 -> 99038.00935 | L47: =Inputs!$D$22 -> 99038.00935 | M47: =Inputs!$D$22 -> 99038.00935 | N47: =Inputs!$D$22 -> 99038.00935 | O47: =Inputs!$D$22 -> 99038.00935 | P47: =Inputs!$D$22 -> 99038.00935 | Q47: =Inputs!$D$22 -> 99038.00935 | R47: =Inputs!$D$22 -> 99038.00935 | S47: =Inputs!$D$22 -> 99038.00935 | T47: =Inputs!$D$22 -> 99038.00935 | U47: =Inputs!$D$22 -> 99038.00935 | V47: =Inputs!$D$22 -> 99038.00935 | W47: =Inputs!$D$22 -> 99038.00935 | X47: =Inputs!$D$22 -> 99038.00935 | Y47: =Inputs!$D$22 -> 99038.00935 | Z47: =Inputs!$D$22 -> 99038.00935 | AA47: =Inputs!$D$22 -> 99038.00935 | AB47: =Inputs!$D$22 -> 99038.00935
A48: Less: Accu. Depreciation | B48: USD | C48: ='Operating Costs'!C27 -> 2898.986342 | D48: ='Operating Costs'!D27 -> 7866.732891 | E48: ='Operating Costs'!E27 -> 12834.47944 | F48: ='Operating Costs'!F27 -> 17802.22599 | G48: ='Operating Costs'!G27 -> 22769.97254 | H48: ='Operating Costs'!H27 -> 27737.71909 | I48: ='Operating Costs'!I27 -> 32705.46564 | J48: ='Operating Costs'!J27 -> 37673.21218 | K48: ='Operating Costs'!K27 -> 42640.95873 | L48: ='Operating Costs'!L27 -> 47608.70528 | M48: ='Operating Costs'!M27 -> 52576.45183 | N48: ='Operating Costs'!N27 -> 57544.19838 | O48: ='Operating Costs'!O27 -> 62511.94493 | P48: ='Operating Costs'!P27 -> 67479.69148 | Q48: ='Operating Costs'!Q27 -> 72447.43803 | R48: ='Operating Costs'!R27 -> 77415.18457 | S48: ='Operating Costs'!S27 -> 82382.93112 | T48: ='Operating Costs'!T27 -> 87350.67767 | U48: ='Operating Costs'!U27 -> 92318.42422 | V48: ='Operating Costs'!V27 -> 94086.10888 | W48: ='Operating Costs'!W27 -> 94086.10888 | X48: ='Operating Costs'!X27 -> 94086.10888 | Y48: ='Operating Costs'!Y27 -> 94086.10888 | Z48: ='Operating Costs'!Z27 -> 94086.10888 | AA48: ='Operating Costs'!AA27 -> 94086.10888 | AB48: ='Operating Costs'!AB27 -> 94086.10888
A49: Net Block | B49: USD | C49: =+C47-C48 -> 96139.023 | D49: 91171.27646 | E49: 86203.52991 | F49: 81235.78336 | G49: 76268.03681 | H49: 71300.29026 | I49: 66332.54371 | J49: 61364.79716 | K49: 56397.05061 | L49: 51429.30407 | M49: 46461.55752 | N49: 41493.81097 | O49: 36526.06442 | P49: 31558.31787 | Q49: 26590.57132 | R49: 21622.82477 | S49: 16655.07822 | T49: 11687.33167 | U49: 6719.585126 | V49: 4951.900467 | W49: 4951.900467 | X49: 4951.900467 | Y49: 4951.900467 | Z49: 4951.900467 | AA49: 4951.900467 | AB49: 4951.900467
A50: Cash Balance | B50: USD | C50: =C77 -> -4491.960957 | D50: -14486.17358 | E50: -26522.4216 | F50: -38036.68378 | G50: -49028.48091 | H50: -59497.85427 | I50: -69444.3033 | J50: -78868.97426 | K50: -87771.37828 | L50: -96151.58007 | M50: -104009.0709 | N50: -111345.0909 | O50: -118159.147 | P50: -124451.3352 | Q50: -130221.1452 | R50: -135469.924 | S50: -137886.2952 | T50: -137724.5941 | U50: -137549.4022 | V50: -137370.19 | W50: -137226.7728 | X50: -137083.449 | Y50: -136939.8321 | Z50: -136797.2128 | AA50: -136655.234 | AB50: -136514.109
A51: Other Current Assets
A52: O&M Expense | B52: USD | C52: ='Working Cap.'!C7 -> 0.6710958904 | D52: ='Working Cap.'!D7 -> 1.2305 | E52: ='Working Cap.'!E7 -> 1.316635 | F52: ='Working Cap.'!F7 -> 1.40879945 | G52: ='Working Cap.'!G7 -> 1.507415412 | H52: ='Working Cap.'!H7 -> 1.61293449 | I52: ='Working Cap.'!I7 -> 1.725839905 | J52: ='Working Cap.'!J7 -> 1.846648698 | K52: ='Working Cap.'!K7 -> 1.975914107 | L52: ='Working Cap.'!L7 -> 2.114228094 | M52: ='Working Cap.'!M7 -> 2.262224061 | N52: ='Working Cap.'!N7 -> 2.420579745 | O52: ='Working Cap.'!O7 -> 2.590020327 | P52: ='Working Cap.'!P7 -> 2.77132175 | Q52: ='Working Cap.'!Q7 -> 2.965314273 | R52: ='Working Cap.'!R7 -> 3.172886272 | S52: ='Working Cap.'!S7 -> 3.394988311 | T52: ='Working Cap.'!T7 -> 3.632637493 | U52: ='Working Cap.'!U7 -> 3.886922117 | V52: ='Working Cap.'!V7 -> 4.159006665 | W52: ='Working Cap.'!W7 -> 4.450137132 | X52: ='Working Cap.'!X7 -> 4.761646731 | Y52: ='Working Cap.'!Y7 -> 5.094962002 | Z52: ='Working Cap.'!Z7 -> 5.451609342 | AA52: ='Working Cap.'!AA7 -> 5.833221996 | AB52: ='Working Cap.'!AB7 -> 6.241547536
A53: Receivables | B53: USD | C53: ='Working Cap.'!C8 -> 8.9681094 | D53: ='Working Cap.'!D8 -> 15.59686852 | E53: ='Working Cap.'!E8 -> 15.8726297 | F53: ='Working Cap.'!F8 -> 16.06511786 | G53: ='Working Cap.'!G8 -> 16.30448811 | H53: ='Working Cap.'!H8 -> 16.54742499 | I53: ='Working Cap.'!I8 -> 16.83999253 | J53: ='Working Cap.'!J8 -> 17.04421195 | K53: ='Working Cap.'!K8 -> 17.2981707 | L53: ='Working Cap.'!L8 -> 17.55591345 | M53: ='Working Cap.'!M8 -> 17.86631162 | N53: ='Working Cap.'!N8 -> 18.08297726 | O53: ='Working Cap.'!O8 -> 18.35241362 | P53: ='Working Cap.'!P8 -> 18.62586458 | Q53: ='Working Cap.'!Q8 -> 18.95518007 | R53: ='Working Cap.'!R8 -> 19.18505047 | S53: ='Working Cap.'!S8 -> 19.47090773 | T53: ='Working Cap.'!T8 -> 19.76102425 | U53: ='Working Cap.'!U8 -> 20.11040999 | V53: ='Working Cap.'!V8 -> 20.35428992 | W53: ='Working Cap.'!W8 -> 20.65756884 | X53: ='Working Cap.'!X8 -> 20.96536661 | Y53: ='Working Cap.'!Y8 -> 21.33604578 | Z53: ='Working Cap.'!Z8 -> 21.59478906 | AA53: ='Working Cap.'!AA8 -> 21.91655142 | AB53: ='Working Cap.'!AB8 -> 22.24310803
A54: Main. Spares | B54: USD | C54: ='Working Cap.'!C9 -> 0.08053150685 | D54: ='Working Cap.'!D9 -> 0.14766 | E54: ='Working Cap.'!E9 -> 0.1579962 | F54: ='Working Cap.'!F9 -> 0.169055934 | G54: ='Working Cap.'!G9 -> 0.1808898494 | H54: ='Working Cap.'!H9 -> 0.1935521388 | I54: ='Working Cap.'!I9 -> 0.2071007886 | J54: ='Working Cap.'!J9 -> 0.2215978438 | K54: ='Working Cap.'!K9 -> 0.2371096928 | L54: ='Working Cap.'!L9 -> 0.2537073713 | M54: ='Working Cap.'!M9 -> 0.2714668873 | N54: ='Working Cap.'!N9 -> 0.2904695694 | O54: ='Working Cap.'!O9 -> 0.3108024393 | P54: ='Working Cap.'!P9 -> 0.33255861 | Q54: ='Working Cap.'!Q9 -> 0.3558377127 | R54: ='Working Cap.'!R9 -> 0.3807463526 | S54: ='Working Cap.'!S9 -> 0.4073985973 | T54: ='Working Cap.'!T9 -> 0.4359164991 | U54: ='Working Cap.'!U9 -> 0.4664306541 | V54: ='Working Cap.'!V9 -> 0.4990807998 | W54: ='Working Cap.'!W9 -> 0.5340164558 | X54: ='Working Cap.'!X9 -> 0.5713976077 | Y54: ='Working Cap.'!Y9 -> 0.6113954403 | Z54: ='Working Cap.'!Z9 -> 0.6541931211 | AA54: ='Working Cap.'!AA9 -> 0.6999866396 | AB54: ='Working Cap.'!AB9 -> 0.7489857043
A55: Total Assets | B55: USD | C55: =SUM(C49:C54) -> 91656.78178 | D55: 76702.0779 | E55: 59698.45557 | F55: 43216.74255 | G55: 27257.54869 | H55: 11820.7899 | I55: -3092.986651 | J55: -17485.06464 | K55: -31354.81647 | L55: -44702.35216 | M55: -57527.11341 | N55: -69830.48593 | O55: -81611.82936 | P55: -92871.28762 | Q55: -103608.2976 | R55: -113824.3606 | S55: -121207.9437 | T55: -126013.4329 | U55: -130805.3534 | V55: -132393.2771 | W55: -132249.2306 | X55: -132105.2501 | Y55: -131960.8892 | Z55: -131817.6117 | AA55: -131674.8838 | AB55: -131532.9749
C56: =+C55-C44 -> 0 | D56: 0 | E56: 0 | F56: 0 | G56: 0 | H56: 0 | I56: 7.275957614e-12 | J56: 0 | K56: 0 | L56: 0 | M56: 0 | N56: 0 | O56: 0 | P56: 0 | Q56: 0 | R56: 0 | S56: 0 | T56: 0 | U56: 0 | V56: 0 | W56: 0 | X56: 0 | Y56: 0 | Z56: 0 | AA56: 0 | AB56: 0
A58: Cash Flow Statement
A59: Sources of Cash
A60: Tax saving due to 1st year Depr. | B60: USD | C60: =Inputs!$H$51*('Income Tax'!C18-('Income Tax'!C17+'Income Tax'!C15)) -> 0 | D60: =Inputs!$H$51*('Income Tax'!D18-('Income Tax'!D17+'Income Tax'!D15)) -> 0 | E60: =Inputs!$H$51*('Income Tax'!E18-('Income Tax'!E17+'Income Tax'!E15)) -> 0 | F60: =Inputs!$H$51*('Income Tax'!F18-('Income Tax'!F17+'Income Tax'!F15)) -> 0 | G60: =Inputs!$H$51*('Income Tax'!G18-('Income Tax'!G17+'Income Tax'!G15)) -> 0
A61: VGF | B61: USD | C61: =Inputs!I88+Inputs!I89 -> 0 | D61: =Inputs!I90 -> 0 | E61: =Inputs!I91 -> 0 | F61: =Inputs!I92 -> 0 | G61: =Inputs!I93 -> 0
A62: Increase in equity | B62: USD | C62: =C39 -> 29711.4028 | D62: =D39-C39 -> 0 | E62: 0 | F62: 0 | G62: 0 | H62: 0 | I62: 0 | J62: 0 | K62: 0 | L62: 0 | M62: 0 | N62: 0 | O62: 0 | P62: 0 | Q62: 0 | R62: 0 | S62: 0 | T62: 0 | U62: 0 | V62: 0 | W62: 0 | X62: 0 | Y62: 0 | Z62: 0 | AA62: 0 | AB62: 0
A63: Increase in debt | B63: USD | C63: ='Operating Costs'!C17 -> 69326.60654 | D63: 0 | E63: 0 | F63: 0 | G63: 0 | H63: 0 | I63: 0 | J63: 0 | K63: 0 | L63: 0 | M63: 0 | N63: 0 | O63: 0 | P63: 0 | Q63: 0 | R63: 0 | S63: 0 | T63: 0 | U63: 0 | V63: 0 | W63: 0 | X63: 0 | Y63: 0 | Z63: 0 | AA63: 0 | AB63: 0
A64: Gross cash accruals | B64: USD | C64: =C29+C23 -> -4491.960957 | D64: -7683.325742 | E64: -7414.474249 | F64: -6892.488412 | G64: -6370.02336 | H64: -5847.599588 | I64: -5324.675254 | J64: -4802.897194 | K64: -4280.630253 | L64: -3758.428019 | M64: -3235.717089 | N64: -2714.246231 | O64: -2192.282313 | P64: -1670.414454 | Q64: -1148.036222 | R64: -627.0050186 | S64: -105.4842823 | T64: 161.7010583 | U64: 175.1918777 | V64: 179.2122864 | W64: 143.417177 | X64: 143.3237639 | Y64: 143.6169576 | Z64: 142.6192547 | AA64: 141.9788271 | AB64: 141.1249466
A65: Increase in Working Capital Loan | B65: USD | C65: =C43 -> 9.719736797 | D65: =D43-C43 -> 7.255291719 | E65: 0.3722323816 | F65: 0.295712345 | G65: 0.349820133 | H65: 0.3611182412 | I65: 0.4190216049 | J65: 0.3395252661 | K65: 0.3987360159 | L65: 0.4126544095 | M65: 0.476153652 | N65: 0.394024006 | O65: 0.4592098131 | P65: 0.4765085566 | Q65: 0.546587117 | R65: 0.4623510399 | S65: 0.5346115358 | T65: 0.5562836087 | U65: 0.6341845161 | V65: 0.5486146249 | W65: 0.6293450423 | X65: 0.6566885268 | Y65: 0.7439922733 | Z65: 0.6581882975 | AA65: 0.7491685294 | AB65: 0.7838812206
A66: Total Sources | B66: USD | C66: =SUM(C60:C65) -> 94555.76813 | D66: -7676.07045 | E66: -7414.102017 | F66: -6892.1927 | G66: -6369.67354 | H66: -5847.23847 | I66: -5324.256233 | J66: -4802.557668 | K66: -4280.231517 | L66: -3758.015365 | M66: -3235.240935 | N66: -2713.852207 | O66: -2191.823104 | P66: -1669.937945 | Q66: -1147.489635 | R66: -626.5426676 | S66: -104.9496708 | T66: 162.2573419 | U66: 175.8260622 | V66: 179.760901 | W66: 144.046522 | X66: 143.9804525 | Y66: 144.3609499 | Z66: 143.277443 | AA66: 142.7279956 | AB66: 141.9088278
A68: Uses of Cash
A69: Capital expenditure | B69: USD | C69: =-C47 -> -99038.00935 | D69: =-(D47-C47) -> 0 | E69: 0 | F69: 0 | G69: 0 | H69: 0 | I69: 0 | J69: 0 | K69: 0 | L69: 0 | M69: 0 | N69: 0 | O69: 0 | P69: 0 | Q69: 0 | R69: 0 | S69: 0 | T69: 0 | U69: 0 | V69: 0 | W69: 0 | X69: 0 | Y69: 0 | Z69: 0 | AA69: 0 | AB69: 0
A70: Repayment of Debt | B70: USD | C70: =-(C63-C42) -> 0 | D70: =(D42-C42) -> -2310.886885 | E70: -4621.77377 | F70: -4621.77377 | G70: -4621.77377 | H70: -4621.77377 | I70: -4621.77377 | J70: -4621.77377 | K70: -4621.77377 | L70: -4621.77377 | M70: -4621.77377 | N70: -4621.77377 | O70: -4621.77377 | P70: -4621.77377 | Q70: -4621.77377 | R70: -4621.77377 | S70: -2310.886885 | T70: 0 | U70: 0 | V70: 0 | W70: 0 | X70: 0 | Y70: 0 | Z70: 0 | AA70: 0 | AB70: 0
A71: Dividend & Dividend Dist. Tax | B71: USD | C71: =-C31 -> 0 | D71: 0 | E71: 0 | F71: 0 | G71: 0 | H71: 0 | I71: 0 | J71: 0 | K71: 0 | L71: 0 | M71: 0 | N71: 0 | O71: 0 | P71: 0 | Q71: 0 | R71: 0 | S71: 0 | T71: 0 | U71: 0 | V71: 0 | W71: 0 | X71: 0 | Y71: 0 | Z71: 0 | AA71: 0 | AB71: 0
A72: Increase in Current Assets | B72: USD | C72: =-(C52+C53+C54) -> -9.719736797 | D72: =-((D52+D53+D54)-(C52+C53+C54)) -> -7.255291719 | E72: -0.3722323816 | F72: -0.295712345 | G72: -0.349820133 | H72: -0.3611182412 | I72: -0.4190216049 | J72: -0.3395252661 | K72: -0.3987360159 | L72: -0.4126544095 | M72: -0.476153652 | N72: -0.394024006 | O72: -0.4592098131 | P72: -0.4765085566 | Q72: -0.546587117 | R72: -0.4623510399 | S72: -0.5346115358 | T72: -0.5562836087 | U72: -0.6341845161 | V72: -0.5486146249 | W72: -0.6293450423 | X72: -0.6566885268 | Y72: -0.7439922733 | Z72: -0.6581882975 | AA72: -0.7491685294 | AB72: -0.7838812206
A73: Total Uses | B73: USD | C73: =SUM(C69:C72) -> -99047.72908 | D73: -2318.142176 | E73: -4622.146002 | F73: -4622.069482 | G73: -4622.12359 | H73: -4622.134888 | I73: -4622.192791 | J73: -4622.113295 | K73: -4622.172506 | L73: -4622.186424 | M73: -4622.249923 | N73: -4622.167794 | O73: -4622.232979 | P73: -4622.250278 | Q73: -4622.320357 | R73: -4622.236121 | S73: -2311.421496 | T73: -0.5562836087 | U73: -0.6341845161 | V73: -0.5486146249 | W73: -0.6293450423 | X73: -0.6566885268 | Y73: -0.7439922733 | Z73: -0.6581882975 | AA73: -0.7491685294 | AB73: -0.7838812206
A75: Opening Balance | B75: USD | C75: 0 | D75: =+C77 -> -4491.960957 | E75: -14486.17358 | F75: -26522.4216 | G75: -38036.68378 | H75: -49028.48091 | I75: -59497.85427 | J75: -69444.3033 | K75: -78868.97426 | L75: -87771.37828 | M75: -96151.58007 | N75: -104009.0709 | O75: -111345.0909 | P75: -118159.147 | Q75: -124451.3352 | R75: -130221.1452 | S75: -135469.924 | T75: -137886.2952 | U75: -137724.5941 | V75: -137549.4022 | W75: -137370.19 | X75: -137226.7728 | Y75: -137083.449 | Z75: -136939.8321 | AA75: -136797.2128 | AB75: -136655.234
A76: Surplus/Deficit | B76: USD | C76: =+C66+C73 -> -4491.960957 | D76: -9994.212627 | E76: -12036.24802 | F76: -11514.26218 | G76: -10991.79713 | H76: -10469.37336 | I76: -9946.449024 | J76: -9424.670963 | K76: -8902.404023 | L76: -8380.201789 | M76: -7857.490858 | N76: -7336.02 | O76: -6814.056083 | P76: -6292.188223 | Q76: -5769.809991 | R76: -5248.778788 | S76: -2416.371167 | T76: 161.7010583 | U76: 175.1918777 | V76: 179.2122864 | W76: 143.417177 | X76: 143.3237639 | Y76: 143.6169576 | Z76: 142.6192547 | AA76: 141.9788271 | AB76: 141.1249466
A77: Closing Balance | B77: USD | C77: =+C75+C76 -> -4491.960957 | D77: -14486.17358 | E77: -26522.4216 | F77: -38036.68378 | G77: -49028.48091 | H77: -59497.85427 | I77: -69444.3033 | J77: -78868.97426 | K77: -87771.37828 | L77: -96151.58007 | M77: -104009.0709 | N77: -111345.0909 | O77: -118159.147 | P77: -124451.3352 | Q77: -130221.1452 | R77: -135469.924 | S77: -137886.2952 | T77: -137724.5941 | U77: -137549.4022 | V77: -137370.19 | W77: -137226.7728 | X77: -137083.449 | Y77: -136939.8321 | Z77: -136797.2128 | AA77: -136655.234 | AB77: -136514.109

Sheet Cost Sheet
A2: Cost Sheet
A3: No. of Year | C3: =+'Operating Costs'!C7 -> 1 | D3: =+'Operating Costs'!D7 -> 2 | E3: =+'Operating Costs'!E7 -> 3 | F3: =+'Operating Costs'!F7 -> 4 | G3: =+'Operating Costs'!G7 -> 5 | H3: =+'Operating Costs'!H7 -> 6 | I3: =+'Operating Costs'!I7 -> 7 | J3: =+'Operating Costs'!J7 -> 8 | K3: =+'Operating Costs'!K7 -> 9 | L3: =+'Operating Costs'!L7 -> 10 | M3: =+'Operating Costs'!M7 -> 11 | N3: =+'Operating Costs'!N7 -> 12 | O3: =+'Operating Costs'!O7 -> 13 | P3: =+'Operating Costs'!P7 -> 14 | Q3: =+'Operating Costs'!Q7 -> 15 | R3: =+'Operating Costs'!R7 -> 16 | S3: =+'Operating Costs'!S7 -> 17 | T3: =+'Operating Costs'!T7 -> 18 | U3: =+'Operating Costs'!U7 -> 19 | V3: =+'Operating Costs'!V7 -> 20 | W3: =+'Operating Costs'!W7 -> 21 | X3: =+'Operating Costs'!X7 -> 22 | Y3: =+'Operating Costs'!Y7 -> 23 | Z3: =+'Operating Costs'!Z7 -> 24 | AA3: =+'Operating Costs'!AA7 -> 25 | AB3: =+'Operating Costs'!AB7 -> 26
A4: Year Start Date | C4: =+'Operating Costs'!C8 -> 2017-08-31 | D4: =+'Operating Costs'!D8 -> 2018-04-01 | E4: =+'Operating Costs'!E8 -> 2019-04-01 | F4: =+'Operating Costs'!F8 -> 2020-04-01 | G4: =+'Operating Costs'!G8 -> 2021-04-01 | H4: =+'Operating Costs'!H8 -> 2022-04-01 | I4: =+'Operating Costs'!I8 -> 2023-04-01 | J4: =+'Operating Costs'!J8 -> 2024-04-01 | K4: =+'Operating Costs'!K8 -> 2025-04-01 | L4: =+'Operating Costs'!L8 -> 2026-04-01 | M4: =+'Operating Costs'!M8 -> 2027-04-01 | N4: =+'Operating Costs'!N8 -> 2028-04-01 | O4: =+'Operating Costs'!O8 -> 2029-04-01 | P4: =+'Operating Costs'!P8 -> 2030-04-01 | Q4: =+'Operating Costs'!Q8 -> 2031-04-01 | R4: =+'Operating Costs'!R8 -> 2032-04-01 | S4: =+'Operating Costs'!S8 -> 2033-04-01 | T4: =+'Operating Costs'!T8 -> 2034-04-01 | U4: =+'Operating Costs'!U8 -> 2035-04-01 | V4: =+'Operating Costs'!V8 -> 2036-04-01 | W4: =+'Operating Costs'!W8 -> 2037-04-01 | X4: =+'Operating Costs'!X8 -> 2038-04-01 | Y4: =+'Operating Costs'!Y8 -> 2039-04-01 | Z4: =+'Operating Costs'!Z8 -> 2040-04-01 | AA4: =+'Operating Costs'!AA8 -> 2041-04-01 | AB4: =+'Operating Costs'!AB8 -> 2042-04-01
A5: Year End Date | C5: =+'Operating Costs'!C9 -> 2018-03-31 | D5: =+'Operating Costs'!D9 -> 2019-03-31 | E5: =+'Operating Costs'!E9 -> 2020-03-31 | F5: =+'Operating Costs'!F9 -> 2021-03-31 | G5: =+'Operating Costs'!G9 -> 2022-03-31 | H5: =+'Operating Costs'!H9 -> 2023-03-31 | I5: =+'Operating Costs'!I9 -> 2024-03-31 | J5: =+'Operating Costs'!J9 -> 2025-03-31 | K5: =+'Operating Costs'!K9 -> 2026-03-31 | L5: =+'Operating Costs'!L9 -> 2027-03-31 | M5: =+'Operating Costs'!M9 -> 2028-03-31 | N5: =+'Operating Costs'!N9 -> 2029-03-31 | O5: =+'Operating Costs'!O9 -> 2030-03-31 | P5: =+'Operating Costs'!P9 -> 2031-03-31 | Q5: =+'Operating Costs'!Q9 -> 2032-03-31 | R5: =+'Operating Costs'!R9 -> 2033-03-31 | S5: =+'Operating Costs'!S9 -> 2034-03-31 | T5: =+'Operating Costs'!T9 -> 2035-03-31 | U5: =+'Operating Costs'!U9 -> 2036-03-31 | V5: =+'Operating Costs'!V9 -> 2037-03-31 | W5: =+'Operating Costs'!W9 -> 2038-03-31 | X5: =+'Operating Costs'!X9 -> 2039-03-31 | Y5: =+'Operating Costs'!Y9 -> 2040-03-31 | Z5: =+'Operating Costs'!Z9 -> 2041-03-31 | AA5: =+'Operating Costs'!AA9 -> 2042-03-31 | AB5: =+'Operating Costs'!AB9 -> 2043-03-31
A6: Expenses
A7: Depreciation (as per Books) | B7: USD | C7: ='Operating Costs'!C26 -> 2898.986342 | D7: ='Operating Costs'!D26 -> 4967.746549 | E7: ='Operating Costs'!E26 -> 4967.746549 | F7: ='Operating Costs'!F26 -> 4967.746549 | G7: ='Operating Costs'!G26 -> 4967.746549 | H7: ='Operating Costs'!H26 -> 4967.746549 | I7: ='Operating Costs'!I26 -> 4967.746549 | J7: ='Operating Costs'!J26 -> 4967.746549 | K7: ='Operating Costs'!K26 -> 4967.746549 | L7: ='Operating Costs'!L26 -> 4967.746549 | M7: ='Operating Costs'!M26 -> 4967.746549 | N7: ='Operating Costs'!N26 -> 4967.746549 | O7: ='Operating Costs'!O26 -> 4967.746549 | P7: ='Operating Costs'!P26 -> 4967.746549 | Q7: ='Operating Costs'!Q26 -> 4967.746549 | R7: ='Operating Costs'!R26 -> 4967.746549 | S7: ='Operating Costs'!S26 -> 4967.746549 | T7: ='Operating Costs'!T26 -> 4967.746549 | U7: ='Operating Costs'!U26 -> 4967.746549 | V7: ='Operating Costs'!V26 -> 1767.684658 | W7: ='Operating Costs'!W26 -> 0 | X7: ='Operating Costs'!X26 -> 0 | Y7: ='Operating Costs'!Y26 -> 0 | Z7: ='Operating Costs'!Z26 -> 0 | AA7: ='Operating Costs'!AA26 -> 0 | AB7: ='Operating Costs'!AB26 -> 0
A8: Interest on Term Loan | B8: USD | C8: ='Operating Costs'!C20 -> 4450.198332 | D8: ='Operating Costs'!D20 -> 7625.92672 | E8: ='Operating Costs'!E20 -> 7371.729162 | F8: ='Operating Costs'!F20 -> 6863.334048 | G8: ='Operating Costs'!G20 -> 6354.938933 | H8: ='Operating Costs'!H20 -> 5846.543818 | I8: ='Operating Costs'!I20 -> 5338.148704 | J8: ='Operating Costs'!J20 -> 4829.753589 | K8: ='Operating Costs'!K20 -> 4321.358475 | L8: ='Operating Costs'!L20 -> 3812.96336 | M8: ='Operating Costs'!M20 -> 3304.568245 | N8: ='Operating Costs'!N20 -> 2796.173131 | O8: ='Operating Costs'!O20 -> 2287.778016 | P8: ='Operating Costs'!P20 -> 1779.382901 | Q8: ='Operating Costs'!Q20 -> 1270.987787 | R8: ='Operating Costs'!R20 -> 762.592672 | S8: ='Operating Costs'!S20 -> 254.1975573 | T8: ='Operating Costs'!T20 -> 0 | U8: ='Operating Costs'!U20 -> 0 | V8: ='Operating Costs'!V20 -> 0 | W8: ='Operating Costs'!W20 -> 0 | X8: ='Operating Costs'!X20 -> 0 | Y8: ='Operating Costs'!Y20 -> 0 | Z8: ='Operating Costs'!Z20 -> 0 | AA8: ='Operating Costs'!AA20 -> 0 | AB8: ='Operating Costs'!AB20 -> 0
A9: Interest on Working Capital | B9: USD | C9: ='Working Cap.'!C12 -> 1.069171048 | D9: ='Working Cap.'!D12 -> 1.867253137 | E9: ='Working Cap.'!E12 -> 1.908198699 | F9: ='Working Cap.'!F12 -> 1.940727057 | G9: ='Working Cap.'!G12 -> 1.979207271 | H9: ='Working Cap.'!H12 -> 2.018930278 | I9: ='Working Cap.'!I12 -> 2.065022654 | J9: ='Working Cap.'!J12 -> 2.102370434 | K9: ='Working Cap.'!K12 -> 2.146231395 | L9: ='Working Cap.'!L12 -> 2.19162338 | M9: ='Working Cap.'!M12 -> 2.244000282 | N9: ='Working Cap.'!N12 -> 2.287342923 | O9: ='Working Cap.'!O12 -> 2.337856002 | P9: ='Working Cap.'!P12 -> 2.390271944 | Q9: ='Working Cap.'!Q12 -> 2.450396526 | R9: ='Working Cap.'!R12 -> 2.501255141 | S9: ='Working Cap.'!S12 -> 2.56006241 | T9: ='Working Cap.'!T12 -> 2.621253607 | U9: ='Working Cap.'!U12 -> 2.691013903 | V9: ='Working Cap.'!V12 -> 2.751361512 | W9: ='Working Cap.'!W12 -> 2.820589467 | X9: ='Working Cap.'!X12 -> 2.892825205 | Y9: ='Working Cap.'!Y12 -> 2.974664355 | Z9: ='Working Cap.'!Z12 -> 3.047065068 | AA9: ='Working Cap.'!AA12 -> 3.129473606 | AB9: ='Working Cap.'!AB12 -> 3.21570054
A10: O & M Expenses | B10: USD | C10: ='Operating Costs'!C38 -> 8.053150685 | D10: ='Operating Costs'!D38 -> 14.766 | E10: ='Operating Costs'!E38 -> 15.79962 | F10: ='Operating Costs'!F38 -> 16.9055934 | G10: ='Operating Costs'!G38 -> 18.08898494 | H10: ='Operating Costs'!H38 -> 19.35521388 | I10: ='Operating Costs'!I38 -> 20.71007886 | J10: ='Operating Costs'!J38 -> 22.15978438 | K10: ='Operating Costs'!K38 -> 23.71096928 | L10: ='Operating Costs'!L38 -> 25.37073713 | M10: ='Operating Costs'!M38 -> 27.14668873 | N10: ='Operating Costs'!N38 -> 29.04695694 | O10: ='Operating Costs'!O38 -> 31.08024393 | P10: ='Operating Costs'!P38 -> 33.255861 | Q10: ='Operating Costs'!Q38 -> 35.58377127 | R10: ='Operating Costs'!R38 -> 38.07463526 | S10: ='Operating Costs'!S38 -> 40.73985973 | T10: ='Operating Costs'!T38 -> 43.59164991 | U10: ='Operating Costs'!U38 -> 46.64306541 | V10: ='Operating Costs'!V38 -> 49.90807998 | W10: ='Operating Costs'!W38 -> 53.40164558 | X10: ='Operating Costs'!X38 -> 57.13976077 | Y10: ='Operating Costs'!Y38 -> 61.13954403 | Z10: ='Operating Costs'!Z38 -> 65.41931211 | AA10: ='Operating Costs'!AA38 -> 69.99866396 | AB10: ='Operating Costs'!AB38 -> 74.89857043
A11: Insurance Expense | B11: USD | C11: ='Operating Costs'!C41 -> 140.2576158 | D11: ='Operating Costs'!D41 -> 227.9281911 | E11: ='Operating Costs'!E41 -> 215.5088248 | F11: ='Operating Costs'!F41 -> 203.0894584 | G11: ='Operating Costs'!G41 -> 190.670092 | H11: ='Operating Costs'!H41 -> 178.2507257 | I11: ='Operating Costs'!I41 -> 165.8313593 | J11: ='Operating Costs'!J41 -> 153.4119929 | K11: ='Operating Costs'!K41 -> 140.9926265 | L11: ='Operating Costs'!L41 -> 128.5732602 | M11: ='Operating Costs'!M41 -> 116.1538938 | N11: ='Operating Costs'!N41 -> 103.7345274 | O11: ='Operating Costs'!O41 -> 91.31516105 | P11: ='Operating Costs'!P41 -> 78.89579467 | Q11: ='Operating Costs'!Q41 -> 66.4764283 | R11: ='Operating Costs'!R41 -> 54.05706193 | S11: ='Operating Costs'!S41 -> 41.63769556 | T11: ='Operating Costs'!T41 -> 29.21832919 | U11: ='Operating Costs'!U41 -> 16.79896281 | V11: ='Operating Costs'!V41 -> 12.37975117 | W11: ='Operating Costs'!W41 -> 12.37975117 | X11: ='Operating Costs'!X41 -> 12.37975117 | Y11: ='Operating Costs'!Y41 -> 12.37975117 | Z11: ='Operating Costs'!Z41 -> 12.37975117 | AA11: ='Operating Costs'!AA41 -> 12.37975117 | AB11: ='Operating Costs'!AB41 -> 12.37975117
A12: Misc. Expense incl. Spares | B12: USD | C12: ='Operating Costs'!C44 -> 0 | D12: ='Operating Costs'!D44 -> 0 | E12: ='Operating Costs'!E44 -> 0 | F12: ='Operating Costs'!F44 -> 0 | G12: ='Operating Costs'!G44 -> 0 | H12: ='Operating Costs'!H44 -> 0 | I12: ='Operating Costs'!I44 -> 0 | J12: ='Operating Costs'!J44 -> 0 | K12: ='Operating Costs'!K44 -> 0 | L12: ='Operating Costs'!L44 -> 0 | M12: ='Operating Costs'!M44 -> 0 | N12: ='Operating Costs'!N44 -> 0 | O12: ='Operating Costs'!O44 -> 0 | P12: ='Operating Costs'!P44 -> 0 | Q12: ='Operating Costs'!Q44 -> 0 | R12: ='Operating Costs'!R44 -> 0 | S12: ='Operating Costs'!S44 -> 0 | T12: ='Operating Costs'!T44 -> 0 | U12: ='Operating Costs'!U44 -> 0 | V12: ='Operating Costs'!V44 -> 0 | W12: ='Operating Costs'!W44 -> 0 | X12: ='Operating Costs'!X44 -> 0 | Y12: ='Operating Costs'!Y44 -> 0 | Z12: ='Operating Costs'!Z44 -> 0 | AA12: ='Operating Costs'!AA44 -> 0 | AB12: ='Operating Costs'!AB44 -> 0
A13: Total Expenses (A) | B13: USD | C13: =SUM(C7:C12) -> 7498.564612 | D13: 12838.23471 | E13: 12572.69235 | F13: 12053.01638 | G13: 11533.42377 | H13: 11013.91524 | I13: 10494.50171 | J13: 9975.174286 | K13: 9455.954851 | L13: 8936.845529 | M13: 8417.859377 | N13: 7898.988507 | O13: 7380.257826 | P13: 6861.671378 | Q13: 6343.244932 | R13: 5824.972173 | S13: 5306.881724 | T13: 5043.177782 | U13: 5033.879591 | V13: 1832.723851 | W13: 68.60198622 | X13: 72.41233715 | Y13: 76.49395955 | Z13: 80.84612835 | AA13: 85.50788873 | AB13: 90.49402214
A15: Other Income
A16: Interest on Cash Balance | B16: USD | C16: =+'PL, BS, CF'!C8 -> 0 | D16: =+'PL, BS, CF'!D8 -> 0 | E16: =+'PL, BS, CF'!E8 -> 0 | F16: =+'PL, BS, CF'!F8 -> 0 | G16: =+'PL, BS, CF'!G8 -> 0 | H16: =+'PL, BS, CF'!H8 -> 0 | I16: =+'PL, BS, CF'!I8 -> 0 | J16: =+'PL, BS, CF'!J8 -> 0 | K16: =+'PL, BS, CF'!K8 -> 0 | L16: =+'PL, BS, CF'!L8 -> 0 | M16: =+'PL, BS, CF'!M8 -> 0 | N16: =+'PL, BS, CF'!N8 -> 0 | O16: =+'PL, BS, CF'!O8 -> 0 | P16: =+'PL, BS, CF'!P8 -> 0 | Q16: =+'PL, BS, CF'!Q8 -> 0 | R16: =+'PL, BS, CF'!R8 -> 0 | S16: =+'PL, BS, CF'!S8 -> 0 | T16: =+'PL, BS, CF'!T8 -> 0 | U16: =+'PL, BS, CF'!U8 -> 0 | V16: =+'PL, BS, CF'!V8 -> 0 | W16: =+'PL, BS, CF'!W8 -> 0 | X16: =+'PL, BS, CF'!X8 -> 0 | Y16: =+'PL, BS, CF'!Y8 -> 0 | Z16: =+'PL, BS, CF'!Z8 -> 0 | AA16: =+'PL, BS, CF'!AA8 -> 0 | AB16: =+'PL, BS, CF'!AB8 -> 0
A17: Revenue form GBI | B17: USD | C17: =+'PL, BS, CF'!C9 -> 0 | D17: =+'PL, BS, CF'!D9 -> 0 | E17: =+'PL, BS, CF'!E9 -> 0 | F17: =+'PL, BS, CF'!F9 -> 0 | G17: =+'PL, BS, CF'!G9 -> 0 | H17: =+'PL, BS, CF'!H9 -> 0 | I17: =+'PL, BS, CF'!I9 -> 0 | J17: =+'PL, BS, CF'!J9 -> 0 | K17: =+'PL, BS, CF'!K9 -> 0 | L17: =+'PL, BS, CF'!L9 -> 0 | M17: =+'PL, BS, CF'!M9 -> 0 | N17: =+'PL, BS, CF'!N9 -> 0 | O17: =+'PL, BS, CF'!O9 -> 0 | P17: =+'PL, BS, CF'!P9 -> 0 | Q17: =+'PL, BS, CF'!Q9 -> 0 | R17: =+'PL, BS, CF'!R9 -> 0 | S17: =+'PL, BS, CF'!S9 -> 0 | T17: =+'PL, BS, CF'!T9 -> 0 | U17: =+'PL, BS, CF'!U9 -> 0 | V17: =+'PL, BS, CF'!V9 -> 0 | W17: =+'PL, BS, CF'!W9 -> 0 | X17: =+'PL, BS, CF'!X9 -> 0 | Y17: =+'PL, BS, CF'!Y9 -> 0 | Z17: =+'PL, BS, CF'!Z9 -> 0 | AA17: =+'PL, BS, CF'!AA9 -> 0 | AB17: =+'PL, BS, CF'!AB9 -> 0
A18: Revenue from CDM benefit | B18: USD | C18: =+'PL, BS, CF'!C10 -> 0 | D18: =+'PL, BS, CF'!D10 -> 0 | E18: =+'PL, BS, CF'!E10 -> 0 | F18: =+'PL, BS, CF'!F10 -> 0 | G18: =+'PL, BS, CF'!G10 -> 0 | H18: =+'PL, BS, CF'!H10 -> 0 | I18: =+'PL, BS, CF'!I10 -> 0 | J18: =+'PL, BS, CF'!J10 -> 0 | K18: =+'PL, BS, CF'!K10 -> 0 | L18: =+'PL, BS, CF'!L10 -> 0 | M18: =+'PL, BS, CF'!M10 -> 0 | N18: =+'PL, BS, CF'!N10 -> 0 | O18: =+'PL, BS, CF'!O10 -> 0 | P18: =+'PL, BS, CF'!P10 -> 0 | Q18: =+'PL, BS, CF'!Q10 -> 0 | R18: =+'PL, BS, CF'!R10 -> 0 | S18: =+'PL, BS, CF'!S10 -> 0 | T18: =+'PL, BS, CF'!T10 -> 0 | U18: =+'PL, BS, CF'!U10 -> 0 | V18: =+'PL, BS, CF'!V10 -> 0 | W18: =+'PL, BS, CF'!W10 -> 0 | X18: =+'PL, BS, CF'!X10 -> 0 | Y18: =+'PL, BS, CF'!Y10 -> 0 | Z18: =+'PL, BS, CF'!Z10 -> 0 | AA18: =+'PL, BS, CF'!AA10 -> 0 | AB18: =+'PL, BS, CF'!AB10 -> 0
A19: Total Other Income (B) | B19: USD | C19: =SUM(C16:C18) -> 0 | D19: 0 | E19: 0 | F19: 0 | G19: 0 | H19: 0 | I19: 0 | J19: 0 | K19: 0 | L19: 0 | M19: 0 | N19: 0 | O19: 0 | P19: 0 | Q19: 0 | R19: 0 | S19: 0 | T19: 0 | U19: 0 | V19: 0 | W19: 0 | X19: 0 | Y19: 0 | Z19: 0 | AA19: 0 | AB19: 0
A21: Income Tax (Actual) (C ) | B21: USD | C21: =+'Income Tax'!C32 -> 0 | D21: =+'Income Tax'!D32 -> 0 | E21: =+'Income Tax'!E32 -> 0 | F21: =+'Income Tax'!F32 -> 0 | G21: =+'Income Tax'!G32 -> 0 | H21: =+'Income Tax'!H32 -> 0 | I21: =+'Income Tax'!I32 -> 0 | J21: =+'Income Tax'!J32 -> 0 | K21: =+'Income Tax'!K32 -> 0 | L21: =+'Income Tax'!L32 -> 0 | M21: =+'Income Tax'!M32 -> 0 | N21: =+'Income Tax'!N32 -> 0 | O21: =+'Income Tax'!O32 -> 0 | P21: =+'Income Tax'!P32 -> 0 | Q21: =+'Income Tax'!Q32 -> 0 | R21: =+'Income Tax'!R32 -> 0 | S21: =+'Income Tax'!S32 -> 0 | T21: =+'Income Tax'!T32 -> 0 | U21: =+'Income Tax'!U32 -> 0 | V21: =+'Income Tax'!V32 -> 0 | W21: =+'Income Tax'!W32 -> 35.87166285 | X21: =+'Income Tax'!X32 -> 35.84829828 | Y21: =+'Income Tax'!Y32 -> 35.92163221 | Z21: =+'Income Tax'!Z32 -> 35.67208565 | AA21: =+'Income Tax'!AA32 -> 35.51190119 | AB21: =+'Income Tax'!AB32 -> 35.29832766
A23: Total Net Expense (A-B+C) | B23: USD | C23: =C13-C19+C21 -> 7498.564612 | D23: 12838.23471 | E23: 12572.69235 | F23: 12053.01638 | G23: 11533.42377 | H23: 11013.91524 | I23: 10494.50171 | J23: 9975.174286 | K23: 9455.954851 | L23: 8936.845529 | M23: 8417.859377 | N23: 7898.988507 | O23: 7380.257826 | P23: 6861.671378 | Q23: 6343.244932 | R23: 5824.972173 | S23: 5306.881724 | T23: 5043.177782 | U23: 5033.879591 | V23: 1832.723851 | W23: 104.4736491 | X23: 108.2606354 | Y23: 112.4155918 | Z23: 116.518214 | AA23: 121.0197899 | AB23: 125.7923498
A26: Generation Available for Sale | B26: USD 000's Unit | C26: =Revenue!C17 -> 19.047312 | D26: =Revenue!D17 -> 32.4765612 | E26: =Revenue!E17 -> 32.40271039 | F26: =Revenue!F17 -> 32.1526075 | G26: =Revenue!G17 -> 31.99184446 | H26: =Revenue!H17 -> 31.83188524 | I26: =Revenue!I17 -> 31.75950041 | J26: =Revenue!J17 -> 31.51436219 | K26: =Revenue!K17 -> 31.35679038 | L26: =Revenue!L17 -> 31.20000642 | M26: =Revenue!M17 -> 31.12905846 | N26: =Revenue!N17 -> 30.88878636 | O26: =Revenue!O17 -> 30.73434243 | P26: =Revenue!P17 -> 30.58067072 | Q26: =Revenue!Q17 -> 30.51113111 | R26: =Revenue!R17 -> 30.27562853 | S26: =Revenue!S17 -> 30.12425038 | T26: =Revenue!T17 -> 29.97362913 | U26: =Revenue!U17 -> 29.90546992 | V26: =Revenue!V17 -> 29.67464218 | W26: =Revenue!W17 -> 29.52626897 | X26: =Revenue!X17 -> 29.37863762 | Y26: =Revenue!Y17 -> 29.31183141 | Z26: =Revenue!Z17 -> 29.08558571 | AA26: =Revenue!AA17 -> 28.94015779 | AB26: =Revenue!AB17 -> 28.795457
A29: Total Net Expense | B29: USD/MWH | C29: =+C23/C26 -> 393.6809883 | D29: 395.3077 | E29: 388.0136014 | F29: 374.8690172 | G29: 360.5113728 | H29: 346.0026057 | I29: 330.436612 | J29: 316.5278811 | K29: 301.5600365 | L29: 286.4372977 | M29: 270.4180528 | N29: 255.7234983 | O29: 240.1306565 | P29: 224.3793618 | Q29: 207.8993699 | R29: 192.3980593 | S29: 176.1664326 | T29: 168.253826 | U29: 168.3263833 | V29: 61.76060489 | W29: 3.538328841 | X29: 3.68501211 | Y29: 3.83516097 | Z29: 4.006046677 | AA29: 4.181725297 | AB29: 4.368479021
A30: Tariff | B30: USD/MWH | C30: =Revenue!C19 -> 5.65 | D30: =Revenue!D19 -> 5.763 | E30: =Revenue!E19 -> 5.87826 | F30: =Revenue!F19 -> 5.9958252 | G30: =Revenue!G19 -> 6.115741704 | H30: =Revenue!H19 -> 6.238056538 | I30: =Revenue!I19 -> 6.362817669 | J30: =Revenue!J19 -> 6.490074022 | K30: =Revenue!K19 -> 6.619875503 | L30: =Revenue!L19 -> 6.752273013 | M30: =Revenue!M19 -> 6.887318473 | N30: =Revenue!N19 -> 7.025064842 | O30: =Revenue!O19 -> 7.165566139 | P30: =Revenue!P19 -> 7.308877462 | Q30: =Revenue!Q19 -> 7.455055011 | R30: =Revenue!R19 -> 7.604156112 | S30: =Revenue!S19 -> 7.756239234 | T30: =Revenue!T19 -> 7.911364018 | U30: =Revenue!U19 -> 8.069591299 | V30: =Revenue!V19 -> 8.230983125 | W30: =Revenue!W19 -> 8.395602787 | X30: =Revenue!X19 -> 8.563514843 | Y30: =Revenue!Y19 -> 8.73478514 | Z30: =Revenue!Z19 -> 8.909480843 | AA30: =Revenue!AA19 -> 9.08767046 | AB30: =Revenue!AB19 -> 9.269423869
A31: Surplus / (Deficit) | B31: USD/MWH | C31: =C30-C29 -> -388.0309883 | D31: -389.5447 | E31: -382.1353414 | F31: -368.873192 | G31: -354.3956311 | H31: -339.7645491 | I31: -324.0737943 | J31: -310.037807 | K31: -294.940161 | L31: -279.6850247 | M31: -263.5307344 | N31: -248.6984335 | O31: -232.9650904 | P31: -217.0704843 | Q31: -200.4443149 | R31: -184.7939032 | S31: -168.4101933 | T31: -160.342462 | U31: -160.256792 | V31: -53.52962176 | W31: 4.857273946 | X31: 4.878502733 | Y31: 4.89962417 | Z31: 4.903434166 | AA31: 4.905945162 | AB31: 4.900944848
A32: Surplus / (Deficit) | B32: USD | C32: =C31*C26 -> -7390.947299 | D32: -12651.07229 | E32: -12382.2208 | F32: -11860.23496 | G32: -11337.76991 | H32: -10815.34614 | I32: -10292.4218 | J32: -9770.643742 | K32: -9248.376802 | L32: -8726.174568 | M32: -8203.463637 | N32: -7681.99278 | O32: -7160.028862 | P32: -6638.161003 | Q32: -6115.782771 | R32: -5594.751567 | S32: -5073.230831 | T32: -4806.045491 | U32: -4792.554671 | V32: -1588.472372 | W32: 143.417177 | X32: 143.3237639 | Y32: 143.6169576 | Z32: 142.6192547 | AA32: 141.9788271 | AB32: 141.1249466
A33: Actual PAT (as per P&L A/c) | B33: USD | C33: ='PL, BS, CF'!C29 -> -7390.947299 | D33: ='PL, BS, CF'!D29 -> -12651.07229 | E33: ='PL, BS, CF'!E29 -> -12382.2208 | F33: ='PL, BS, CF'!F29 -> -11860.23496 | G33: ='PL, BS, CF'!G29 -> -11337.76991 | H33: ='PL, BS, CF'!H29 -> -10815.34614 | I33: ='PL, BS, CF'!I29 -> -10292.4218 | J33: ='PL, BS, CF'!J29 -> -9770.643742 | K33: ='PL, BS, CF'!K29 -> -9248.376802 | L33: ='PL, BS, CF'!L29 -> -8726.174568 | M33: ='PL, BS, CF'!M29 -> -8203.463637 | N33: ='PL, BS, CF'!N29 -> -7681.99278 | O33: ='PL, BS, CF'!O29 -> -7160.028862 | P33: ='PL, BS, CF'!P29 -> -6638.161003 | Q33: ='PL, BS, CF'!Q29 -> -6115.782771 | R33: ='PL, BS, CF'!R29 -> -5594.751567 | S33: ='PL, BS, CF'!S29 -> -5073.230831 | T33: ='PL, BS, CF'!T29 -> -4806.045491 | U33: ='PL, BS, CF'!U29 -> -4792.554671 | V33: ='PL, BS, CF'!V29 -> -1588.472372 | W33: ='PL, BS, CF'!W29 -> 143.417177 | X33: ='PL, BS, CF'!X29 -> 143.3237639 | Y33: ='PL, BS, CF'!Y29 -> 143.6169576 | Z33: ='PL, BS, CF'!Z29 -> 142.6192547 | AA33: ='PL, BS, CF'!AA29 -> 141.9788271 | AB33: ='PL, BS, CF'!AB29 -> 141.1249466
A34: check | C34: =C32-C33 -> 0 | D34: 0 | E34: 0 | F34: 0 | G34: 0 | H34: 0 | I34: 0 | J34: 0 | K34: 0 | L34: 0 | M34: 0 | N34: 0 | O34: 0 | P34: 0 | Q34: 0 | R34: 0 | S34: 0 | T34: 0 | U34: 0 | V34: 0 | W34: 0 | X34: 0 | Y34: 0 | Z34: 0 | AA34: 0 | AB34: 0
A37: Discounting Factor | B37: =Inputs!C89 -> 0.1596 | C37: 1 | D37: =1/((1+Inputs!$C$89)^('Cost Sheet'!D3-1)) -> 0.8623663332 | E37: =1/((1+Inputs!$C$89)^('Cost Sheet'!E3-1)) -> 0.7436756927 | F37: =1/((1+Inputs!$C$89)^('Cost Sheet'!F3-1)) -> 0.6413208802 | G37: =1/((1+Inputs!$C$89)^('Cost Sheet'!G3-1)) -> 0.5530535359 | H37: =1/((1+Inputs!$C$89)^('Cost Sheet'!H3-1)) -> 0.4769347498 | I37: =1/((1+Inputs!$C$89)^('Cost Sheet'!I3-1)) -> 0.4112924714 | J37: =1/((1+Inputs!$C$89)^('Cost Sheet'!J3-1)) -> 0.3546847804 | K37: =1/((1+Inputs!$C$89)^('Cost Sheet'!K3-1)) -> 0.3058682135 | L37: =1/((1+Inputs!$C$89)^('Cost Sheet'!L3-1)) -> 0.2637704498 | M37: =1/((1+Inputs!$C$89)^('Cost Sheet'!M3-1)) -> 0.2274667556 | N37: =1/((1+Inputs!$C$89)^('Cost Sheet'!N3-1)) -> 0.1961596719 | O37: =1/((1+Inputs!$C$89)^('Cost Sheet'!O3-1)) -> 0.169161497 | P37: =1/((1+Inputs!$C$89)^('Cost Sheet'!P3-1)) -> 0.1458791799 | Q37: =1/((1+Inputs!$C$89)^('Cost Sheet'!Q3-1)) -> 0.1258012935 | R37: =1/((1+Inputs!$C$89)^('Cost Sheet'!R3-1)) -> 0.1084868002 | S37: =1/((1+Inputs!$C$89)^('Cost Sheet'!S3-1)) -> 0.09355536405 | T37: =1/((1+Inputs!$C$89)^('Cost Sheet'!T3-1)) -> 0.08067899625 | U37: =1/((1+Inputs!$C$89)^('Cost Sheet'!U3-1)) -> 0.06957485016 | V37: =1/((1+Inputs!$C$89)^('Cost Sheet'!V3-1)) -> 0.05999900842 | W37: =1/((1+Inputs!$C$89)^('Cost Sheet'!W3-1)) -> 0.05174112489 | X37: =1/((1+Inputs!$C$89)^('Cost Sheet'!X3-1)) -> 0.04461980415 | Y37: =1/((1+Inputs!$C$89)^('Cost Sheet'!Y3-1)) -> 0.03847861689 | Z37: =1/((1+Inputs!$C$89)^('Cost Sheet'!Z3-1)) -> 0.03318266375 | AA37: =1/((1+Inputs!$C$89)^('Cost Sheet'!AA3-1)) -> 0.02861561207 | AB37: =1/((1+Inputs!$C$89)^('Cost Sheet'!AB3-1)) -> 0.02467714045
A40: Levelised Cost of Electricity - Summary
A41: Total Net Expense | B41: USD/MWH | C41: =+SUMPRODUCT(C29:AB29,C37:AB37)/SUM(C37:AB37) -> 326.5761966
A42: Tariff | B42: USD/MWH | C42: =+SUMPRODUCT(C30:AB30,C37:AB37)/SUM(C37:AB37) -> 6.364873433
A43: Surplus / (Deficit) | B43: USD/MWH | C43: =+SUMPRODUCT(C31:AB31,C37:AB37)/SUM(C37:AB37) -> -320.2113232
A48: Per Unit - Break Up
A49: Expenses
A50: Depreciation (as per Books) | B50: USD/MWH | C50: =+C7/C26 -> 152.1992364 | D50: 152.9640567 | E50: 153.3126855 | F50: 154.5052465 | G50: 155.2816548 | H50: 156.0619646 | I50: 156.4176541 | J50: 157.6343674 | K50: 158.4264999 | L50: 159.222613 | M50: 159.5855061 | N50: 160.826861 | O50: 161.6350361 | P50: 162.4472725 | Q50: 162.8175151 | R50: 164.0840105 | S50: 164.9085533 | T50: 165.7372395 | U50: 166.1149804 | V50: 59.56886177 | W50: 0 | X50: 0 | Y50: 0 | Z50: 0 | AA50: 0 | AB50: 0
A51: Interest on Term Loan | B51: USD/MWH | C51: =+C8/C26 -> 233.6391787 | D51: 234.8132449 | E51: 227.5034734 | F51: 213.4611959 | G51: 198.6424678 | H51: 183.6694174 | I51: 168.0803739 | J51: 153.255635 | K51: 137.8125255 | L51: 122.2103389 | M51: 106.1570252 | N51: 90.52389103 | O51: 74.43718769 | P51: 58.18652304 | Q51: 41.65652798 | R51: 25.18833494 | S51: 8.438303164 | T51: 0 | U51: 0 | V51: 0 | W51: 0 | X51: 0 | Y51: 0 | Z51: 0 | AA51: 0 | AB51: 0
A52: Interest on Working Capital | B52: USD/MWH | C52: =+C9/C26 -> 0.05613238486 | D52: 0.057495408 | E52: 0.05889009517 | F52: 0.06035986526 | G52: 0.06186599443 | H52: 0.06342477872 | I52: 0.06502062778 | J52: 0.06671150192 | K52: 0.06844550637 | L52: 0.07024432465 | M52: 0.07208699501 | N52: 0.07405091596 | O52: 0.07606656976 | P52: 0.07816283579 | Q52: 0.08031155966 | R52: 0.08261612599 | S52: 0.08498343949 | T52: 0.08745199306 | U52: 0.08998400328 | V52: 0.09271759691 | W52: 0.09552813699 | X52: 0.09846696235 | Y52: 0.1014834015 | Z52: 0.1047620322 | AA52: 0.1081360243 | AB52: 0.1116738845
A53: O & M Expenses | B53: USD/MWH | C53: =+C10/C26 -> 0.4227972265 | D53: 0.4546663641 | E53: 0.4876018028 | F53: 0.5257922985 | G53: 0.5654248838 | H53: 0.6080448499 | I53: 0.6520908261 | J53: 0.7031646157 | K53: 0.7561669736 | L53: 0.8131644842 | M53: 0.8720690593 | N53: 0.940372231 | O53: 1.01125456 | P53: 1.087479778 | Q53: 1.166255395 | R53: 1.257600159 | S53: 1.352394141 | T53: 1.454333398 | U53: 1.559683413 | V53: 1.681842688 | W53: 1.80861475 | X53: 1.944942495 | Y53: 2.085831594 | Z53: 2.249200437 | AA53: 2.418738159 | AB53: 2.601055105
A54: Insurance Expense | B54: USD/MWH | C54: =+C11/C26 -> 7.363643529 | D54: 7.018236621 | E54: 6.650950559 | F54: 6.316422654 | G54: 5.959959334 | H54: 5.599753967 | I54: 5.221472541 | J54: 4.868002468 | K54: 4.496398542 | L54: 4.120936977 | M54: 3.731365468 | N54: 3.358323186 | O54: 2.971111592 | P54: 2.579923619 | Q54: 2.178759878 | R54: 1.785497595 | S54: 1.382198562 | T54: 0.9748011847 | U54: 0.5617354571 | V54: 0.4171828288 | W54: 0.4192792249 | X54: 0.4213861557 | Y54: 0.4223465602 | Z54: 0.4256318332 | AA54: 0.4277706867 | AB54: 0.4299202881
A55: Misc. Expense incl. Spares | B55: USD/MWH | C55: =+C12/C26 -> 0 | D55: 0 | E55: 0 | F55: 0 | G55: 0 | H55: 0 | I55: 0 | J55: 0 | K55: 0 | L55: 0 | M55: 0 | N55: 0 | O55: 0 | P55: 0 | Q55: 0 | R55: 0 | S55: 0 | T55: 0 | U55: 0 | V55: 0 | W55: 0 | X55: 0 | Y55: 0 | Z55: 0 | AA55: 0 | AB55: 0
A56: Total Expenses | B56: USD/MWH | C56: =SUM(C50:C55) -> 393.6809883 | D56: 395.3077 | E56: 388.0136014 | F56: 374.8690172 | G56: 360.5113728 | H56: 346.0026057 | I56: 330.436612 | J56: 316.5278811 | K56: 301.5600365 | L56: 286.4372977 | M56: 270.4180528 | N56: 255.7234983 | O56: 240.1306565 | P56: 224.3793618 | Q56: 207.8993699 | R56: 192.3980593 | S56: 176.1664326 | T56: 168.253826 | U56: 168.3263833 | V56: 61.76060489 | W56: 2.323422112 | X56: 2.464795613 | Y56: 2.609661556 | Z56: 2.779594303 | AA56: 2.95464487 | AB56: 3.142649278
A58: Other Income
A59: Interest on Cash Balance | B59: USD/MWH | C59: =+C16/C26 -> 0 | D59: 0 | E59: 0 | F59: 0 | G59: 0 | H59: 0 | I59: 0 | J59: 0 | K59: 0 | L59: 0 | M59: 0 | N59: 0 | O59: 0 | P59: 0 | Q59: 0 | R59: 0 | S59: 0 | T59: 0 | U59: 0 | V59: 0 | W59: 0 | X59: 0 | Y59: 0 | Z59: 0 | AA59: 0 | AB59: 0
A60: Revenue form GBI | B60: USD/MWH | C60: =+C17/C26 -> 0 | D60: 0 | E60: 0 | F60: 0 | G60: 0 | H60: 0 | I60: 0 | J60: 0 | K60: 0 | L60: 0 | M60: 0 | N60: 0 | O60: 0 | P60: 0 | Q60: 0 | R60: 0 | S60: 0 | T60: 0 | U60: 0 | V60: 0 | W60: 0 | X60: 0 | Y60: 0 | Z60: 0 | AA60: 0 | AB60: 0
A61: Revenue from CDM benefit | B61: USD/MWH | C61: =+C18/C26 -> 0 | D61: 0 | E61: 0 | F61: 0 | G61: 0 | H61: 0 | I61: 0 | J61: 0 | K61: 0 | L61: 0 | M61: 0 | N61: 0 | O61: 0 | P61: 0 | Q61: 0 | R61: 0 | S61: 0 | T61: 0 | U61: 0 | V61: 0 | W61: 0 | X61: 0 | Y61: 0 | Z61: 0 | AA61: 0 | AB61: 0
A62: Total Other Income | B62: USD/MWH | C62: =SUM(C59:C61) -> 0 | D62: 0 | E62: 0 | F62: 0 | G62: 0 | H62: 0 | I62: 0 | J62: 0 | K62: 0 | L62: 0 | M62: 0 | N62: 0 | O62: 0 | P62: 0 | Q62: 0 | R62: 0 | S62: 0 | T62: 0 | U62: 0 | V62: 0 | W62: 0 | X62: 0 | Y62: 0 | Z62: 0 | AA62: 0 | AB62: 0
A64: Income Tax (Actual) | B64: USD/MWH | C64: =+C21/C26 -> 0 | D64: 0 | E64: 0 | F64: 0 | G64: 0 | H64: 0 | I64: 0 | J64: 0 | K64: 0 | L64: 0 | M64: 0 | N64: 0 | O64: 0 | P64: 0 | Q64: 0 | R64: 0 | S64: 0 | T64: 0 | U64: 0 | V64: 0 | W64: 1.214906729 | X64: 1.220216497 | Y64: 1.225499414 | Z64: 1.226452374 | AA64: 1.227080427 | AB64: 1.225829743
A66: Total Net Expense | B66: USD/MWH | C66: =C56-C62+C64 -> 393.6809883 | D66: 395.3077 | E66: 388.0136014 | F66: 374.8690172 | G66: 360.5113728 | H66: 346.0026057 | I66: 330.436612 | J66: 316.5278811 | K66: 301.5600365 | L66: 286.4372977 | M66: 270.4180528 | N66: 255.7234983 | O66: 240.1306565 | P66: 224.3793618 | Q66: 207.8993699 | R66: 192.3980593 | S66: 176.1664326 | T66: 168.253826 | U66: 168.3263833 | V66: 61.76060489 | W66: 3.538328841 | X66: 3.68501211 | Y66: 3.83516097 | Z66: 4.006046677 | AA66: 4.181725297 | AB66: 4.368479021
A67: Check | C67: =C66-C29 -> 0 | D67: 0 | E67: 0 | F67: 0 | G67: 0 | H67: 0 | I67: 0 | J67: 0 | K67: 0 | L67: 0 | M67: 0 | N67: 0 | O67: 0 | P67: 0 | Q67: 0 | R67: 0 | S67: 0 | T67: 0 | U67: 0 | V67: 0 | W67: 0 | X67: 0 | Y67: 0 | Z67: 0 | AA67: 0 | AB67: 0
A70: Levelised - USD/MWH
A71: Depreciation (as per Books) | B71: USD/MWH | C71: =+SUMPRODUCT(C50:AB50,$C$37:$AB$37)/SUM($C$37:$AB$37) -> 150.3753271
A72: Interest on Term Loan | B72: USD/MWH | C72: 170.0595089
A73: Interest on Working Capital | B73: USD/MWH | C73: 0.06556120216
A74: O & M Expenses | B74: USD/MWH | C74: 0.7029086704
A75: Insurance Expense | B75: USD/MWH | C75: 5.33484818
A76: Misc. Expense incl. Spares | B76: USD/MWH | C76: 0
A77: Total Expenses (A) | B77: USD/MWH | C77: =SUM(C71:C76) -> 326.538154
A79: Interest on Cash Balance | B79: USD/MWH | C79: =+SUMPRODUCT(C59:AB59,$C$37:$AB$37)/SUM($C$37:$AB$37) -> 0
A80: Revenue form GBI | B80: USD/MWH | C80: 0
A81: Revenue from CDM benefit | B81: USD/MWH | C81: 0
A82: Total Other Income (B) | B82: USD/MWH | C82: =SUM(C79:C81) -> 0
A84: Income Tax (Actual) (C ) | B84: USD/MWH | C84: =+SUMPRODUCT(C64:AB64,$C$37:$AB$37)/SUM($C$37:$AB$37) -> 0.03804258767
A86: Total Net Expense (A-B+C) | B86: USD/MWH | C86: =C77-C82+C84 -> 326.5761966
A87: Tariff | B87: USD/MWH | C87: =C42 -> 6.364873433
A88: Levelised Tariff Surplus / (Deficit) | B88: USD/MWH | C88: =C87-C86 -> -320.2113232

Sheet Ratio
A2: Ratios
A3: No. of Year | C3: =+'Operating Costs'!C7 -> 1 | D3: =+'Operating Costs'!D7 -> 2 | E3: =+'Operating Costs'!E7 -> 3 | F3: =+'Operating Costs'!F7 -> 4 | G3: =+'Operating Costs'!G7 -> 5 | H3: =+'Operating Costs'!H7 -> 6 | I3: =+'Operating Costs'!I7 -> 7 | J3: =+'Operating Costs'!J7 -> 8 | K3: =+'Operating Costs'!K7 -> 9 | L3: =+'Operating Costs'!L7 -> 10 | M3: =+'Operating Costs'!M7 -> 11 | N3: =+'Operating Costs'!N7 -> 12 | O3: =+'Operating Costs'!O7 -> 13 | P3: =+'Operating Costs'!P7 -> 14 | Q3: =+'Operating Costs'!Q7 -> 15 | R3: =+'Operating Costs'!R7 -> 16 | S3: =+'Operating Costs'!S7 -> 17 | T3: =+'Operating Costs'!T7 -> 18 | U3: =+'Operating Costs'!U7 -> 19 | V3: =+'Operating Costs'!V7 -> 20 | W3: =+'Operating Costs'!W7 -> 21 | X3: =+'Operating Costs'!X7 -> 22 | Y3: =+'Operating Costs'!Y7 -> 23 | Z3: =+'Operating Costs'!Z7 -> 24 | AA3: =+'Operating Costs'!AA7 -> 25 | AB3: =+'Operating Costs'!AB7 -> 26
A4: Year Start Date | C4: =+'Operating Costs'!C8 -> 2017-08-31 | D4: =+'Operating Costs'!D8 -> 2018-04-01 | E4: =+'Operating Costs'!E8 -> 2019-04-01 | F4: =+'Operating Costs'!F8 -> 2020-04-01 | G4: =+'Operating Costs'!G8 -> 2021-04-01 | H4: =+'Operating Costs'!H8 -> 2022-04-01 | I4: =+'Operating Costs'!I8 -> 2023-04-01 | J4: =+'Operating Costs'!J8 -> 2024-04-01 | K4: =+'Operating Costs'!K8 -> 2025-04-01 | L4: =+'Operating Costs'!L8 -> 2026-04-01 | M4: =+'Operating Costs'!M8 -> 2027-04-01 | N4: =+'Operating Costs'!N8 -> 2028-04-01 | O4: =+'Operating Costs'!O8 -> 2029-04-01 | P4: =+'Operating Costs'!P8 -> 2030-04-01 | Q4: =+'Operating Costs'!Q8 -> 2031-04-01 | R4: =+'Operating Costs'!R8 -> 2032-04-01 | S4: =+'Operating Costs'!S8 -> 2033-04-01 | T4: =+'Operating Costs'!T8 -> 2034-04-01 | U4: =+'Operating Costs'!U8 -> 2035-04-01 | V4: =+'Operating Costs'!V8 -> 2036-04-01 | W4: =+'Operating Costs'!W8 -> 2037-04-01 | X4: =+'Operating Costs'!X8 -> 2038-04-01 | Y4: =+'Operating Costs'!Y8 -> 2039-04-01 | Z4: =+'Operating Costs'!Z8 -> 2040-04-01 | AA4: =+'Operating Costs'!AA8 -> 2041-04-01 | AB4: =+'Operating Costs'!AB8 -> 2042-04-01
A5: Year End Date | C5: =+'Operating Costs'!C9 -> 2018-03-31 | D5: =+'Operating Costs'!D9 -> 2019-03-31 | E5: =+'Operating Costs'!E9 -> 2020-03-31 | F5: =+'Operating Costs'!F9 -> 2021-03-31 | G5: =+'Operating Costs'!G9 -> 2022-03-31 | H5: =+'Operating Costs'!H9 -> 2023-03-31 | I5: =+'Operating Costs'!I9 -> 2024-03-31 | J5: =+'Operating Costs'!J9 -> 2025-03-31 | K5: =+'Operating Costs'!K9 -> 2026-03-31 | L5: =+'Operating Costs'!L9 -> 2027-03-31 | M5: =+'Operating Costs'!M9 -> 2028-03-31 | N5: =+'Operating Costs'!N9 -> 2029-03-31 | O5: =+'Operating Costs'!O9 -> 2030-03-31 | P5: =+'Operating Costs'!P9 -> 2031-03-31 | Q5: =+'Operating Costs'!Q9 -> 2032-03-31 | R5: =+'Operating Costs'!R9 -> 2033-03-31 | S5: =+'Operating Costs'!S9 -> 2034-03-31 | T5: =+'Operating Costs'!T9 -> 2035-03-31 | U5: =+'Operating Costs'!U9 -> 2036-03-31 | V5: =+'Operating Costs'!V9 -> 2037-03-31 | W5: =+'Operating Costs'!W9 -> 2038-03-31 | X5: =+'Operating Costs'!X9 -> 2039-03-31 | Y5: =+'Operating Costs'!Y9 -> 2040-03-31 | Z5: =+'Operating Costs'!Z9 -> 2041-03-31 | AA5: =+'Operating Costs'!AA9 -> 2042-03-31 | AB5: =+'Operating Costs'!AB9 -> 2043-03-31
A7: DSCR Calculations
A8: PAT | B8: USD | C8: ='PL, BS, CF'!C29 -> -7390.947299 | D8: ='PL, BS, CF'!D29 -> -12651.07229 | E8: ='PL, BS, CF'!E29 -> -12382.2208 | F8: ='PL, BS, CF'!F29 -> -11860.23496 | G8: ='PL, BS, CF'!G29 -> -11337.76991 | H8: ='PL, BS, CF'!H29 -> -10815.34614 | I8: ='PL, BS, CF'!I29 -> -10292.4218 | J8: ='PL, BS, CF'!J29 -> -9770.643742 | K8: ='PL, BS, CF'!K29 -> -9248.376802 | L8: ='PL, BS, CF'!L29 -> -8726.174568 | M8: ='PL, BS, CF'!M29 -> -8203.463637 | N8: ='PL, BS, CF'!N29 -> -7681.99278 | O8: ='PL, BS, CF'!O29 -> -7160.028862 | P8: ='PL, BS, CF'!P29 -> -6638.161003 | Q8: ='PL, BS, CF'!Q29 -> -6115.782771 | R8: ='PL, BS, CF'!R29 -> -5594.751567 | S8: ='PL, BS, CF'!S29 -> -5073.230831 | T8: ='PL, BS, CF'!T29 -> -4806.045491 | U8: ='PL, BS, CF'!U29 -> -4792.554671 | V8: ='PL, BS, CF'!V29 -> -1588.472372 | W8: ='PL, BS, CF'!W29 -> 143.417177 | X8: ='PL, BS, CF'!X29 -> 143.3237639 | Y8: ='PL, BS, CF'!Y29 -> 143.6169576 | Z8: ='PL, BS, CF'!Z29 -> 142.6192547 | AA8: ='PL, BS, CF'!AA29 -> 141.9788271 | AB8: ='PL, BS, CF'!AB29 -> 141.1249466
A9: Depreciation | B9: USD | C9: ='Operating Costs'!C26 -> 2898.986342 | D9: ='Operating Costs'!D26 -> 4967.746549 | E9: ='Operating Costs'!E26 -> 4967.746549 | F9: ='Operating Costs'!F26 -> 4967.746549 | G9: ='Operating Costs'!G26 -> 4967.746549 | H9: ='Operating Costs'!H26 -> 4967.746549 | I9: ='Operating Costs'!I26 -> 4967.746549 | J9: ='Operating Costs'!J26 -> 4967.746549 | K9: ='Operating Costs'!K26 -> 4967.746549 | L9: ='Operating Costs'!L26 -> 4967.746549 | M9: ='Operating Costs'!M26 -> 4967.746549 | N9: ='Operating Costs'!N26 -> 4967.746549 | O9: ='Operating Costs'!O26 -> 4967.746549 | P9: ='Operating Costs'!P26 -> 4967.746549 | Q9: ='Operating Costs'!Q26 -> 4967.746549 | R9: ='Operating Costs'!R26 -> 4967.746549 | S9: ='Operating Costs'!S26 -> 4967.746549 | T9: ='Operating Costs'!T26 -> 4967.746549 | U9: ='Operating Costs'!U26 -> 4967.746549 | V9: ='Operating Costs'!V26 -> 1767.684658 | W9: ='Operating Costs'!W26 -> 0 | X9: ='Operating Costs'!X26 -> 0 | Y9: ='Operating Costs'!Y26 -> 0 | Z9: ='Operating Costs'!Z26 -> 0 | AA9: ='Operating Costs'!AA26 -> 0 | AB9: ='Operating Costs'!AB26 -> 0
A10: Interest | B10: USD | C10: ='Operating Costs'!C20 -> 4450.198332 | D10: ='Operating Costs'!D20 -> 7625.92672 | E10: ='Operating Costs'!E20 -> 7371.729162 | F10: ='Operating Costs'!F20 -> 6863.334048 | G10: ='Operating Costs'!G20 -> 6354.938933 | H10: ='Operating Costs'!H20 -> 5846.543818 | I10: ='Operating Costs'!I20 -> 5338.148704 | J10: ='Operating Costs'!J20 -> 4829.753589 | K10: ='Operating Costs'!K20 -> 4321.358475 | L10: ='Operating Costs'!L20 -> 3812.96336 | M10: ='Operating Costs'!M20 -> 3304.568245 | N10: ='Operating Costs'!N20 -> 2796.173131 | O10: ='Operating Costs'!O20 -> 2287.778016 | P10: ='Operating Costs'!P20 -> 1779.382901 | Q10: ='Operating Costs'!Q20 -> 1270.987787 | R10: ='Operating Costs'!R20 -> 762.592672 | S10: ='Operating Costs'!S20 -> 254.1975573 | T10: ='Operating Costs'!T20 -> 0 | U10: ='Operating Costs'!U20 -> 0 | V10: ='Operating Costs'!V20 -> 0 | W10: ='Operating Costs'!W20 -> 0 | X10: ='Operating Costs'!X20 -> 0 | Y10: ='Operating Costs'!Y20 -> 0 | Z10: ='Operating Costs'!Z20 -> 0 | AA10: ='Operating Costs'!AA20 -> 0 | AB10: ='Operating Costs'!AB20 -> 0
A11: Tax saving due to 1st year Depr. | B11: USD | C11: =+'PL, BS, CF'!C60 -> 0 | D11: =+'PL, BS, CF'!D60 -> 0 | E11: =+'PL, BS, CF'!E60 -> 0 | F11: =+'PL, BS, CF'!F60 -> 0 | G11: =+'PL, BS, CF'!G60 -> 0 | H11: =+'PL, BS, CF'!H60 -> 0 | I11: =+'PL, BS, CF'!I60 -> 0 | J11: =+'PL, BS, CF'!J60 -> 0 | K11: =+'PL, BS, CF'!K60 -> 0 | L11: =+'PL, BS, CF'!L60 -> 0 | M11: =+'PL, BS, CF'!M60 -> 0 | N11: =+'PL, BS, CF'!N60 -> 0 | O11: =+'PL, BS, CF'!O60 -> 0 | P11: =+'PL, BS, CF'!P60 -> 0 | Q11: =+'PL, BS, CF'!Q60 -> 0 | R11: =+'PL, BS, CF'!R60 -> 0 | S11: =+'PL, BS, CF'!S60 -> 0 | T11: =+'PL, BS, CF'!T60 -> 0 | U11: =+'PL, BS, CF'!U60 -> 0 | V11: =+'PL, BS, CF'!V60 -> 0 | W11: =+'PL, BS, CF'!W60 -> 0 | X11: =+'PL, BS, CF'!X60 -> 0 | Y11: =+'PL, BS, CF'!Y60 -> 0 | Z11: =+'PL, BS, CF'!Z60 -> 0 | AA11: =+'PL, BS, CF'!AA60 -> 0 | AB11: =+'PL, BS, CF'!AB60 -> 0
A12: VGF | B12: USD | C12: ='PL, BS, CF'!C61 -> 0 | D12: ='PL, BS, CF'!D61 -> 0 | E12: ='PL, BS, CF'!E61 -> 0 | F12: ='PL, BS, CF'!F61 -> 0 | G12: ='PL, BS, CF'!G61 -> 0 | H12: ='PL, BS, CF'!H61 -> 0 | I12: ='PL, BS, CF'!I61 -> 0 | J12: ='PL, BS, CF'!J61 -> 0 | K12: ='PL, BS, CF'!K61 -> 0 | L12: ='PL, BS, CF'!L61 -> 0 | M12: ='PL, BS, CF'!M61 -> 0 | N12: ='PL, BS, CF'!N61 -> 0 | O12: ='PL, BS, CF'!O61 -> 0 | P12: ='PL, BS, CF'!P61 -> 0 | Q12: ='PL, BS, CF'!Q61 -> 0 | R12: ='PL, BS, CF'!R61 -> 0 | S12: ='PL, BS, CF'!S61 -> 0 | T12: ='PL, BS, CF'!T61 -> 0 | U12: ='PL, BS, CF'!U61 -> 0 | V12: ='PL, BS, CF'!V61 -> 0 | W12: ='PL, BS, CF'!W61 -> 0 | X12: ='PL, BS, CF'!X61 -> 0 | Y12: ='PL, BS, CF'!Y61 -> 0 | Z12: ='PL, BS, CF'!Z61 -> 0 | AA12: ='PL, BS, CF'!AA61 -> 0 | AB12: ='PL, BS, CF'!AB61 -> 0
A13: Cash available for debt service | B13: USD | C13: =SUM(C8:C12) -> -41.76262469 | D13: -57.39902208 | E13: -42.74508709 | F13: -29.15436455 | G13: -15.08442685 | H13: -1.055769959 | I13: 13.47344956 | J13: 26.85639564 | K13: 40.72822124 | L13: 54.5353407 | M13: 68.8511566 | N13: 81.9268998 | O13: 95.49570244 | P13: 108.9684474 | Q13: 122.9515648 | R13: 135.5876534 | S13: 148.713275 | T13: 161.7010583 | U13: 175.1918777 | V13: 179.2122864 | W13: 143.417177 | X13: 143.3237639 | Y13: 143.6169576 | Z13: 142.6192547 | AA13: 141.9788271 | AB13: 141.1249466
A15: Interest | B15: USD | C15: =+'Operating Costs'!C20 -> 4450.198332 | D15: =+'Operating Costs'!D20 -> 7625.92672 | E15: =+'Operating Costs'!E20 -> 7371.729162 | F15: =+'Operating Costs'!F20 -> 6863.334048 | G15: =+'Operating Costs'!G20 -> 6354.938933 | H15: =+'Operating Costs'!H20 -> 5846.543818 | I15: =+'Operating Costs'!I20 -> 5338.148704 | J15: =+'Operating Costs'!J20 -> 4829.753589 | K15: =+'Operating Costs'!K20 -> 4321.358475 | L15: =+'Operating Costs'!L20 -> 3812.96336 | M15: =+'Operating Costs'!M20 -> 3304.568245 | N15: =+'Operating Costs'!N20 -> 2796.173131 | O15: =+'Operating Costs'!O20 -> 2287.778016 | P15: =+'Operating Costs'!P20 -> 1779.382901 | Q15: =+'Operating Costs'!Q20 -> 1270.987787 | R15: =+'Operating Costs'!R20 -> 762.592672 | S15: =+'Operating Costs'!S20 -> 254.1975573 | T15: =+'Operating Costs'!T20 -> 0 | U15: =+'Operating Costs'!U20 -> 0 | V15: =+'Operating Costs'!V20 -> 0 | W15: =+'Operating Costs'!W20 -> 0 | X15: =+'Operating Costs'!X20 -> 0 | Y15: =+'Operating Costs'!Y20 -> 0 | Z15: =+'Operating Costs'!Z20 -> 0 | AA15: =+'Operating Costs'!AA20 -> 0 | AB15: =+'Operating Costs'!AB20 -> 0
A16: Principal repayment | B16: USD | C16: =+'Operating Costs'!C18 -> 0 | D16: =+'Operating Costs'!D18 -> 2310.886885 | E16: =+'Operating Costs'!E18 -> 4621.77377 | F16: =+'Operating Costs'!F18 -> 4621.77377 | G16: =+'Operating Costs'!G18 -> 4621.77377 | H16: =+'Operating Costs'!H18 -> 4621.77377 | I16: =+'Operating Costs'!I18 -> 4621.77377 | J16: =+'Operating Costs'!J18 -> 4621.77377 | K16: =+'Operating Costs'!K18 -> 4621.77377 | L16: =+'Operating Costs'!L18 -> 4621.77377 | M16: =+'Operating Costs'!M18 -> 4621.77377 | N16: =+'Operating Costs'!N18 -> 4621.77377 | O16: =+'Operating Costs'!O18 -> 4621.77377 | P16: =+'Operating Costs'!P18 -> 4621.77377 | Q16: =+'Operating Costs'!Q18 -> 4621.77377 | R16: =+'Operating Costs'!R18 -> 4621.77377 | S16: =+'Operating Costs'!S18 -> 2310.886885 | T16: =+'Operating Costs'!T18 -> 0 | U16: =+'Operating Costs'!U18 -> 0 | V16: =+'Operating Costs'!V18 -> 0 | W16: =+'Operating Costs'!W18 -> 0 | X16: =+'Operating Costs'!X18 -> 0 | Y16: =+'Operating Costs'!Y18 -> 0 | Z16: =+'Operating Costs'!Z18 -> 0 | AA16: =+'Operating Costs'!AA18 -> 0 | AB16: =+'Operating Costs'!AB18 -> 0
A17: Total debt service | B17: USD | C17: =SUM(C15:C16) -> 4450.198332 | D17: 9936.813604 | E17: 11993.50293 | F17: 11485.10782 | G17: 10976.7127 | H17: 10468.31759 | I17: 9959.922473 | J17: 9451.527359 | K17: 8943.132244 | L17: 8434.737129 | M17: 7926.342015 | N17: 7417.9469 | O17: 6909.551785 | P17: 6401.156671 | Q17: 5892.761556 | R17: 5384.366442 | S17: 2565.084442 | T17: 0 | U17: 0 | V17: 0 | W17: 0 | X17: 0 | Y17: 0 | Z17: 0 | AA17: 0 | AB17: 0
A18: DSCR | C18: =IF(C17<1, "N/A", C13/C17) -> -0.009384441224 | D18: -0.005776401205 | E18: -0.003564020231 | F18: -0.002538449356 | G18: -0.001374220795 | H18: -0.0001008538335 | I18: 0.001352766509 | J18: 0.002841487372 | K18: 0.004554133846 | L18: 0.006465564944 | M18: 0.008686372159 | N18: 0.01104441713 | O18: 0.01382082448 | P18: 0.01702324329 | Q18: 0.02086484641 | R18: 0.0251817284 | S18: 0.05797597637 | T18: N/A | U18: N/A | V18: N/A | W18: N/A | X18: N/A | Y18: N/A | Z18: N/A | AA18: N/A | AB18: N/A
A19: Average DSCR | C19: =+AVERAGE(C18:AB18) -> 0.008651351427
A20: Minimum DSCR | C20: =+MIN(C18:AB18) -> -0.009384441224
A21: Maximum DSCR | C21: =+MAX(C18:AB18) -> 0.05797597637
A24: Project IRR
A25: Capex | B25: USD | C25: =+'PL, BS, CF'!C69 -> -99038.00935 | D25: =+'PL, BS, CF'!D69 -> 0 | E25: =+'PL, BS, CF'!E69 -> 0 | F25: =+'PL, BS, CF'!F69 -> 0 | G25: =+'PL, BS, CF'!G69 -> 0 | H25: =+'PL, BS, CF'!H69 -> 0 | I25: =+'PL, BS, CF'!I69 -> 0 | J25: =+'PL, BS, CF'!J69 -> 0 | K25: =+'PL, BS, CF'!K69 -> 0 | L25: =+'PL, BS, CF'!L69 -> 0 | M25: =+'PL, BS, CF'!M69 -> 0 | N25: =+'PL, BS, CF'!N69 -> 0 | O25: =+'PL, BS, CF'!O69 -> 0 | P25: =+'PL, BS, CF'!P69 -> 0 | Q25: =+'PL, BS, CF'!Q69 -> 0 | R25: =+'PL, BS, CF'!R69 -> 0 | S25: =+'PL, BS, CF'!S69 -> 0 | T25: =+'PL, BS, CF'!T69 -> 0 | U25: =+'PL, BS, CF'!U69 -> 0 | V25: =+'PL, BS, CF'!V69 -> 0 | W25: =+'PL, BS, CF'!W69 -> 0 | X25: =+'PL, BS, CF'!X69 -> 0 | Y25: =+'PL, BS, CF'!Y69 -> 0 | Z25: =+'PL, BS, CF'!Z69 -> 0 | AA25: =+'PL, BS, CF'!AA69 -> 0 | AB25: =+'PL, BS, CF'!AB69 -> 0
A26: Tax saving due to 1st year Depr. | B26: USD | C26: =+'PL, BS, CF'!C60 -> 0 | D26: =+'PL, BS, CF'!D60 -> 0 | E26: =+'PL, BS, CF'!E60 -> 0 | F26: =+'PL, BS, CF'!F60 -> 0 | G26: =+'PL, BS, CF'!G60 -> 0 | H26: =+'PL, BS, CF'!H60 -> 0 | I26: =+'PL, BS, CF'!I60 -> 0 | J26: =+'PL, BS, CF'!J60 -> 0 | K26: =+'PL, BS, CF'!K60 -> 0 | L26: =+'PL, BS, CF'!L60 -> 0 | M26: =+'PL, BS, CF'!M60 -> 0 | N26: =+'PL, BS, CF'!N60 -> 0 | O26: =+'PL, BS, CF'!O60 -> 0 | P26: =+'PL, BS, CF'!P60 -> 0 | Q26: =+'PL, BS, CF'!Q60 -> 0 | R26: =+'PL, BS, CF'!R60 -> 0 | S26: =+'PL, BS, CF'!S60 -> 0 | T26: =+'PL, BS, CF'!T60 -> 0 | U26: =+'PL, BS, CF'!U60 -> 0 | V26: =+'PL, BS, CF'!V60 -> 0 | W26: =+'PL, BS, CF'!W60 -> 0 | X26: =+'PL, BS, CF'!X60 -> 0 | Y26: =+'PL, BS, CF'!Y60 -> 0 | Z26: =+'PL, BS, CF'!Z60 -> 0 | AA26: =+'PL, BS, CF'!AA60 -> 0 | AB26: =+'PL, BS, CF'!AB60 -> 0
A27: VGF | B27: USD | C27: ='PL, BS, CF'!C61 -> 0 | D27: ='PL, BS, CF'!D61 -> 0 | E27: ='PL, BS, CF'!E61 -> 0 | F27: ='PL, BS, CF'!F61 -> 0 | G27: ='PL, BS, CF'!G61 -> 0 | H27: ='PL, BS, CF'!H61 -> 0 | I27: ='PL, BS, CF'!I61 -> 0 | J27: ='PL, BS, CF'!J61 -> 0 | K27: ='PL, BS, CF'!K61 -> 0 | L27: ='PL, BS, CF'!L61 -> 0 | M27: ='PL, BS, CF'!M61 -> 0 | N27: ='PL, BS, CF'!N61 -> 0 | O27: ='PL, BS, CF'!O61 -> 0 | P27: ='PL, BS, CF'!P61 -> 0 | Q27: ='PL, BS, CF'!Q61 -> 0 | R27: ='PL, BS, CF'!R61 -> 0 | S27: ='PL, BS, CF'!S61 -> 0 | T27: ='PL, BS, CF'!T61 -> 0 | U27: ='PL, BS, CF'!U61 -> 0 | V27: ='PL, BS, CF'!V61 -> 0 | W27: ='PL, BS, CF'!W61 -> 0 | X27: ='PL, BS, CF'!X61 -> 0 | Y27: ='PL, BS, CF'!Y61 -> 0 | Z27: ='PL, BS, CF'!Z61 -> 0 | AA27: ='PL, BS, CF'!AA61 -> 0 | AB27: ='PL, BS, CF'!AB61 -> 0
A28: PAT | B28: USD | C28: ='PL, BS, CF'!C29 -> -7390.947299 | D28: ='PL, BS, CF'!D29 -> -12651.07229 | E28: ='PL, BS, CF'!E29 -> -12382.2208 | F28: ='PL, BS, CF'!F29 -> -11860.23496 | G28: ='PL, BS, CF'!G29 -> -11337.76991 | H28: ='PL, BS, CF'!H29 -> -10815.34614 | I28: ='PL, BS, CF'!I29 -> -10292.4218 | J28: ='PL, BS, CF'!J29 -> -9770.643742 | K28: ='PL, BS, CF'!K29 -> -9248.376802 | L28: ='PL, BS, CF'!L29 -> -8726.174568 | M28: ='PL, BS, CF'!M29 -> -8203.463637 | N28: ='PL, BS, CF'!N29 -> -7681.99278 | O28: ='PL, BS, CF'!O29 -> -7160.028862 | P28: ='PL, BS, CF'!P29 -> -6638.161003 | Q28: ='PL, BS, CF'!Q29 -> -6115.782771 | R28: ='PL, BS, CF'!R29 -> -5594.751567 | S28: ='PL, BS, CF'!S29 -> -5073.230831 | T28: ='PL, BS, CF'!T29 -> -4806.045491 | U28: ='PL, BS, CF'!U29 -> -4792.554671 | V28: ='PL, BS, CF'!V29 -> -1588.472372 | W28: ='PL, BS, CF'!W29 -> 143.417177 | X28: ='PL, BS, CF'!X29 -> 143.3237639 | Y28: ='PL, BS, CF'!Y29 -> 143.6169576 | Z28: ='PL, BS, CF'!Z29 -> 142.6192547 | AA28: ='PL, BS, CF'!AA29 -> 141.9788271 | AB28: ='PL, BS, CF'!AB29 -> 141.1249466
A29: Depreciation | B29: USD | C29: =+'Operating Costs'!C26 -> 2898.986342 | D29: =+'Operating Costs'!D26 -> 4967.746549 | E29: =+'Operating Costs'!E26 -> 4967.746549 | F29: =+'Operating Costs'!F26 -> 4967.746549 | G29: =+'Operating Costs'!G26 -> 4967.746549 | H29: =+'Operating Costs'!H26 -> 4967.746549 | I29: =+'Operating Costs'!I26 -> 4967.746549 | J29: =+'Operating Costs'!J26 -> 4967.746549 | K29: =+'Operating Costs'!K26 -> 4967.746549 | L29: =+'Operating Costs'!L26 -> 4967.746549 | M29: =+'Operating Costs'!M26 -> 4967.746549 | N29: =+'Operating Costs'!N26 -> 4967.746549 | O29: =+'Operating Costs'!O26 -> 4967.746549 | P29: =+'Operating Costs'!P26 -> 4967.746549 | Q29: =+'Operating Costs'!Q26 -> 4967.746549 | R29: =+'Operating Costs'!R26 -> 4967.746549 | S29: =+'Operating Costs'!S26 -> 4967.746549 | T29: =+'Operating Costs'!T26 -> 4967.746549 | U29: =+'Operating Costs'!U26 -> 4967.746549 | V29: =+'Operating Costs'!V26 -> 1767.684658 | W29: =+'Operating Costs'!W26 -> 0 | X29: =+'Operating Costs'!X26 -> 0 | Y29: =+'Operating Costs'!Y26 -> 0 | Z29: =+'Operating Costs'!Z26 -> 0 | AA29: =+'Operating Costs'!AA26 -> 0 | AB29: =+'Operating Costs'!AB26 -> 0
A30: Interest on Loan | B30: USD | C30: =+'Operating Costs'!C20*(1-'Income Tax'!C34) -> 4450.198332 | D30: =+'Operating Costs'!D20*(1-'Income Tax'!D34) -> 7625.92672 | E30: =+'Operating Costs'!E20*(1-'Income Tax'!E34) -> 7371.729162 | F30: =+'Operating Costs'!F20*(1-'Income Tax'!F34) -> 6863.334048 | G30: =+'Operating Costs'!G20*(1-'Income Tax'!G34) -> 6354.938933 | H30: =+'Operating Costs'!H20*(1-'Income Tax'!H34) -> 5846.543818 | I30: =+'Operating Costs'!I20*(1-'Income Tax'!I34) -> 5338.148704 | J30: =+'Operating Costs'!J20*(1-'Income Tax'!J34) -> 4829.753589 | K30: =+'Operating Costs'!K20*(1-'Income Tax'!K34) -> 4321.358475 | L30: =+'Operating Costs'!L20*(1-'Income Tax'!L34) -> 3812.96336 | M30: =+'Operating Costs'!M20*(1-'Income Tax'!M34) -> 3304.568245 | N30: =+'Operating Costs'!N20*(1-'Income Tax'!N34) -> 2796.173131 | O30: =+'Operating Costs'!O20*(1-'Income Tax'!O34) -> 2287.778016 | P30: =+'Operating Costs'!P20*(1-'Income Tax'!P34) -> 1779.382901 | Q30: =+'Operating Costs'!Q20*(1-'Income Tax'!Q34) -> 1270.987787 | R30: =+'Operating Costs'!R20*(1-'Income Tax'!R34) -> 762.592672 | S30: =+'Operating Costs'!S20*(1-'Income Tax'!S34) -> 254.1975573 | T30: =+'Operating Costs'!T20*(1-'Income Tax'!T34) -> 0 | U30: =+'Operating Costs'!U20*(1-'Income Tax'!U34) -> 0 | V30: =+'Operating Costs'!V20*(1-'Income Tax'!V34) -> 0 | W30: =+'Operating Costs'!W20*(1-'Income Tax'!W34) -> 0 | X30: =+'Operating Costs'!X20*(1-'Income Tax'!X34) -> 0 | Y30: =+'Operating Costs'!Y20*(1-'Income Tax'!Y34) -> 0 | Z30: =+'Operating Costs'!Z20*(1-'Income Tax'!Z34) -> 0 | AA30: =+'Operating Costs'!AA20*(1-'Income Tax'!AA34) -> 0 | AB30: =+'Operating Costs'!AB20*(1-'Income Tax'!AB34) -> 0
A31: Fixed Assets Residual Value | B31: USD | AB31: ='PL, BS, CF'!AB49 -> 4951.900467
A32: Net Current Assets | B32: USD | AB32: 0
A33: Net cashflow | B33: USD | C33: =SUM(C25:C32) -> -99079.77197 | D33: -57.39902208 | E33: -42.74508709 | F33: -29.15436455 | G33: -15.08442685 | H33: -1.055769959 | I33: 13.47344956 | J33: 26.85639564 | K33: 40.72822124 | L33: 54.5353407 | M33: 68.8511566 | N33: 81.9268998 | O33: 95.49570244 | P33: 108.9684474 | Q33: 122.9515648 | R33: 135.5876534 | S33: 148.713275 | T33: 161.7010583 | U33: 175.1918777 | V33: 179.2122864 | W33: 143.417177 | X33: 143.3237639 | Y33: 143.6169576 | Z33: 142.6192547 | AA33: 141.9788271 | AB33: 5093.025414
A34: Project IRR (%) | B34: % | C34: =+IRR(C33:AB33,10%) -> -0.1056692323
A37: Equity IRR
A38: Equity investment | B38: USD | C38: =-'PL, BS, CF'!C62 -> -29711.4028 | D38: =-'PL, BS, CF'!D62 -> 0 | E38: =-'PL, BS, CF'!E62 -> 0 | F38: =-'PL, BS, CF'!F62 -> 0 | G38: =-'PL, BS, CF'!G62 -> 0 | H38: =-'PL, BS, CF'!H62 -> 0 | I38: =-'PL, BS, CF'!I62 -> 0 | J38: =-'PL, BS, CF'!J62 -> 0 | K38: =-'PL, BS, CF'!K62 -> 0 | L38: =-'PL, BS, CF'!L62 -> 0 | M38: =-'PL, BS, CF'!M62 -> 0 | N38: =-'PL, BS, CF'!N62 -> 0 | O38: =-'PL, BS, CF'!O62 -> 0 | P38: =-'PL, BS, CF'!P62 -> 0 | Q38: =-'PL, BS, CF'!Q62 -> 0 | R38: =-'PL, BS, CF'!R62 -> 0 | S38: =-'PL, BS, CF'!S62 -> 0 | T38: =-'PL, BS, CF'!T62 -> 0 | U38: =-'PL, BS, CF'!U62 -> 0 | V38: =-'PL, BS, CF'!V62 -> 0 | W38: =-'PL, BS, CF'!W62 -> 0 | X38: =-'PL, BS, CF'!X62 -> 0 | Y38: =-'PL, BS, CF'!Y62 -> 0 | Z38: =-'PL, BS, CF'!Z62 -> 0 | AA38: =-'PL, BS, CF'!AA62 -> 0 | AB38: =-'PL, BS, CF'!AB62 -> 0
A39: Tax saving due to 1st year Depr. | B39: USD | C39: =+C26 -> 0 | D39: 0 | E39: 0 | F39: 0 | G39: 0 | H39: 0 | I39: 0 | J39: 0 | K39: 0 | L39: 0 | M39: 0 | N39: 0 | O39: 0 | P39: 0 | Q39: 0 | R39: 0 | S39: 0 | T39: 0 | U39: 0 | V39: 0 | W39: 0 | X39: 0 | Y39: 0 | Z39: 0 | AA39: 0 | AB39: 0
A40: VGF | B40: USD | C40: ='PL, BS, CF'!C61 -> 0 | D40: ='PL, BS, CF'!D61 -> 0 | E40: ='PL, BS, CF'!E61 -> 0 | F40: ='PL, BS, CF'!F61 -> 0 | G40: ='PL, BS, CF'!G61 -> 0 | H40: ='PL, BS, CF'!H61 -> 0 | I40: ='PL, BS, CF'!I61 -> 0 | J40: ='PL, BS, CF'!J61 -> 0 | K40: ='PL, BS, CF'!K61 -> 0 | L40: ='PL, BS, CF'!L61 -> 0 | M40: ='PL, BS, CF'!M61 -> 0 | N40: ='PL, BS, CF'!N61 -> 0 | O40: ='PL, BS, CF'!O61 -> 0 | P40: ='PL, BS, CF'!P61 -> 0 | Q40: ='PL, BS, CF'!Q61 -> 0 | R40: ='PL, BS, CF'!R61 -> 0 | S40: ='PL, BS, CF'!S61 -> 0 | T40: ='PL, BS, CF'!T61 -> 0 | U40: ='PL, BS, CF'!U61 -> 0 | V40: ='PL, BS, CF'!V61 -> 0 | W40: ='PL, BS, CF'!W61 -> 0 | X40: ='PL, BS, CF'!X61 -> 0 | Y40: ='PL, BS, CF'!Y61 -> 0 | Z40: ='PL, BS, CF'!Z61 -> 0 | AA40: ='PL, BS, CF'!AA61 -> 0 | AB40: ='PL, BS, CF'!AB61 -> 0
A41: Repayment of Debt | B41: USD | C41: =-'Operating Costs'!C18 -> 0 | D41: =-'Operating Costs'!D18 -> -2310.886885 | E41: =-'Operating Costs'!E18 -> -4621.77377 | F41: =-'Operating Costs'!F18 -> -4621.77377 | G41: =-'Operating Costs'!G18 -> -4621.77377 | H41: =-'Operating Costs'!H18 -> -4621.77377 | I41: =-'Operating Costs'!I18 -> -4621.77377 | J41: =-'Operating Costs'!J18 -> -4621.77377 | K41: =-'Operating Costs'!K18 -> -4621.77377 | L41: =-'Operating Costs'!L18 -> -4621.77377 | M41: =-'Operating Costs'!M18 -> -4621.77377 | N41: =-'Operating Costs'!N18 -> -4621.77377 | O41: =-'Operating Costs'!O18 -> -4621.77377 | P41: =-'Operating Costs'!P18 -> -4621.77377 | Q41: =-'Operating Costs'!Q18 -> -4621.77377 | R41: =-'Operating Costs'!R18 -> -4621.77377 | S41: =-'Operating Costs'!S18 -> -2310.886885 | T41: =-'Operating Costs'!T18 -> 0 | U41: =-'Operating Costs'!U18 -> 0 | V41: =-'Operating Costs'!V18 -> 0 | W41: =-'Operating Costs'!W18 -> 0 | X41: =-'Operating Costs'!X18 -> 0 | Y41: =-'Operating Costs'!Y18 -> 0 | Z41: =-'Operating Costs'!Z18 -> 0 | AA41: =-'Operating Costs'!AA18 -> 0 | AB41: =-'Operating Costs'!AB18 -> 0
A42: PAT | B42: USD | C42: =C28 -> -7390.947299 | D42: -12651.07229 | E42: -12382.2208 | F42: -11860.23496 | G42: -11337.76991 | H42: -10815.34614 | I42: -10292.4218 | J42: -9770.643742 | K42: -9248.376802 | L42: -8726.174568 | M42: -8203.463637 | N42: -7681.99278 | O42: -7160.028862 | P42: -6638.161003 | Q42: -6115.782771 | R42: -5594.751567 | S42: -5073.230831 | T42: -4806.045491 | U42: -4792.554671 | V42: -1588.472372 | W42: 143.417177 | X42: 143.3237639 | Y42: 143.6169576 | Z42: 142.6192547 | AA42: 141.9788271 | AB42: 141.1249466
A43: Depreciation | B43: USD | C43: =C29 -> 2898.986342 | D43: 4967.746549 | E43: 4967.746549 | F43: 4967.746549 | G43: 4967.746549 | H43: 4967.746549 | I43: 4967.746549 | J43: 4967.746549 | K43: 4967.746549 | L43: 4967.746549 | M43: 4967.746549 | N43: 4967.746549 | O43: 4967.746549 | P43: 4967.746549 | Q43: 4967.746549 | R43: 4967.746549 | S43: 4967.746549 | T43: 4967.746549 | U43: 4967.746549 | V43: 1767.684658 | W43: 0 | X43: 0 | Y43: 0 | Z43: 0 | AA43: 0 | AB43: 0
A44: Fixed Assets Residual Value | B44: USD | AB44: =AB31 -> 4951.900467
A45: Net Current Assets | B45: USD | AB45: 0
A46: Net cashflow | B46: USD | C46: =SUM(C38:C45) -> -34203.36376 | D46: -9994.212627 | E46: -12036.24802 | F46: -11514.26218 | G46: -10991.79713 | H46: -10469.37336 | I46: -9946.449024 | J46: -9424.670963 | K46: -8902.404023 | L46: -8380.201789 | M46: -7857.490858 | N46: -7336.02 | O46: -6814.056083 | P46: -6292.188223 | Q46: -5769.809991 | R46: -5248.778788 | S46: -2416.371167 | T46: 161.7010583 | U46: 175.1918777 | V46: 179.2122864 | W46: 143.417177 | X46: 143.3237639 | Y46: 143.6169576 | Z46: 142.6192547 | AA46: 141.9788271 | AB46: 5093.025414
A47: Equity IRR (%) | B47: % | C47: =+IRR(C46:AB46,10%) -> 
A50: Cash Available for Payback Calculation
A51: (PAT + Tax Saving + VGF + Depreciation - Debt Repay) | B51: USD | C51: =C28+C26+C29-C16+C27 -> -4491.960957 | D51: -9994.212627 | E51: -12036.24802 | F51: -11514.26218 | G51: -10991.79713 | H51: -10469.37336 | I51: -9946.449024 | J51: -9424.670963 | K51: -8902.404023 | L51: -8380.201789 | M51: -7857.490858 | N51: -7336.02 | O51: -6814.056083 | P51: -6292.188223 | Q51: -5769.809991 | R51: -5248.778788 | S51: -2416.371167 | T51: 161.7010583 | U51: 175.1918777 | V51: 179.2122864 | W51: 143.417177 | X51: 143.3237639 | Y51: 143.6169576 | Z51: 142.6192547 | AA51: 141.9788271 | AB51: 141.1249466
A52: Cumm. Cash Available | B52: USD | C52: =C51 -> -4491.960957 | D52: =D51+C52 -> -14486.17358 | E52: -26522.4216 | F52: -38036.68378 | G52: -49028.48091 | H52: -59497.85427 | I52: -69444.3033 | J52: -78868.97426 | K52: -87771.37828 | L52: -96151.58007 | M52: -104009.0709 | N52: -111345.0909 | O52: -118159.147 | P52: -124451.3352 | Q52: -130221.1452 | R52: -135469.924 | S52: -137886.2952 | T52: -137724.5941 | U52: -137549.4022 | V52: -137370.19 | W52: -137226.7728 | X52: -137083.449 | Y52: -136939.8321 | Z52: -136797.2128 | AA52: -136655.234 | AB52: -136514.109
A53: Total Equity Investment | B53: USD | C53: =Inputs!C29 -> 29711.4028
A54: Total Project Investment | B54: USD | C54: =Inputs!D22 -> 99038.00935
C56: ='PL, BS, CF'!C77 -> -4491.960957 | D56: ='PL, BS, CF'!D77 -> -14486.17358 | E56: ='PL, BS, CF'!E77 -> -26522.4216 | F56: ='PL, BS, CF'!F77 -> -38036.68378 | G56: ='PL, BS, CF'!G77 -> -49028.48091 | H56: ='PL, BS, CF'!H77 -> -59497.85427 | I56: ='PL, BS, CF'!I77 -> -69444.3033 | J56: ='PL, BS, CF'!J77 -> -78868.97426 | K56: ='PL, BS, CF'!K77 -> -87771.37828 | L56: ='PL, BS, CF'!L77 -> -96151.58007 | M56: ='PL, BS, CF'!M77 -> -104009.0709 | N56: ='PL, BS, CF'!N77 -> -111345.0909 | O56: ='PL, BS, CF'!O77 -> -118159.147 | P56: ='PL, BS, CF'!P77 -> -124451.3352 | Q56: ='PL, BS, CF'!Q77 -> -130221.1452 | R56: ='PL, BS, CF'!R77 -> -135469.924 | S56: ='PL, BS, CF'!S77 -> -137886.2952 | T56: ='PL, BS, CF'!T77 -> -137724.5941 | U56: ='PL, BS, CF'!U77 -> -137549.4022 | V56: ='PL, BS, CF'!V77 -> -137370.19 | W56: ='PL, BS, CF'!W77 -> -137226.7728 | X56: ='PL, BS, CF'!X77 -> -137083.449 | Y56: ='PL, BS, CF'!Y77 -> -136939.8321 | Z56: ='PL, BS, CF'!Z77 -> -136797.2128 | AA56: ='PL, BS, CF'!AA77 -> -136655.234 | AB56: ='PL, BS, CF'!AB77 -> -136514.109
B57: Check | C57: =C56-C52 -> -7.275957614e-12 | D57: 0 | E57: 0 | F57: 0 | G57: 0 | H57: 0 | I57: 0 | J57: 0 | K57: 0 | L57: 0 | M57: 0 | N57: 0 | O57: 0 | P57: 0 | Q57: 0 | R57: 0 | S57: 0 | T57: 0 | U57: 0 | V57: 0 | W57: 0 | X57: 0 | Y57: 0 | Z57: 0 | AA57: 0 | AB57: 0

Sheet Phasing
A2: Project Cost Phasing
C3: =Inputs!C6 -> 2017-03-01 | D3: =DATE(YEAR(C3),MONTH(C3)+1,DAY(C3)) -> 2017-04-01 | E3: 2017-05-01 | F3: 2017-06-01 | G3: 2017-07-01 | H3: 2017-08-01 | I3: 2017-09-01 | J3: 2017-10-01 | K3: 2017-11-01 | L3: 2017-12-01 | M3: Total
A4: Phasing (%)
A5: Land | B5: % | C5: 1 | M5: =SUM(C5:L5) -> 1
A6: Material Cost | B6: % | C6: 0.2 | D6: 0.3 | E6: 0.3 | F6: 0.1 | G6: 0.1 | M6: 1
A7: Services Cost | B7: % | C7: 0.2 | D7: 0.3 | E7: 0.3 | F7: 0.1 | G7: 0.1 | M7: 1
A8: Other Expenses | B8: % | C8: 0.2 | D8: 0.3 | E8: 0.3 | F8: 0.1 | G8: 0.1 | M8: 1
A9: Contingencies | G9: 0.5 | H9: 0.5 | M9: 1
A12: Phasing (Amount)
A13: Land | B13: USD | C13: =Inputs!$D$14*Phasing!C5 -> 0 | D13: =Inputs!$D$14*Phasing!D5 -> 0 | E13: =Inputs!$D$14*Phasing!E5 -> 0 | F13: =Inputs!$D$14*Phasing!F5 -> 0 | G13: =Inputs!$D$14*Phasing!G5 -> 0 | H13: =Inputs!$D$14*Phasing!H5 -> 0 | I13: =Inputs!$D$14*Phasing!I5 -> 0 | J13: =Inputs!$D$14*Phasing!J5 -> 0 | K13: =Inputs!$D$14*Phasing!K5 -> 0 | L13: =Inputs!$D$14*Phasing!L5 -> 0 | M13: =SUM(C13:L13) -> 0
A14: Material Cost | B14: USD | C14: =Inputs!$D$15*Phasing!C6 -> 145.4907915 | D14: =Inputs!$D$15*Phasing!D6 -> 218.2361873 | E14: =Inputs!$D$15*Phasing!E6 -> 218.2361873 | F14: =Inputs!$D$15*Phasing!F6 -> 72.74539576 | G14: =Inputs!$D$15*Phasing!G6 -> 72.74539576 | H14: =Inputs!$D$15*Phasing!H6 -> 0 | I14: =Inputs!$D$15*Phasing!I6 -> 0 | J14: =Inputs!$D$15*Phasing!J6 -> 0 | K14: =Inputs!$D$15*Phasing!K6 -> 0 | L14: =Inputs!$D$15*Phasing!L6 -> 0 | M14: 727.4539576
A15: Services Cost | B15: USD | C15: =Inputs!$D$16*Phasing!C7 -> 15.47774378 | D15: =Inputs!$D$16*Phasing!D7 -> 23.21661567 | E15: =Inputs!$D$16*Phasing!E7 -> 23.21661567 | F15: =Inputs!$D$16*Phasing!F7 -> 7.738871889 | G15: =Inputs!$D$16*Phasing!G7 -> 7.738871889 | H15: =Inputs!$D$16*Phasing!H7 -> 0 | I15: =Inputs!$D$16*Phasing!I7 -> 0 | J15: =Inputs!$D$16*Phasing!J7 -> 0 | K15: =Inputs!$D$16*Phasing!K7 -> 0 | L15: =Inputs!$D$16*Phasing!L7 -> 0 | M15: 77.38871889
A16: Other Expenses | B16: USD | C16: =Inputs!$D$17*Phasing!C8 -> 0 | D16: =Inputs!$D$17*Phasing!D8 -> 0 | E16: =Inputs!$D$17*Phasing!E8 -> 0 | F16: =Inputs!$D$17*Phasing!F8 -> 0 | G16: =Inputs!$D$17*Phasing!G8 -> 0 | H16: =Inputs!$D$17*Phasing!H8 -> 0 | I16: =Inputs!$D$17*Phasing!I8 -> 0 | J16: =Inputs!$D$17*Phasing!J8 -> 0 | K16: =Inputs!$D$17*Phasing!K8 -> 0 | L16: =Inputs!$D$17*Phasing!L8 -> 0 | M16: 0
A17: Contingencies | B17: USD | C17: =Inputs!$D$19*Phasing!C9 -> 0 | D17: =Inputs!$D$19*Phasing!D9 -> 0 | E17: =Inputs!$D$19*Phasing!E9 -> 0 | F17: =Inputs!$D$19*Phasing!F9 -> 0 | G17: =Inputs!$D$19*Phasing!G9 -> 48714.162 | H17: =Inputs!$D$19*Phasing!H9 -> 48714.162 | I17: =Inputs!$D$19*Phasing!I9 -> 0 | J17: =Inputs!$D$19*Phasing!J9 -> 0 | K17: =Inputs!$D$19*Phasing!K9 -> 0 | L17: =Inputs!$D$19*Phasing!L9 -> 0 | M17: 97428.32399
A18: Interest During Construction | B18: USD | C18: =C35 -> 0 | D18: 0 | E18: 0 | F18: 0 | G18: 0 | H18: 0 | I18: 0 | J18: 0 | K18: 0 | L18: 0 | M18: 0
A19: Total Project Cost | B19: USD | C19: =SUM(C13:C18) -> 160.9685353 | D19: 241.4528029 | E19: 241.4528029 | F19: 80.48426765 | G19: 48794.64626 | H19: 48714.162 | I19: 0 | J19: 0 | K19: 0 | L19: 0 | M19: 98233.16667
A20: Cummulative Total Project Cost | B20: USD | C20: =C19 -> 160.9685353 | D20: =D19+C20 -> 402.4213382 | E20: 643.8741412 | F20: 724.3584088 | G20: 49519.00467 | H20: 98233.16667 | I20: 98233.16667 | J20: 98233.16667 | K20: 98233.16667 | L20: 98233.16667
A23: Cummulative Fund Requirement
A24: Cummulative Equity | B24: USD | C24: =MIN(C20,($M$19*Inputs!$C$26)) -> 160.9685353 | D24: =MIN(D20,($M$19*Inputs!$C$26)) -> 402.4213382 | E24: =MIN(E20,($M$19*Inputs!$C$26)) -> 643.8741412 | F24: =MIN(F20,($M$19*Inputs!$C$26)) -> 724.3584088 | G24: =MIN(G20,($M$19*Inputs!$C$26)) -> 29469.95 | H24: =MIN(H20,($M$19*Inputs!$C$26)) -> 29469.95 | I24: =MIN(I20,($M$19*Inputs!$C$26)) -> 29469.95 | J24: =MIN(J20,($M$19*Inputs!$C$26)) -> 29469.95 | K24: =MIN(K20,($M$19*Inputs!$C$26)) -> 29469.95 | L24: =MIN(L20,($M$19*Inputs!$C$26)) -> 29469.95
A25: Cummulative Debt | B25: USD | C25: =C20-C24 -> 0 | D25: 0 | E25: 0 | F25: 0 | G25: 20049.05467 | H25: 68763.21667 | I25: 68763.21667 | J25: 68763.21667 | K25: 68763.21667 | L25: 68763.21667
A28: Monthly Fund Requirement
A29: Equity for the Month | B29: USD | C29: =C24 -> 160.9685353 | D29: =D24-C24 -> 241.4528029 | E29: 241.4528029 | F29: 80.48426765 | G29: 28745.59159 | H29: 0 | I29: 0 | J29: 0 | K29: 0 | L29: 0 | M29: =SUM(C29:L29) -> 29469.95 | N29: =M29/M31 -> 0.3
A30: Debt for the Month | B30: USD | C30: 0 | D30: =D25-C25 -> 0 | E30: 0 | F30: 0 | G30: 20049.05467 | H30: 48714.162 | I30: 0 | J30: 0 | K30: 0 | L30: 0 | M30: 68763.21667 | N30: =M30/M31 -> 0.7
A31: Total Monthly Fund Required | B31: USD | C31: =SUM(C29:C30) -> 160.9685353 | D31: 241.4528029 | E31: 241.4528029 | F31: 80.48426765 | G31: 48794.64626 | H31: 48714.162 | I31: 0 | J31: 0 | K31: 0 | L31: 0 | M31: 98233.16667
A34: Interest During Construction
A35: Interest During Construction | B35: USD | C35: 0 | D35: 0 | E35: 0 | F35: 0 | G35: 0 | H35: 0 | M35: 0

Sheet Sensitivity (hidden)
A2: Sensitivity Analysis Assumptions | G2: Sensitivity
A4: Base Line Assumptions | B4: Unit | C4: Links | D4: PS | E4: Sensitivity | I4: Base Line Result | J4: -iv Schenario | K4: +iv Schenario
A5: =Inputs!A22 -> Total Project Cost | B5: =Inputs!B22 -> USD 000's | C5: =Inputs!C22 -> 847202.8173 | D5: 799.9992444 | E5: =C5-D5 -> 846402.8181 | G5: Total Project Cost | H5: Rs. Lacs | I5: 799.9992444 | J5: 850 | K5: 750
A6: =Inputs!A26 -> Equity as Percent of Project Cost | B6: =Inputs!B26 -> % | C6: =Inputs!C26 -> 0.3 | D6: 0.3 | E6: 0 | G6: Change | J6: + 50 | K6: - 50
A7: =Inputs!A27 -> Debt as Percent of Project Cost | B7: =Inputs!B27 -> % | C7: =Inputs!C27 -> 0.7 | D7: 0.7 | E7: 0 | G7: Average DSCR | H7: Points | I7: 1.175139834 | J7: -0.115035037 | K7: 0.1199924478
A8: =Inputs!A32 -> Interest Rate During Construction Period | B8: =Inputs!B32 -> % | C8: =Inputs!C32 -> 0 | D8: 0.13 | E8: -0.13 | G8: Minimum DSCR | H8: Points | I8: 0.9386540348 | J8: -0.05793361544 | K8: 0.0612462896
A9: =Inputs!A33 -> Interest Rate Post Construction Period | B9: =Inputs!B33 -> % | C9: =Inputs!C33 -> 0.11 | D9: 0.13 | E9: -0.02 | G9: Maximum DSCR | H9: Points | I9: 1.567293051 | J9: -0.2097950686 | K9: 0.2173364213
A10: =Inputs!A34 -> Interest Rate on Deficit/Surplus Cash Balance | B10: =Inputs!B34 -> % | C10: =Inputs!C34 -> 0 | D10: 0.08 | E10: -0.08 | G10: Project IRR | H10: % | I10: 0.1491152606 | J10: -0.01947326896 | K10: 0.01911513441
A11: =Inputs!A36 -> Moratorium period | B11: =Inputs!B36 -> Months | C11: =Inputs!C36 -> 12 | D11: 0 | E11: 12 | G11: Equity IRR | H11: % | I11: 0.1578530237 | J11: -0.02759879222 | K11: 0.02875459259
A12: =Inputs!A37 -> Repayment (No. of quarterly instalments) | B12: =Inputs!B37 -> Qtrs | C12: =Inputs!C37 -> 60 | D12: 40 | E12: 20 | G12: Levelised Tariff Surplus / (Deficit) | H12: Rs./unit | I12: 2.408475638 | J12: -0.4967120035 | K12: 0.5894597927
A13: =Inputs!A43 -> Utilisation Factor | B13: =Inputs!B43 -> % | C13: =Inputs!C43 -> 0.162 | D13: 0.18 | E13: -0.018
A14: =Inputs!A44 -> Degradation Factor | B14: =Inputs!B44 -> % | C14: =Inputs!C44 -> 0.005 | D14: 0.007 | E14: -0.002
A15: =Inputs!A45 -> Auxiliary Consumption | B15: =Inputs!B45 -> % | C15: =Inputs!C45 -> 0 | D15: 0.03 | E15: -0.03 | I15: Base Line Result | J15: -iv Schenario | K15: +iv Schenario
A16: =Inputs!A46 -> AT&C Loss | B16: =Inputs!B46 -> % | C16: =Inputs!C46 -> 0 | D16: 0.005 | E16: -0.005 | G16: Debt | H16: % | I16: 0.7 | J16: 0.8 | K16: 0.6
A17: =Inputs!A51 -> O & M | B17: =Inputs!B51 -> USD | C17: =Inputs!C51 -> 13.8 | D17: 11.99998867 | E17: 1.800011334 | G17: Change | J17: + 10% | K17: - 10%
A18: =Inputs!A52 -> Escalation on O & M Cost | B18: =Inputs!B52 -> % | C18: =Inputs!C52 -> 0.07 | D18: 0.1 | E18: -0.03 | G18: Average DSCR | H18: Points | I18: 1.175139834 | J18: -0.2102962128 | K18: 0.2795630955
A19: =Inputs!A57 -> Insurance Expense of Net Block | B19: =Inputs!B57 -> % | C19: =Inputs!C57 -> 0.0025 | D19: 0.01 | E19: -0.0075 | G19: Minimum DSCR | H19: Points | I19: 0.9386540348 | J19: -0.1121781428 | K19: 0.1491462634
A20: =Inputs!A58 -> Misc. Expense Per MW (p.a.) incl. Spares | B20: =Inputs!B58 -> USD | C20: =Inputs!C58 -> 0 | D20: 10 | E20: -10 | G20: Maximum DSCR | H20: Points | I20: 1.567293051 | J20: -0.3688540989 | K20: 0.4902987672
A21: =Inputs!A77 -> Generation Based Incentive | B21: =Inputs!B77 -> Rs. per unit | C21: =Inputs!C77 -> 0 | D21: 0 | E21: 0 | G21: Project IRR | H21: % | I21: 0.1491152606 | J21: -0.0163629923 | K21: 0.0140130599
A22: =Inputs!A114 -> 0 | B22: =Inputs!B114 -> 0 | C22: =Inputs!C114 -> 0 | D22: 0 | E22: 0 | G22: Equity IRR | H22: % | I22: 0.1578530237 | J22: -0.0227363773 | K22: 0.01707884659
A23: =Inputs!M56 -> 0 | E23: 0 | G23: Levelised Tariff Surplus / (Deficit) | H23: Rs./unit | I23: 2.408475638 | J23: -0.7952640187 | K23: 0.7829205871
A24: =Inputs!M57 -> 0 | B24: =Inputs!N57 -> 0 | C24: =AVERAGE(Inputs!J58:J62) -> 5.880565381 | D24: 15.02444418 | E24: -9.143878795
A25: =Inputs!M58 -> 0 | B25: =Inputs!N58 -> 0 | C25: =AVERAGE(Inputs!J63:J67) -> 6.492619349 | D25: 9.820248924 | E25: -3.327629575
A26: =Inputs!M59 -> 0 | B26: =Inputs!N59 -> 0 | C26: =AVERAGE(Inputs!J68:J72) -> 7.168376386 | D26: 9.478065508 | E26: -2.309689123 | I26: Base Line Result | J26: -iv Schenario | K26: +iv Schenario
A27: =Inputs!M60 -> 0 | B27: =Inputs!N60 -> 0 | C27: =AVERAGE(Inputs!J73:J77) -> 7.914466757 | D27: 10.20434817 | E27: -2.289881414 | G27: Interest Rate Post Construction Period | H27: % | I27: 0.13 | J27: 0.15 | K27: 0.09
A28: =Inputs!M61 -> 0 | B28: =Inputs!N61 -> 0 | C28: =AVERAGE(Inputs!J78:J82) -> 8.738210814 | D28: 11.00622292 | E28: -2.268012102 | G28: Change | J28: + 2% | K28: - 4%
G29: Average DSCR | H29: Points | I29: 1.175139834 | J29: -0.08030715569 | K29: 0.1895683135
G30: Minimum DSCR | H30: Points | I30: 0.9386540348 | J30: -0.0616161923 | K30: 0.1610989394
G31: Maximum DSCR | H31: Points | I31: 1.567293051 | J31: -0.09090869197 | K31: 0.1870370218
A32: Base Line Result | B32: Unit | C32: Links | D32: PS | E32: Sensitivity | G32: Project IRR | H32: % | I32: 0.1491152606 | J32: -0.006295600723 | K32: 0.0117241738
A33: =Inputs!G6 -> Average DSCR | B33: Points | C33: =Inputs!H6 -> 0.008651351427 | D33: 1.175139834 | E33: =C33-D33 -> -1.166488483 | G33: Equity IRR | H33: % | I33: 0.1578530237 | J33: -0.01788599727 | K33: 0.04044908074
A34: =Inputs!G7 -> Minimum DSCR | B34: Points | C34: =Inputs!H7 -> -0.009384441224 | D34: 0.9386540348 | E34: -0.948038476 | G34: Levelised Tariff Surplus / (Deficit) | H34: Rs./unit | I34: 2.408475638 | J34: -0.511993945 | K34: 1.02708111
A35: =Inputs!G8 -> Maximum DSCR | B35: Points | C35: =Inputs!H8 -> 0.05797597637 | D35: 1.567293051 | E35: -1.509317075
A36: =Inputs!G12 -> Project IRR | B36: % | C36: =Inputs!H12 -> -0.1056692323 | D36: 0.1491152606 | E36: -0.2547844929
A37: =Inputs!G13 -> PPA in USD Cents/MWH | B37: % | C37: =Inputs!H13 ->  | D37: 0.1578530237 | I37: Base Line Result | J37: +iv Schenario | K37: +iv Schenario
A38: =Inputs!G42 -> Levelised Tariff Surplus / (Deficit) | B38: Rs./unit | C38: =Inputs!I42 -> -320.2113232 | D38: 2.408475638 | E38: -322.6197988 | G38: Moratorium period | H38: Months | I38: 0 | J38: 6 | K38: 12
G39: Change | J39: + 6 | K39: + 12
G40: Average DSCR | H40: Points | I40: 1.175139834 | J40: 0.1822744161 | K40: 0.05809600735
G41: Minimum DSCR | H41: Points | I41: 0.9386540348 | J41: 0.02080361289 | K41: 0.01243371885
A42: Note: If we make any change in Base Line Assumption, Base line results needs to be changed and complete sensitivity calculation has to be done once again. | G42: Maximum DSCR | H42: Points | I42: 1.567293051 | J42: 1.606640574 | K42: 0.08057823956
G43: Project IRR | H43: % | I43: 0.1491152606 | J43: 0.0008900292955 | K43: 0.001802777087
G44: Equity IRR | H44: % | I44: 0.1578530237 | J44: 0.003661024658 | K44: 0.007918234272
G45: Levelised Tariff Surplus / (Deficit) | H45: Rs./unit | I45: 2.408475638 | J45: -0.09145120334 | K45: -0.1829023609
I48: Base Line Result | J48: -iv Schenario | K48: +iv Schenario
G49: Repayment (No. of qtrly instalments) | H49: Qtrs | I49: 40 | J49: 32 | K49: 48
G50: Change | J50: - 8 | K50: + 8
G51: Average DSCR | H51: Points | I51: 1.175139834 | J51: -0.1897843778 | K51: 0.1792036744
G52: Minimum DSCR | H52: Points | I52: 0.9386540348 | J52: -0.09336530969 | K52: 0.07390640747
G53: Maximum DSCR | H53: Points | I53: 1.567293051 | J53: -0.3675291526 | K53: 0.3929093343
G54: Project IRR | H54: % | I54: 0.1491152606 | J54: -0.001551435911 | K54: 0.001366733421
G55: Equity IRR | H55: % | I55: 0.1578530237 | J55: -0.005464429647 | K55: 0.00567834268
G56: Levelised Tariff Surplus / (Deficit) | H56: Rs./unit | I56: 2.408475638 | J56: 0.1634609748 | K56: -0.1371749152

Sheet Project IRR Matrix (hidden)
B2: Project IRR Matrix
B4: Debt | C4: Tariff
C5: 7 | D5: 8 | E5: 9 | F5: 9.98 | G5: 11 | H5: 12 | I5: 13
B6: 0.5 | C6: 0.07201978693 | D6: 0.1137960729 | E6: 0.1471169018 | F6: 0.175690257 | G6: 0.2034725653 | H6: 0.2298823993 | I6: 0.2562619009
B7: 0.6 | C7: 0.008209382388 | D7: 0.09556283835 | E7: 0.1323201774 | F7: 0.1631283224 | G7: 0.1923228458 | H7: 0.2195277731 | I7: 0.2463229205
B8: 0.7 | D8: 0.06892431479 | E8: 0.1163531622 | F8: 0.1491152606 | G8: 0.1802388297 | H8: 0.2085814911 | I8: 0.2359592491
B9: 0.8 | E9: 0.09576543953 | F9: 0.1327522684 | G9: 0.1667967359 | H9: 0.1966771114 | I9: 0.2249484127
B10: 0.9 | E10: 0.0547993039 | F10: 0.119092015 | G10: 0.1514463832 | H10: 0.1834648835 | I10: 0.2129869578
B13: Int. Rate | C13: Tariff
C14: 7 | D14: 8 | E14: 9 | F14: 9.98 | G14: 11 | H14: 12 | I14: 13
B15: 0.08 | C15: 0.02830961399 | D15: 0.09347852676 | E15: 0.1328069684 | F15: 0.1636200064 | G15: 0.1928345436 | H15: 0.2200574999 | I15: 0.2468672012
B16: 0.09 | C16: -0.01705844497 | D16: 0.08821153625 | E16: 0.1293638545 | F16: 0.1608394233 | G16: 0.1903943011 | H16: 0.2178115727 | I16: 0.2447200049
B17: 0.1 | D17: 0.08411526577 | E17: 0.1257815896 | F17: 0.1579947354 | G17: 0.1879169619 | H17: 0.2155421905 | I17: 0.2425563143
B18: 0.11 | D18: 0.080313891 | E18: 0.12205022 | F18: 0.1550807537 | G18: 0.1854002822 | H18: 0.2132482132 | I18: 0.2403754481
B19: 0.12 | D19: 0.07617021763 | E19: 0.118150645 | F19: 0.1521336317 | G19: 0.1828418039 | H19: 0.2109284178 | I19: 0.2381766827
B20: 0.13 | D20: 0.06892426593 | E20: 0.1163531643 | F20: 0.1491152607 | G20: 0.1802388326 | H20: 0.20858149 | I20: 0.2359592498
B21: 0.14 | D21: 0.05836877086 | E21: 0.1136594069 | F21: 0.1460132007 | G21: 0.177588406 | H21: 0.2061935317 | I21: 0.2337223318
B22: 0.15 | D22: 0.04097140066 | E22: 0.1101601778 | F22: 0.1428196566 | G22: 0.1748872564 | H22: 0.2037718528 | I22: 0.2314650583
B25: Moratorium | C25: Tariff
C26: 7 | D26: 8 | E26: 9 | F26: 9.98 | G26: 11 | H26: 12 | I26: 13
B27: 0 Months | D27: 0.06892427823 | E27: 0.1163531569 | F27: 0.1491152607 | G27: 0.1802388304 | H27: 0.2085814913 | I27: 0.2359592495
B28: 6 Months | D28: 0.06874883219 | E28: 0.1167691156 | F28: 0.1500052899 | G28: 0.1814050305 | H28: 0.2099903018 | I28: 0.2375886401
B29: 12 Months | D29: 0.06779664024 | E29: 0.119494064 | F29: 0.1509180377 | G29: 0.1825956484 | H29: 0.2114214764 | I29: 0.2392429179
B30: 18 Months | D30: 0.06628388326 | E30: 0.1199353189 | F30: 0.1517277399 | G30: 0.1836097379 | H30: 0.212610984 | I30: 0.2405899521
B31: 24 Months | D31: 0.06493070003 | E31: 0.1204931982 | F31: 0.152553983 | G31: 0.1846399218 | H31: 0.2138154409 | I31: 0.2419504138
B32: 30 Months | D32: 0.06349440541 | E32: 0.1232956445 | F32: 0.1532715091 | G32: 0.1855101691 | H32: 0.2148084699 | I32: 0.2430502173
B35: Repayment (No. of qtrly instalments) | C35: Tariff
C36: 7 | D36: 8 | E36: 9 | F36: 9.98 | G36: 11 | H36: 12 | I36: 13
B37: 32 Qtrs | D37: 0.06904700933 | E37: 0.1156101556 | F37: 0.1475638247 | G37: 0.1782442561 | H37: 0.2062119475 | I37: 0.2332879365
B38: 40 Qtrs | D38: 0.06892427623 | E38: 0.1163531571 | F38: 0.1491152606 | G38: 0.1802388292 | H38: 0.2085814901 | I38: 0.2359592487
B39: 48 Qtrs | D39: 0.0689062322 | E39: 0.1169867152 | F39: 0.150481994 | G39: 0.181902377 | H39: 0.2105084515 | I39: 0.2381151109
B40: 60 Qtrs | D40: 0.06705495151 | E40: 0.1179954032 | F40: 0.1521439687 | G40: 0.1838954525 | H40: 0.2127627781 | I40: 0.2406101219
B41: 72 Qtrs | D41: 0.06468968391 | E41: 0.1186429627 | F41: 0.1533676672 | G41: 0.185421307 | H41: 0.214446387 | I41: 0.2424304316
